Posting date,Supplier number,Supplier Name,Expense type,Department,Amount
23/01/2024,1249077,The Advocacy Project,Hired and Contracted Services,ASC Procurement and Business Intelligenc,51294
15/01/2024,1248618,Riverside Echg,Payments to Voluntary bodies,ASC Procurement and Business Intelligenc,31500
08/02/2024,1243869,Addison Lee Limited,HTM / Other Vehicle - Hire Charges,Adult Social Care Finance and Resources,616.39
28/03/2024,1245051,City of London,Professional Subscriptions,Adult Social Care Finance and Resources,5000
29/03/2024,1245051,City of London,Professional Subscriptions,Adult Social Care Finance and Resources,5000
15/01/2024,1245091,Care UK Community Partnerships Ltd,Hired and Contracted Services,Adult Social Care Finance and Resources,27090
22/02/2024,1243797,PERSONAL PAYMENTS,Hired and Contracted Services,Adult Social Care Finance and Resources,4645.86
22/02/2024,1243797,PERSONAL PAYMENTS,Hired and Contracted Services,Adult Social Care Finance and Resources,4645.86
22/02/2024,1243797,PERSONAL PAYMENTS,Hired and Contracted Services,Adult Social Care Finance and Resources,4645.86
22/02/2024,1243797,PERSONAL PAYMENTS,Hired and Contracted Services,Adult Social Care Finance and Resources,4645.85
22/02/2024,1243797,PERSONAL PAYMENTS,Hired and Contracted Services,Adult Social Care Finance and Resources,4645.86
22/02/2024,1243797,PERSONAL PAYMENTS,Hired and Contracted Services,Adult Social Care Finance and Resources,4645.86
23/02/2024,1243797,PERSONAL PAYMENTS,Hired and Contracted Services,Adult Social Care Finance and Resources,6999.62
23/02/2024,1243797,PERSONAL PAYMENTS,Hired and Contracted Services,Adult Social Care Finance and Resources,6999.66
23/02/2024,1243797,PERSONAL PAYMENTS,Hired and Contracted Services,Adult Social Care Finance and Resources,6999.62
23/02/2024,1243797,PERSONAL PAYMENTS,Hired and Contracted Services,Adult Social Care Finance and Resources,6999.62
23/02/2024,1243797,PERSONAL PAYMENTS,Hired and Contracted Services,Adult Social Care Finance and Resources,6999.62
23/02/2024,1243797,PERSONAL PAYMENTS,Hired and Contracted Services,Adult Social Care Finance and Resources,6999.62
08/03/2024,1243797,PERSONAL PAYMENTS,Hired and Contracted Services,Adult Social Care Finance and Resources,4645.85
15/03/2024,1243797,PERSONAL PAYMENTS,Hired and Contracted Services,Adult Social Care Finance and Resources,6999.62
28/03/2024,1243797,PERSONAL PAYMENTS,Hired and Contracted Services,Adult Social Care Finance and Resources,4131
11/01/2024,1283445,PERSONAL PAYMENTS,Hired and Contracted Services,Adult Social Care Finance and Resources,30240
08/02/2024,1318404,PERSONAL PAYMENTS,Creditors GR/IR -,Adult Social Care Finance and Resources,8500
08/02/2024,1318404,PERSONAL PAYMENTS,Creditors GR/IR -,Adult Social Care Finance and Resources,8500
23/02/2024,1318404,PERSONAL PAYMENTS,Creditors GR/IR -,Adult Social Care Finance and Resources,7509
23/02/2024,1318404,PERSONAL PAYMENTS,Creditors GR/IR -,Adult Social Care Finance and Resources,9708
23/02/2024,1318404,PERSONAL PAYMENTS,Creditors GR/IR -,Adult Social Care Finance and Resources,9908
05/03/2024,1318404,PERSONAL PAYMENTS,Creditors GR/IR -,Adult Social Care Finance and Resources,7509
05/03/2024,1318404,PERSONAL PAYMENTS,Creditors GR/IR -,Adult Social Care Finance and Resources,9908
05/03/2024,1318404,PERSONAL PAYMENTS,Creditors GR/IR -,Adult Social Care Finance and Resources,9708
25/03/2024,1318404,PERSONAL PAYMENTS,Creditors GR/IR -,Adult Social Care Finance and Resources,8965
25/03/2024,1318404,PERSONAL PAYMENTS,Creditors GR/IR -,Adult Social Care Finance and Resources,9984
25/03/2024,1318404,PERSONAL PAYMENTS,Creditors GR/IR -,Adult Social Care Finance and Resources,9576
27/03/2024,1243775,Royal Borough of Kensington &,B*Payments to OLAs - Southampton City Co,Adult Social Care Finance and Resources,80647.93
22/03/2024,1243776,Royal Borough of Kensington &,B*Payments to OLAs - Southampton City Co,Adult Social Care Finance and Resources,52530.68
27/03/2024,1243775,Royal Borough of Kensington &,B*Payments to OLAs - Southampton City Co,Adult Social Care Finance and Resources,21869.1
22/03/2024,1243776,Royal Borough of Kensington &,B*Payments to OLAs - Southampton City Co,Adult Social Care Finance and Resources,24849
08/01/2024,1245228,Pohwer,Hired and Contracted Services,Adult Social Care Finance and Resources,2375.88
22/02/2024,1245228,Pohwer,Hired and Contracted Services,Adult Social Care Finance and Resources,3990.22
27/03/2024,1245228,Pohwer,Hired and Contracted Services,Adult Social Care Finance and Resources,2387.37
27/03/2024,1243775,Royal Borough of Kensington &,B*Payments to OLAs - Southampton City Co,Adult Social Care Finance and Resources,14751.34
22/02/2024,1243869,Addison Lee Limited,B*Bridge Inspections,Adult Social Care Finance and Resources,943.06
22/02/2024,1243869,Addison Lee Limited,B*Bridge Inspections,Adult Social Care Finance and Resources,895.46
22/02/2024,1243869,Addison Lee Limited,B*Bridge Inspections,Adult Social Care Finance and Resources,1163.01
26/03/2024,1243775,Royal Borough of Kensington &,B*Payments to OLAs - Portsmouth City Coun,Adult Social Care Finance and Resources,40379.04
27/03/2024,1243775,Royal Borough of Kensington &,B*Payments to OLAs - Southampton City Co,Adult Social Care Finance and Resources,25810.71
22/03/2024,1243776,Royal Borough of Kensington &,B*Payments to OLAs - Southampton City Co,Adult Social Care Finance and Resources,20515.81
21/03/2024,1244066,Buddi Ltd,###,Bi-Borough Director of Integrated Care,518
21/03/2024,1244066,Buddi Ltd,###,Bi-Borough Director of Integrated Care,870
04/01/2024,1290804,Doro Care UK Ltd,###,Bi-Borough Director of Integrated Care,3212
30/01/2024,1290804,Doro Care UK Ltd,###,Bi-Borough Director of Integrated Care,3348
27/02/2024,1290804,Doro Care UK Ltd,###,Bi-Borough Director of Integrated Care,51600
27/02/2024,1290804,Doro Care UK Ltd,###,Bi-Borough Director of Integrated Care,1715
06/03/2024,1290804,Doro Care UK Ltd,###,Bi-Borough Director of Integrated Care,3544
19/03/2024,1290804,Doro Care UK Ltd,###,Bi-Borough Director of Integrated Care,560
27/03/2024,1290804,Doro Care UK Ltd,###,Bi-Borough Director of Integrated Care,3804
16/01/2024,1292281,The Community Housing Group Limited,Hired and Contracted Services,Bi-Borough Director of Integrated Care,20620.08
16/01/2024,1292281,The Community Housing Group Limited,Hired and Contracted Services,Bi-Borough Director of Integrated Care,858
16/01/2024,1292281,The Community Housing Group Limited,Hired and Contracted Services,Bi-Borough Director of Integrated Care,858
05/03/2024,1292281,The Community Housing Group Limited,Hired and Contracted Services,Bi-Borough Director of Integrated Care,8059.35
12/03/2024,1292281,The Community Housing Group Limited,Hired and Contracted Services,Bi-Borough Director of Integrated Care,6477.12
26/03/2024,1292281,The Community Housing Group Limited,Hired and Contracted Services,Bi-Borough Director of Integrated Care,1110
15/01/2024,1273817,GCH Alan Morkill House Ltd,Hired and Contracted Services,Bi-Borough Director of Integrated Care,381251.52
13/02/2024,1273817,GCH Alan Morkill House Ltd,Hired and Contracted Services,Bi-Borough Director of Integrated Care,381251.52
06/03/2024,1273817,GCH Alan Morkill House Ltd,Hired and Contracted Services,Bi-Borough Director of Integrated Care,313170.89
31/01/2024,1318703,MET Medical Ltd,Payments to Transport Operators,Bi-Borough Director of Integrated Care,1440
11/03/2024,1249122,The OT Practice Ltd,Agency Staff,Bi-Borough Director of Integrated Care,25000
21/02/2024,1245693,London Borough Of Hammersmith &,B*Payments to OLAs - Southampton City Co,Bi-Borough Director of Integrated Care,113278
27/03/2024,1245693,London Borough Of Hammersmith &,B*Payments to OLAs - Southampton City Co,Bi-Borough Director of Integrated Care,110103
21/02/2024,1243775,Royal Borough of Kensington &,B*Payments to OLAs - Southampton City Co,Bi-Borough Director of Integrated Care,91204
27/03/2024,1243775,Royal Borough of Kensington &,B*Payments to OLAs - Southampton City Co,Bi-Borough Director of Integrated Care,80732
21/02/2024,1243775,Royal Borough of Kensington &,B*Payments to OLAs - Southampton City Co,Bi-Borough Director of Integrated Care,880.87
21/02/2024,1243775,Royal Borough of Kensington &,B*Payments to OLAs - Southampton City Co,Bi-Borough Director of Integrated Care,14268
27/03/2024,1243775,Royal Borough of Kensington &,B*Payments to OLAs - Southampton City Co,Bi-Borough Director of Integrated Care,13111
27/03/2024,1243775,Royal Borough of Kensington &,B*Payments to OLAs - Southampton City Co,Bi-Borough Director of Integrated Care,110406.51
25/03/2024,1245693,London Borough Of Hammersmith &,Payments to Other Local Authorities,Bi-Borough Director of Integrated Care,12656
25/03/2024,1245693,London Borough Of Hammersmith &,Payments to Other Local Authorities,Bi-Borough Director of Integrated Care,10866
28/03/2024,1245693,London Borough Of Hammersmith &,Payments to Other Local Authorities,Bi-Borough Director of Integrated Care,12342
18/01/2024,1243774,Royal Borough of Kensington &,Payments to Other Local Authorities,Bi-Borough Director of Integrated Care,112310
21/03/2024,1243776,Royal Borough of Kensington &,Payments to Health Authorities,Bi-Borough Director of Integrated Care,114733.74
20/02/2024,1245563,Sharpe Pritchard,Legal Costs,Bi-Borough Director of Integrated Care,3867.5
20/02/2024,1245563,Sharpe Pritchard,Legal Costs,Bi-Borough Director of Integrated Care,6693
27/03/2024,1245563,Sharpe Pritchard,Legal Costs,Bi-Borough Director of Integrated Care,3608.5
16/02/2024,1246072,Bates Office Services Ltd,Equipment,Bi-Borough Director of Integrated Care,514.43
24/01/2024,1248531,POSTURITE LIMITED,Furniture,Bi-Borough Director of Integrated Care,550
01/02/2024,1292095,365 Care Solutions Ltd,,Bi-Borough Director of Integrated Care,9480
01/02/2024,1292095,365 Care Solutions Ltd,,Bi-Borough Director of Integrated Care,10990
29/02/2024,1292095,365 Care Solutions Ltd,,Bi-Borough Director of Integrated Care,10990
29/02/2024,1292095,365 Care Solutions Ltd,,Bi-Borough Director of Integrated Care,9480
26/03/2024,1292095,365 Care Solutions Ltd,,Bi-Borough Director of Integrated Care,11850
26/03/2024,1292095,365 Care Solutions Ltd,,Bi-Borough Director of Integrated Care,13737.5
12/01/2024,1255843,A.I. Care Services Ltd,,Bi-Borough Director of Integrated Care,1498.4
12/01/2024,1255843,A.I. Care Services Ltd,,Bi-Borough Director of Integrated Care,614.72
12/01/2024,1255843,A.I. Care Services Ltd,,Bi-Borough Director of Integrated Care,7454.32
06/02/2024,1255843,A.I. Care Services Ltd,,Bi-Borough Director of Integrated Care,614.72
06/02/2024,1255843,A.I. Care Services Ltd,,Bi-Borough Director of Integrated Care,7454.32
06/02/2024,1255843,A.I. Care Services Ltd,,Bi-Borough Director of Integrated Care,1498.4
07/03/2024,1255843,A.I. Care Services Ltd,,Bi-Borough Director of Integrated Care,1498.4
07/03/2024,1255843,A.I. Care Services Ltd,,Bi-Borough Director of Integrated Care,614.72
07/03/2024,1255843,A.I. Care Services Ltd,,Bi-Borough Director of Integrated Care,7454.32
29/03/2024,1255843,A.I. Care Services Ltd,,Bi-Borough Director of Integrated Care,7454.32
29/03/2024,1255843,A.I. Care Services Ltd,,Bi-Borough Director of Integrated Care,614.72
29/03/2024,1255843,A.I. Care Services Ltd,,Bi-Borough Director of Integrated Care,1498.4
01/02/2024,1245929,ACHIEVE TOGETHER LIMITED,,Bi-Borough Director of Integrated Care,16325.96
01/02/2024,1245929,ACHIEVE TOGETHER LIMITED,,Bi-Borough Director of Integrated Care,10446.2
29/02/2024,1245929,ACHIEVE TOGETHER LIMITED,,Bi-Borough Director of Integrated Care,10446.2
29/02/2024,1245929,ACHIEVE TOGETHER LIMITED,,Bi-Borough Director of Integrated Care,16325.96
26/03/2024,1245929,ACHIEVE TOGETHER LIMITED,,Bi-Borough Director of Integrated Care,20407.45
26/03/2024,1245929,ACHIEVE TOGETHER LIMITED,,Bi-Borough Director of Integrated Care,13057.75
01/02/2024,1271174,ASPECTS 2 LIMITED,,Bi-Borough Director of Integrated Care,4243.4
29/02/2024,1271174,ASPECTS 2 LIMITED,,Bi-Borough Director of Integrated Care,4243.4
26/03/2024,1271174,ASPECTS 2 LIMITED,,Bi-Borough Director of Integrated Care,5304.25
01/02/2024,1243851,Accomplish Group Ltd,,Bi-Borough Director of Integrated Care,11000
29/02/2024,1243851,Accomplish Group Ltd,,Bi-Borough Director of Integrated Care,11000
26/03/2024,1243851,Accomplish Group Ltd,,Bi-Borough Director of Integrated Care,13750
01/02/2024,1243435,Acorn Village,,Bi-Borough Director of Integrated Care,9178.84
29/02/2024,1243435,Acorn Village,,Bi-Borough Director of Integrated Care,9178.84
26/03/2024,1243435,Acorn Village,,Bi-Borough Director of Integrated Care,11473.55
09/02/2024,1243931,Ashbourne Healthcare Services,,Bi-Borough Director of Integrated Care,509.07
20/02/2024,1243931,Ashbourne Healthcare Services,,Bi-Borough Director of Integrated Care,691.56
01/02/2024,1243942,Aspens Charities,,Bi-Borough Director of Integrated Care,7490
29/02/2024,1243942,Aspens Charities,,Bi-Borough Director of Integrated Care,7490
26/03/2024,1243942,Aspens Charities,,Bi-Borough Director of Integrated Care,9362.5
01/02/2024,1243961,Autism Anglia,,Bi-Borough Director of Integrated Care,10644
29/02/2024,1243961,Autism Anglia,,Bi-Borough Director of Integrated Care,10644
26/03/2024,1243961,Autism Anglia,,Bi-Borough Director of Integrated Care,13305
01/02/2024,1318649,PERSONAL PAYMENTS,,Bi-Borough Director of Integrated Care,17128.41
29/02/2024,1318649,PERSONAL PAYMENTS,,Bi-Borough Director of Integrated Care,22318.65
26/03/2024,1318649,PERSONAL PAYMENTS,,Bi-Borough Director of Integrated Care,7439.55
07/02/2024,1296171,BRAIN-IN-HAND LIMITED,,Bi-Borough Director of Integrated Care,1395
07/02/2024,1296171,BRAIN-IN-HAND LIMITED,,Bi-Borough Director of Integrated Care,1395
07/02/2024,1296171,BRAIN-IN-HAND LIMITED,,Bi-Borough Director of Integrated Care,1395
07/02/2024,1296171,BRAIN-IN-HAND LIMITED,,Bi-Borough Director of Integrated Care,1395
22/02/2024,1296171,BRAIN-IN-HAND LIMITED,Hire of Accommodation and Facilities,Bi-Borough Director of Integrated Care,1395
22/02/2024,1296171,BRAIN-IN-HAND LIMITED,Hire of Accommodation and Facilities,Bi-Borough Director of Integrated Care,1395
22/02/2024,1296171,BRAIN-IN-HAND LIMITED,,Bi-Borough Director of Integrated Care,1395
22/02/2024,1296171,BRAIN-IN-HAND LIMITED,,Bi-Borough Director of Integrated Care,1395
14/03/2024,1246247,Blitz Home Environmental Cleaning,,Bi-Borough Director of Integrated Care,700
14/03/2024,1246247,Blitz Home Environmental Cleaning,,Bi-Borough Director of Integrated Care,730
01/02/2024,1243445,Broadstreet House Limited,,Bi-Borough Director of Integrated Care,4604.48
29/02/2024,1243445,Broadstreet House Limited,,Bi-Borough Director of Integrated Care,4604.48
26/03/2024,1243445,Broadstreet House Limited,,Bi-Borough Director of Integrated Care,5755.6
01/02/2024,1246286,Brunswick Supported Living,,Bi-Borough Director of Integrated Care,1314.64
29/02/2024,1246286,Brunswick Supported Living,,Bi-Borough Director of Integrated Care,1314.64
26/03/2024,1246286,Brunswick Supported Living,,Bi-Borough Director of Integrated Care,1643.3
11/01/2024,1302645,CENTRE 404,B*Voluntary-Spot-V Dep-Enhanced - do not u,Bi-Borough Director of Integrated Care,820
13/02/2024,1302645,CENTRE 404,B*Voluntary-Spot-V Dep-Enhanced - do not u,Bi-Borough Director of Integrated Care,1025
19/03/2024,1302645,CENTRE 404,B*Voluntary-Spot-V Dep-Enhanced - do not u,Bi-Borough Director of Integrated Care,820
01/02/2024,1244092,Cambrian Learning Disabilities Ltd,,Bi-Borough Director of Integrated Care,7008.12
29/02/2024,1244092,Cambrian Learning Disabilities Ltd,,Bi-Borough Director of Integrated Care,7008.12
26/03/2024,1244092,Cambrian Learning Disabilities Ltd,,Bi-Borough Director of Integrated Care,8760.15
01/02/2024,1246321,Camphill Village Trust,,Bi-Borough Director of Integrated Care,11358.4
29/02/2024,1246321,Camphill Village Trust,,Bi-Borough Director of Integrated Care,7180
26/03/2024,1246321,Camphill Village Trust,,Bi-Borough Director of Integrated Care,8975
01/02/2024,1311552,Camphill Village Trust Ltd,,Bi-Borough Director of Integrated Care,5846.92
29/02/2024,1311552,Camphill Village Trust Ltd,,Bi-Borough Director of Integrated Care,5846.92
26/03/2024,1311552,Camphill Village Trust Ltd,,Bi-Borough Director of Integrated Care,7308.65
01/02/2024,1246324,Candour Care Services (Broadview),,Bi-Borough Director of Integrated Care,7434.92
29/02/2024,1246324,Candour Care Services (Broadview),,Bi-Borough Director of Integrated Care,7434.92
26/03/2024,1246324,Candour Care Services (Broadview),,Bi-Borough Director of Integrated Care,9293.65
01/02/2024,1246327,Canterbury Oast Trust Ltd,,Bi-Borough Director of Integrated Care,1346.8
29/02/2024,1246327,Canterbury Oast Trust Ltd,,Bi-Borough Director of Integrated Care,1346.8
26/03/2024,1246327,Canterbury Oast Trust Ltd,,Bi-Borough Director of Integrated Care,1683.5
16/01/2024,1245091,Care UK Community Partnerships Ltd,,Bi-Borough Director of Integrated Care,3602.52
14/02/2024,1245091,Care UK Community Partnerships Ltd,,Bi-Borough Director of Integrated Care,3602.52
14/03/2024,1245091,Care UK Community Partnerships Ltd,,Bi-Borough Director of Integrated Care,3602.52
01/02/2024,1246339,Caretech Community Services Ltd,,Bi-Borough Director of Integrated Care,7505.68
01/02/2024,1246339,Caretech Community Services Ltd,,Bi-Borough Director of Integrated Care,5182.28
29/02/2024,1246339,Caretech Community Services Ltd,,Bi-Borough Director of Integrated Care,5182.28
29/02/2024,1246339,Caretech Community Services Ltd,,Bi-Borough Director of Integrated Care,7505.68
26/03/2024,1246339,Caretech Community Services Ltd,,Bi-Borough Director of Integrated Care,9382.1
26/03/2024,1246339,Caretech Community Services Ltd,,Bi-Borough Director of Integrated Care,6477.85
01/02/2024,1276470,Certitude (Support for Living),,Bi-Borough Director of Integrated Care,12988.04
01/02/2024,1276470,Certitude (Support for Living),,Bi-Borough Director of Integrated Care,5372.08
01/02/2024,1276470,Certitude (Support for Living),,Bi-Borough Director of Integrated Care,8381.96
01/02/2024,1276470,Certitude (Support for Living),,Bi-Borough Director of Integrated Care,13160.76
01/02/2024,1276470,Certitude (Support for Living),,Bi-Borough Director of Integrated Care,4489.32
01/02/2024,1276470,Certitude (Support for Living),,Bi-Borough Director of Integrated Care,6335.48
01/02/2024,1276470,Certitude (Support for Living),,Bi-Borough Director of Integrated Care,4256.92
01/02/2024,1276470,Certitude (Support for Living),,Bi-Borough Director of Integrated Care,5819.48
01/02/2024,1276470,Certitude (Support for Living),,Bi-Borough Director of Integrated Care,17243.52
29/02/2024,1276470,Certitude (Support for Living),,Bi-Borough Director of Integrated Care,5372.08
29/02/2024,1276470,Certitude (Support for Living),,Bi-Borough Director of Integrated Care,4489.32
29/02/2024,1276470,Certitude (Support for Living),,Bi-Borough Director of Integrated Care,6335.48
29/02/2024,1276470,Certitude (Support for Living),,Bi-Borough Director of Integrated Care,12988.04
29/02/2024,1276470,Certitude (Support for Living),,Bi-Borough Director of Integrated Care,4256.92
29/02/2024,1276470,Certitude (Support for Living),,Bi-Borough Director of Integrated Care,5819.48
29/02/2024,1276470,Certitude (Support for Living),,Bi-Borough Director of Integrated Care,8381.96
29/02/2024,1276470,Certitude (Support for Living),,Bi-Borough Director of Integrated Care,13160.76
29/02/2024,1276470,Certitude (Support for Living),,Bi-Borough Director of Integrated Care,17243.52
26/03/2024,1276470,Certitude (Support for Living),,Bi-Borough Director of Integrated Care,7274.35
26/03/2024,1276470,Certitude (Support for Living),,Bi-Borough Director of Integrated Care,5321.15
26/03/2024,1276470,Certitude (Support for Living),,Bi-Borough Director of Integrated Care,21554.4
26/03/2024,1276470,Certitude (Support for Living),,Bi-Borough Director of Integrated Care,16235.05
26/03/2024,1276470,Certitude (Support for Living),,Bi-Borough Director of Integrated Care,10477.45
26/03/2024,1276470,Certitude (Support for Living),,Bi-Borough Director of Integrated Care,16450.95
26/03/2024,1276470,Certitude (Support for Living),,Bi-Borough Director of Integrated Care,6715.1
26/03/2024,1276470,Certitude (Support for Living),,Bi-Borough Director of Integrated Care,5611.65
26/03/2024,1276470,Certitude (Support for Living),,Bi-Borough Director of Integrated Care,7919.35
01/02/2024,1293636,Choice Support,,Bi-Borough Director of Integrated Care,9703.06
01/02/2024,1293636,Choice Support,,Bi-Borough Director of Integrated Care,4812
01/02/2024,1293636,Choice Support,,Bi-Borough Director of Integrated Care,685.52
29/02/2024,1293636,Choice Support,,Bi-Borough Director of Integrated Care,685.52
29/02/2024,1293636,Choice Support,,Bi-Borough Director of Integrated Care,4812
29/02/2024,1293636,Choice Support,,Bi-Borough Director of Integrated Care,11944.86
26/03/2024,1293636,Choice Support,,Bi-Borough Director of Integrated Care,11728.5
26/03/2024,1293636,Choice Support,,Bi-Borough Director of Integrated Care,6015
26/03/2024,1293636,Choice Support,,Bi-Borough Director of Integrated Care,856.9
01/02/2024,1243458,Cocklebury Farmhouse Homes Ltd,,Bi-Borough Director of Integrated Care,6681.6
01/02/2024,1243458,Cocklebury Farmhouse Homes Ltd,,Bi-Borough Director of Integrated Care,5942.4
01/02/2024,1243458,Cocklebury Farmhouse Homes Ltd,,Bi-Borough Director of Integrated Care,8433.6
01/02/2024,1243458,Cocklebury Farmhouse Homes Ltd,,Bi-Borough Director of Integrated Care,6641.6
01/02/2024,1243458,Cocklebury Farmhouse Homes Ltd,,Bi-Borough Director of Integrated Care,7689.6
29/02/2024,1243458,Cocklebury Farmhouse Homes Ltd,,Bi-Borough Director of Integrated Care,6641.6
29/02/2024,1243458,Cocklebury Farmhouse Homes Ltd,,Bi-Borough Director of Integrated Care,7689.6
29/02/2024,1243458,Cocklebury Farmhouse Homes Ltd,,Bi-Borough Director of Integrated Care,5942.4
29/02/2024,1243458,Cocklebury Farmhouse Homes Ltd,,Bi-Borough Director of Integrated Care,8433.6
29/02/2024,1243458,Cocklebury Farmhouse Homes Ltd,,Bi-Borough Director of Integrated Care,6681.6
26/03/2024,1243458,Cocklebury Farmhouse Homes Ltd,,Bi-Borough Director of Integrated Care,7428
26/03/2024,1243458,Cocklebury Farmhouse Homes Ltd,,Bi-Borough Director of Integrated Care,10542
26/03/2024,1243458,Cocklebury Farmhouse Homes Ltd,,Bi-Borough Director of Integrated Care,8352
26/03/2024,1243458,Cocklebury Farmhouse Homes Ltd,,Bi-Borough Director of Integrated Care,8302
26/03/2024,1243458,Cocklebury Farmhouse Homes Ltd,,Bi-Borough Director of Integrated Care,9612
11/01/2024,1246600,Community Focus Inclusive Arts,B*Voluntary-Spot-V Dep-Enhanced - do not u,Bi-Borough Director of Integrated Care,1180
01/02/2024,1280687,Community Integrated Care,,Bi-Borough Director of Integrated Care,11565.24
01/02/2024,1280687,Community Integrated Care,,Bi-Borough Director of Integrated Care,11576.36
01/02/2024,1280687,Community Integrated Care,,Bi-Borough Director of Integrated Care,8456.48
01/02/2024,1280687,Community Integrated Care,,Bi-Borough Director of Integrated Care,11576.36
01/02/2024,1280687,Community Integrated Care,,Bi-Borough Director of Integrated Care,11565.24
01/02/2024,1280687,Community Integrated Care,,Bi-Borough Director of Integrated Care,11025.44
01/02/2024,1280687,Community Integrated Care,,Bi-Borough Director of Integrated Care,6845.2
09/02/2024,1280687,Community Integrated Care,,Bi-Borough Director of Integrated Care,17136.52
29/02/2024,1280687,Community Integrated Care,,Bi-Borough Director of Integrated Care,6845.2
29/02/2024,1280687,Community Integrated Care,,Bi-Borough Director of Integrated Care,11576.36
29/02/2024,1280687,Community Integrated Care,,Bi-Borough Director of Integrated Care,8456.48
29/02/2024,1280687,Community Integrated Care,,Bi-Borough Director of Integrated Care,11576.36
29/02/2024,1280687,Community Integrated Care,,Bi-Borough Director of Integrated Care,11565.24
29/02/2024,1280687,Community Integrated Care,,Bi-Borough Director of Integrated Care,11565.24
07/03/2024,1280687,Community Integrated Care,,Bi-Borough Director of Integrated Care,538.32
26/03/2024,1280687,Community Integrated Care,,Bi-Borough Director of Integrated Care,14456.55
26/03/2024,1280687,Community Integrated Care,,Bi-Borough Director of Integrated Care,14470.45
26/03/2024,1280687,Community Integrated Care,,Bi-Borough Director of Integrated Care,10839.64
26/03/2024,1280687,Community Integrated Care,,Bi-Borough Director of Integrated Care,14470.45
26/03/2024,1280687,Community Integrated Care,,Bi-Borough Director of Integrated Care,14456.55
26/03/2024,1280687,Community Integrated Care,,Bi-Borough Director of Integrated Care,8556.5
01/02/2024,1243470,Downing (Chertsey Road) Ltd,,Bi-Borough Director of Integrated Care,5971.2
29/02/2024,1243470,Downing (Chertsey Road) Ltd,,Bi-Borough Director of Integrated Care,5971.2
26/03/2024,1243470,Downing (Chertsey Road) Ltd,,Bi-Borough Director of Integrated Care,7464
01/02/2024,1247651,ELYSIUM CARE PARTNERSHIPS LIMITED,,Bi-Borough Director of Integrated Care,9567.2
29/02/2024,1247651,ELYSIUM CARE PARTNERSHIPS LIMITED,,Bi-Borough Director of Integrated Care,9567.2
26/03/2024,1247651,ELYSIUM CARE PARTNERSHIPS LIMITED,,Bi-Borough Director of Integrated Care,11959
01/02/2024,1245108,Elysium Healthcare No 2 Ltd,,Bi-Borough Director of Integrated Care,9995.36
29/02/2024,1245108,Elysium Healthcare No 2 Ltd,,Bi-Borough Director of Integrated Care,9995.36
26/03/2024,1245108,Elysium Healthcare No 2 Ltd,,Bi-Borough Director of Integrated Care,12494.2
09/02/2024,1246934,Equal People Mencap (Kensington &,B*Voluntary-Spot-V Dep-Enhanced - do not u,Bi-Borough Director of Integrated Care,836
09/02/2024,1246934,Equal People Mencap (Kensington &,B*Voluntary-Spot-V Dep-Enhanced - do not u,Bi-Borough Director of Integrated Care,513
12/03/2024,1246934,Equal People Mencap (Kensington &,B*Voluntary-Spot-V Dep-Enhanced - do not u,Bi-Borough Director of Integrated Care,836
26/03/2024,1245110,Eric Patrick Care Ltd,,Bi-Borough Director of Integrated Care,5103
16/01/2024,1259597,Ethica Services LTD,,Bi-Borough Director of Integrated Care,4495.14
06/02/2024,1259597,Ethica Services LTD,,Bi-Borough Director of Integrated Care,4668.03
05/03/2024,1259597,Ethica Services LTD,,Bi-Borough Director of Integrated Care,1450.36
05/03/2024,1259597,Ethica Services LTD,,Bi-Borough Director of Integrated Care,633.93
25/01/2024,1252498,Field Court Chambers,Legal Costs,Bi-Borough Director of Integrated Care,1750
01/02/2024,1243483,Greenview Healthcare Ltd,,Bi-Borough Director of Integrated Care,2504.6
09/02/2024,1243483,Greenview Healthcare Ltd,,Bi-Borough Director of Integrated Care,8942
29/02/2024,1243483,Greenview Healthcare Ltd,,Bi-Borough Director of Integrated Care,4471
29/02/2024,1243483,Greenview Healthcare Ltd,,Bi-Borough Director of Integrated Care,2504.6
26/03/2024,1243483,Greenview Healthcare Ltd,,Bi-Borough Director of Integrated Care,3130.75
26/03/2024,1243483,Greenview Healthcare Ltd,,Bi-Borough Director of Integrated Care,5588.75
01/02/2024,1243485,Grove Care Partnership Ltd,,Bi-Borough Director of Integrated Care,10431.04
29/02/2024,1243485,Grove Care Partnership Ltd,,Bi-Borough Director of Integrated Care,10431.04
26/03/2024,1243485,Grove Care Partnership Ltd,,Bi-Borough Director of Integrated Care,13038.8
01/02/2024,1258503,Guyatt House Care Limited,,Bi-Borough Director of Integrated Care,7557.16
29/02/2024,1258503,Guyatt House Care Limited,,Bi-Borough Director of Integrated Care,7557.16
26/03/2024,1258503,Guyatt House Care Limited,,Bi-Borough Director of Integrated Care,9446.45
02/01/2024,1244531,HCP Staffing Services Ltd,,Bi-Borough Director of Integrated Care,717.88
02/01/2024,1244531,HCP Staffing Services Ltd,,Bi-Borough Director of Integrated Care,717.88
02/01/2024,1244531,HCP Staffing Services Ltd,,Bi-Borough Director of Integrated Care,717.88
09/01/2024,1244531,HCP Staffing Services Ltd,,Bi-Borough Director of Integrated Care,936.36
19/01/2024,1244531,HCP Staffing Services Ltd,,Bi-Borough Director of Integrated Care,717.88
02/02/2024,1244531,HCP Staffing Services Ltd,,Bi-Borough Director of Integrated Care,717.88
02/02/2024,1244531,HCP Staffing Services Ltd,,Bi-Borough Director of Integrated Care,717.88
09/02/2024,1244531,HCP Staffing Services Ltd,,Bi-Borough Director of Integrated Care,717.88
20/02/2024,1244531,HCP Staffing Services Ltd,,Bi-Borough Director of Integrated Care,717.88
21/02/2024,1244531,HCP Staffing Services Ltd,,Bi-Borough Director of Integrated Care,717.88
07/03/2024,1244531,HCP Staffing Services Ltd,,Bi-Borough Director of Integrated Care,717.88
07/03/2024,1244531,HCP Staffing Services Ltd,,Bi-Borough Director of Integrated Care,717.88
19/03/2024,1244531,HCP Staffing Services Ltd,,Bi-Borough Director of Integrated Care,717.88
27/03/2024,1244531,HCP Staffing Services Ltd,,Bi-Borough Director of Integrated Care,717.88
01/02/2024,1244549,HF Trust Ltd,,Bi-Borough Director of Integrated Care,3900.64
01/02/2024,1244549,HF Trust Ltd,,Bi-Borough Director of Integrated Care,15117.84
29/02/2024,1244549,HF Trust Ltd,,Bi-Borough Director of Integrated Care,14920.63
29/02/2024,1244549,HF Trust Ltd,,Bi-Borough Director of Integrated Care,15117.84
26/03/2024,1244549,HF Trust Ltd,,Bi-Borough Director of Integrated Care,12153.15
26/03/2024,1244549,HF Trust Ltd,,Bi-Borough Director of Integrated Care,18897.3
01/02/2024,1244515,Hampshire Autistic Society,,Bi-Borough Director of Integrated Care,9411.32
29/02/2024,1244515,Hampshire Autistic Society,,Bi-Borough Director of Integrated Care,9411.32
26/03/2024,1244515,Hampshire Autistic Society,,Bi-Borough Director of Integrated Care,11764.15
01/02/2024,1243490,Haydon Park Lodge Ltd,,Bi-Borough Director of Integrated Care,6780
29/02/2024,1243490,Haydon Park Lodge Ltd,,Bi-Borough Director of Integrated Care,6780
26/03/2024,1243490,Haydon Park Lodge Ltd,,Bi-Borough Director of Integrated Care,8475
01/02/2024,1260257,Hazel Homes for Autism Ltd,,Bi-Borough Director of Integrated Care,14885.24
29/02/2024,1260257,Hazel Homes for Autism Ltd,,Bi-Borough Director of Integrated Care,14885.24
26/03/2024,1260257,Hazel Homes for Autism Ltd,,Bi-Borough Director of Integrated Care,18606.55
19/01/2024,1247257,Health Vision Uk,,Bi-Borough Director of Integrated Care,557.83
02/02/2024,1247257,Health Vision Uk,,Bi-Borough Director of Integrated Care,586.81
01/02/2024,1245125,Heathcotes (Southern) Ltd,,Bi-Borough Director of Integrated Care,13286.16
29/02/2024,1245125,Heathcotes (Southern) Ltd,,Bi-Borough Director of Integrated Care,13286.16
26/03/2024,1245125,Heathcotes (Southern) Ltd,,Bi-Borough Director of Integrated Care,16607.7
22/01/2024,1254857,Hope Care Agency,,Bi-Borough Director of Integrated Care,2151.52
22/01/2024,1254857,Hope Care Agency,,Bi-Borough Director of Integrated Care,2151.52
22/01/2024,1254857,Hope Care Agency,,Bi-Borough Director of Integrated Care,17750.04
22/01/2024,1254857,Hope Care Agency,,Bi-Borough Director of Integrated Care,4303.04
01/03/2024,1254857,Hope Care Agency,,Bi-Borough Director of Integrated Care,2151.52
01/03/2024,1254857,Hope Care Agency,,Bi-Borough Director of Integrated Care,2151.52
01/03/2024,1254857,Hope Care Agency,,Bi-Borough Director of Integrated Care,4303.04
01/03/2024,1254857,Hope Care Agency,,Bi-Borough Director of Integrated Care,17750.04
05/03/2024,1254857,Hope Care Agency,,Bi-Borough Director of Integrated Care,4303.04
05/03/2024,1254857,Hope Care Agency,,Bi-Borough Director of Integrated Care,17750.04
26/03/2024,1254857,Hope Care Agency,,Bi-Borough Director of Integrated Care,17750.04
26/03/2024,1254857,Hope Care Agency,,Bi-Borough Director of Integrated Care,4303.04
26/03/2024,1254857,Hope Care Agency,,Bi-Borough Director of Integrated Care,2151.52
26/03/2024,1254857,Hope Care Agency,,Bi-Borough Director of Integrated Care,2151.52
01/02/2024,1267460,Hunters Lodge Care Home,,Bi-Borough Director of Integrated Care,3930.64
29/02/2024,1267460,Hunters Lodge Care Home,,Bi-Borough Director of Integrated Care,3930.64
26/03/2024,1267460,Hunters Lodge Care Home,,Bi-Borough Director of Integrated Care,4913.3
17/01/2024,1247325,In Deep Community Task Force,,Bi-Borough Director of Integrated Care,24974
02/01/2024,1247526,Integrity Care and Support Ltd,B*Voluntary-Spot-V Dep-Enhanced - do not u,Bi-Borough Director of Integrated Care,511.44
11/01/2024,1247526,Integrity Care and Support Ltd,B*Voluntary-Spot-V Dep-Enhanced - do not u,Bi-Borough Director of Integrated Care,1083.84
11/01/2024,1247526,Integrity Care and Support Ltd,B*Voluntary-Spot-V Dep-Enhanced - do not u,Bi-Borough Director of Integrated Care,1896.72
11/01/2024,1247526,Integrity Care and Support Ltd,B*Voluntary-Spot-V Dep-Enhanced - do not u,Bi-Borough Director of Integrated Care,2303.16
11/01/2024,1247526,Integrity Care and Support Ltd,B*Voluntary-Spot-V Dep-Enhanced - do not u,Bi-Borough Director of Integrated Care,1219.32
11/01/2024,1247526,Integrity Care and Support Ltd,B*Voluntary-Spot-V Dep-Enhanced - do not u,Bi-Borough Director of Integrated Care,790.3
11/01/2024,1247526,Integrity Care and Support Ltd,B*Voluntary-Spot-V Dep-Enhanced - do not u,Bi-Borough Director of Integrated Care,722.56
11/01/2024,1247526,Integrity Care and Support Ltd,B*Voluntary-Spot-V Dep-Enhanced - do not u,Bi-Borough Director of Integrated Care,587.08
11/01/2024,1247526,Integrity Care and Support Ltd,B*Voluntary-Spot-V Dep-Enhanced - do not u,Bi-Borough Director of Integrated Care,1625.76
11/01/2024,1247526,Integrity Care and Support Ltd,B*Voluntary-Spot-V Dep-Enhanced - do not u,Bi-Borough Director of Integrated Care,1061.26
11/01/2024,1247526,Integrity Care and Support Ltd,B*Voluntary-Spot-V Dep-Enhanced - do not u,Bi-Borough Director of Integrated Care,812.88
11/01/2024,1247526,Integrity Care and Support Ltd,B*Voluntary-Spot-V Dep-Enhanced - do not u,Bi-Borough Director of Integrated Care,1941.88
11/01/2024,1247526,Integrity Care and Support Ltd,B*Voluntary-Spot-V Dep-Enhanced - do not u,Bi-Borough Director of Integrated Care,903.2
11/01/2024,1247526,Integrity Care and Support Ltd,B*Voluntary-Spot-V Dep-Enhanced - do not u,Bi-Borough Director of Integrated Care,1851.56
11/01/2024,1247526,Integrity Care and Support Ltd,B*Voluntary-Spot-V Dep-Enhanced - do not u,Bi-Borough Director of Integrated Care,632.24
11/01/2024,1247526,Integrity Care and Support Ltd,B*Voluntary-Spot-V Dep-Enhanced - do not u,Bi-Borough Director of Integrated Care,1366.09
19/01/2024,1247526,Integrity Care and Support Ltd,B*Voluntary-Spot-V Dep-Enhanced - do not u,Bi-Borough Director of Integrated Care,1628.87
19/01/2024,1247526,Integrity Care and Support Ltd,B*Voluntary-Spot-V Dep-Enhanced - do not u,Bi-Borough Director of Integrated Care,1022.88
02/02/2024,1247526,Integrity Care and Support Ltd,B*Voluntary-Spot-V Dep-Enhanced - do not u,Bi-Borough Director of Integrated Care,1016.1
02/02/2024,1247526,Integrity Care and Support Ltd,B*Voluntary-Spot-V Dep-Enhanced - do not u,Bi-Borough Director of Integrated Care,1083.84
02/02/2024,1247526,Integrity Care and Support Ltd,B*Voluntary-Spot-V Dep-Enhanced - do not u,Bi-Borough Director of Integrated Care,1377.38
02/02/2024,1247526,Integrity Care and Support Ltd,B*Voluntary-Spot-V Dep-Enhanced - do not u,Bi-Borough Director of Integrated Care,1174.16
02/02/2024,1247526,Integrity Care and Support Ltd,B*Voluntary-Spot-V Dep-Enhanced - do not u,Bi-Borough Director of Integrated Care,722.56
02/02/2024,1247526,Integrity Care and Support Ltd,B*Voluntary-Spot-V Dep-Enhanced - do not u,Bi-Borough Director of Integrated Care,1896.72
02/02/2024,1247526,Integrity Care and Support Ltd,B*Voluntary-Spot-V Dep-Enhanced - do not u,Bi-Borough Director of Integrated Care,1106.42
02/02/2024,1247526,Integrity Care and Support Ltd,B*Voluntary-Spot-V Dep-Enhanced - do not u,Bi-Borough Director of Integrated Care,2167.68
02/02/2024,1247526,Integrity Care and Support Ltd,B*Voluntary-Spot-V Dep-Enhanced - do not u,Bi-Borough Director of Integrated Care,1320.93
02/02/2024,1247526,Integrity Care and Support Ltd,B*Voluntary-Spot-V Dep-Enhanced - do not u,Bi-Borough Director of Integrated Care,1038.68
02/02/2024,1247526,Integrity Care and Support Ltd,B*Voluntary-Spot-V Dep-Enhanced - do not u,Bi-Borough Director of Integrated Care,745.14
02/02/2024,1247526,Integrity Care and Support Ltd,B*Voluntary-Spot-V Dep-Enhanced - do not u,Bi-Borough Director of Integrated Care,1106.42
02/02/2024,1247526,Integrity Care and Support Ltd,B*Voluntary-Spot-V Dep-Enhanced - do not u,Bi-Borough Director of Integrated Care,699.98
02/02/2024,1247526,Integrity Care and Support Ltd,B*Voluntary-Spot-V Dep-Enhanced - do not u,Bi-Borough Director of Integrated Care,824.17
21/02/2024,1247526,Integrity Care and Support Ltd,B*Voluntary-Spot-V Dep-Enhanced - do not u,Bi-Borough Director of Integrated Care,632.24
21/02/2024,1247526,Integrity Care and Support Ltd,B*Voluntary-Spot-V Dep-Enhanced - do not u,Bi-Borough Director of Integrated Care,1467.7
21/02/2024,1247526,Integrity Care and Support Ltd,B*Voluntary-Spot-V Dep-Enhanced - do not u,Bi-Borough Director of Integrated Care,541.92
21/02/2024,1247526,Integrity Care and Support Ltd,B*Voluntary-Spot-V Dep-Enhanced - do not u,Bi-Borough Director of Integrated Care,1061.26
21/02/2024,1247526,Integrity Care and Support Ltd,B*Voluntary-Spot-V Dep-Enhanced - do not u,Bi-Borough Director of Integrated Care,812.88
21/02/2024,1247526,Integrity Care and Support Ltd,B*Voluntary-Spot-V Dep-Enhanced - do not u,Bi-Borough Director of Integrated Care,2105.6
21/02/2024,1247526,Integrity Care and Support Ltd,B*Voluntary-Spot-V Dep-Enhanced - do not u,Bi-Borough Director of Integrated Care,1219.32
21/02/2024,1247526,Integrity Care and Support Ltd,B*Voluntary-Spot-V Dep-Enhanced - do not u,Bi-Borough Director of Integrated Care,790.3
21/02/2024,1247526,Integrity Care and Support Ltd,B*Voluntary-Spot-V Dep-Enhanced - do not u,Bi-Borough Director of Integrated Care,1716.08
21/02/2024,1247526,Integrity Care and Support Ltd,B*Voluntary-Spot-V Dep-Enhanced - do not u,Bi-Borough Director of Integrated Care,1603.18
21/02/2024,1247526,Integrity Care and Support Ltd,B*Voluntary-Spot-V Dep-Enhanced - do not u,Bi-Borough Director of Integrated Care,4606.32
21/02/2024,1247526,Integrity Care and Support Ltd,B*Voluntary-Spot-V Dep-Enhanced - do not u,Bi-Borough Director of Integrated Care,948.36
21/02/2024,1247526,Integrity Care and Support Ltd,B*Voluntary-Spot-V Dep-Enhanced - do not u,Bi-Borough Director of Integrated Care,1061.26
21/02/2024,1247526,Integrity Care and Support Ltd,B*Voluntary-Spot-V Dep-Enhanced - do not u,Bi-Borough Director of Integrated Care,812.88
21/02/2024,1247526,Integrity Care and Support Ltd,B*Voluntary-Spot-V Dep-Enhanced - do not u,Bi-Borough Director of Integrated Care,1693.5
21/02/2024,1247526,Integrity Care and Support Ltd,B*Voluntary-Spot-V Dep-Enhanced - do not u,Bi-Borough Director of Integrated Care,1716.08
18/03/2024,1247526,Integrity Care and Support Ltd,B*Voluntary-Spot-V Dep-Enhanced - do not u,Bi-Borough Director of Integrated Care,1512.86
18/03/2024,1247526,Integrity Care and Support Ltd,B*Voluntary-Spot-V Dep-Enhanced - do not u,Bi-Borough Director of Integrated Care,790.3
18/03/2024,1247526,Integrity Care and Support Ltd,B*Voluntary-Spot-V Dep-Enhanced - do not u,Bi-Borough Director of Integrated Care,1580.6
18/03/2024,1247526,Integrity Care and Support Ltd,B*Voluntary-Spot-V Dep-Enhanced - do not u,Bi-Borough Director of Integrated Care,1964.46
18/03/2024,1247526,Integrity Care and Support Ltd,B*Voluntary-Spot-V Dep-Enhanced - do not u,Bi-Borough Director of Integrated Care,587.08
18/03/2024,1247526,Integrity Care and Support Ltd,B*Voluntary-Spot-V Dep-Enhanced - do not u,Bi-Borough Director of Integrated Care,1038.68
18/03/2024,1247526,Integrity Care and Support Ltd,B*Voluntary-Spot-V Dep-Enhanced - do not u,Bi-Borough Director of Integrated Care,812.88
18/03/2024,1247526,Integrity Care and Support Ltd,B*Voluntary-Spot-V Dep-Enhanced - do not u,Bi-Borough Director of Integrated Care,1354.8
18/03/2024,1247526,Integrity Care and Support Ltd,B*Voluntary-Spot-V Dep-Enhanced - do not u,Bi-Borough Director of Integrated Care,1941.88
18/03/2024,1247526,Integrity Care and Support Ltd,B*Voluntary-Spot-V Dep-Enhanced - do not u,Bi-Borough Director of Integrated Care,2303.16
18/03/2024,1247526,Integrity Care and Support Ltd,B*Voluntary-Spot-V Dep-Enhanced - do not u,Bi-Borough Director of Integrated Care,654.82
18/03/2024,1247526,Integrity Care and Support Ltd,B*Voluntary-Spot-V Dep-Enhanced - do not u,Bi-Borough Director of Integrated Care,541.92
18/03/2024,1247526,Integrity Care and Support Ltd,B*Voluntary-Spot-V Dep-Enhanced - do not u,Bi-Borough Director of Integrated Care,541.92
18/03/2024,1247526,Integrity Care and Support Ltd,B*Voluntary-Spot-V Dep-Enhanced - do not u,Bi-Borough Director of Integrated Care,1670.92
18/03/2024,1247526,Integrity Care and Support Ltd,B*Voluntary-Spot-V Dep-Enhanced - do not u,Bi-Borough Director of Integrated Care,587.08
18/03/2024,1247526,Integrity Care and Support Ltd,B*Voluntary-Spot-V Dep-Enhanced - do not u,Bi-Borough Director of Integrated Care,869.33
18/03/2024,1247526,Integrity Care and Support Ltd,B*Voluntary-Spot-V Dep-Enhanced - do not u,Bi-Borough Director of Integrated Care,1083.84
19/03/2024,1247526,Integrity Care and Support Ltd,B*Voluntary-Spot-V Dep-Enhanced - do not u,Bi-Borough Director of Integrated Care,767.16
08/01/2024,1256893,Kapital Care WCC,,Bi-Borough Director of Integrated Care,1652.34
31/01/2024,1256893,Kapital Care WCC,,Bi-Borough Director of Integrated Care,1613.92
07/03/2024,1256893,Kapital Care WCC,,Bi-Borough Director of Integrated Care,1613.92
01/02/2024,1247598,Kisimul Group Ltd,,Bi-Borough Director of Integrated Care,16757.4
29/02/2024,1247598,Kisimul Group Ltd,,Bi-Borough Director of Integrated Care,16757.4
26/03/2024,1247598,Kisimul Group Ltd,,Bi-Borough Director of Integrated Care,20946.75
16/01/2024,1243535,LIAISE (LONDON) LIMITED,,Bi-Borough Director of Integrated Care,11002.88
16/01/2024,1243535,LIAISE (LONDON) LIMITED,,Bi-Borough Director of Integrated Care,15032.8
16/01/2024,1243535,LIAISE (LONDON) LIMITED,,Bi-Borough Director of Integrated Care,19107.92
01/02/2024,1243535,LIAISE (LONDON) LIMITED,,Bi-Borough Director of Integrated Care,15032.8
01/02/2024,1243535,LIAISE (LONDON) LIMITED,,Bi-Borough Director of Integrated Care,19107.92
01/02/2024,1243535,LIAISE (LONDON) LIMITED,,Bi-Borough Director of Integrated Care,11002.88
07/03/2024,1243535,LIAISE (LONDON) LIMITED,,Bi-Borough Director of Integrated Care,11002.88
07/03/2024,1243535,LIAISE (LONDON) LIMITED,,Bi-Borough Director of Integrated Care,15032.8
07/03/2024,1243535,LIAISE (LONDON) LIMITED,,Bi-Borough Director of Integrated Care,19107.92
26/03/2024,1243535,LIAISE (LONDON) LIMITED,,Bi-Borough Director of Integrated Care,18791
26/03/2024,1243535,LIAISE (LONDON) LIMITED,,Bi-Borough Director of Integrated Care,23884.9
26/03/2024,1243535,LIAISE (LONDON) LIMITED,,Bi-Borough Director of Integrated Care,13753.6
02/01/2024,1310068,Learning Disability Network London,Rent,Bi-Borough Director of Integrated Care,18497.8
31/01/2024,1310068,Learning Disability Network London,,Bi-Borough Director of Integrated Care,1006.48
31/01/2024,1310068,Learning Disability Network London,,Bi-Borough Director of Integrated Care,1662.88
28/02/2024,1310068,Learning Disability Network London,Hire of Accommodation and Facilities,Bi-Borough Director of Integrated Care,16833.07
28/02/2024,1310068,Learning Disability Network London,Rent,Bi-Borough Director of Integrated Care,15356.99
29/02/2024,1310068,Learning Disability Network London,,Bi-Borough Director of Integrated Care,1006.48
29/02/2024,1310068,Learning Disability Network London,,Bi-Borough Director of Integrated Care,1662.88
12/03/2024,1310068,Learning Disability Network London,Rent,Bi-Borough Director of Integrated Care,13879.57
19/03/2024,1310068,Learning Disability Network London,Rent,Bi-Borough Director of Integrated Care,13265
27/03/2024,1310068,Learning Disability Network London,,Bi-Borough Director of Integrated Care,1258.1
27/03/2024,1310068,Learning Disability Network London,,Bi-Borough Director of Integrated Care,2078.6
01/02/2024,1243506,Lifeways Community Care Ltd,,Bi-Borough Director of Integrated Care,13597.72
01/02/2024,1243506,Lifeways Community Care Ltd,,Bi-Borough Director of Integrated Care,8139.04
29/02/2024,1243506,Lifeways Community Care Ltd,,Bi-Borough Director of Integrated Care,8139.04
29/02/2024,1243506,Lifeways Community Care Ltd,,Bi-Borough Director of Integrated Care,13597.72
26/03/2024,1243506,Lifeways Community Care Ltd,,Bi-Borough Director of Integrated Care,16997.15
26/03/2024,1243506,Lifeways Community Care Ltd,,Bi-Borough Director of Integrated Care,10173.8
01/02/2024,1249729,Linden Lodge School,,Bi-Borough Director of Integrated Care,6616
29/02/2024,1249729,Linden Lodge School,,Bi-Borough Director of Integrated Care,6616
26/03/2024,1249729,Linden Lodge School,,Bi-Borough Director of Integrated Care,8270
01/02/2024,1244762,Livability,,Bi-Borough Director of Integrated Care,6600
29/02/2024,1244762,Livability,,Bi-Borough Director of Integrated Care,6600
26/03/2024,1244762,Livability,,Bi-Borough Director of Integrated Care,8250
11/01/2024,1247650,London Care Ltd,,Bi-Borough Director of Integrated Care,848.4
11/01/2024,1247650,London Care Ltd,,Bi-Borough Director of Integrated Care,1781.57
11/01/2024,1247650,London Care Ltd,,Bi-Borough Director of Integrated Care,1445.34
11/01/2024,1247650,London Care Ltd,,Bi-Borough Director of Integrated Care,1028.57
19/01/2024,1247650,London Care Ltd,,Bi-Borough Director of Integrated Care,1085.4
02/02/2024,1247650,London Care Ltd,,Bi-Borough Director of Integrated Care,1171.44
02/02/2024,1247650,London Care Ltd,,Bi-Borough Director of Integrated Care,848.4
02/02/2024,1247650,London Care Ltd,,Bi-Borough Director of Integrated Care,1781.92
02/02/2024,1247650,London Care Ltd,,Bi-Borough Director of Integrated Care,1439.67
02/02/2024,1247650,London Care Ltd,,Bi-Borough Director of Integrated Care,1019.49
28/02/2024,1247650,London Care Ltd,,Bi-Borough Director of Integrated Care,1152.64
26/03/2024,1247650,London Care Ltd,,Bi-Borough Director of Integrated Care,1152.64
01/02/2024,1247656,London Cyrenians Housing Ltd,,Bi-Borough Director of Integrated Care,6320
29/02/2024,1247656,London Cyrenians Housing Ltd,,Bi-Borough Director of Integrated Care,6320
26/03/2024,1247656,London Cyrenians Housing Ltd,,Bi-Borough Director of Integrated Care,7900
24/01/2024,1247846,London Vip Cars,Payments to Transport Operators,Bi-Borough Director of Integrated Care,1470
25/02/2024,1247846,London Vip Cars,Payments to Transport Operators,Bi-Borough Director of Integrated Care,2100
25/03/2024,1247846,London Vip Cars,Payments to Transport Operators,Bi-Borough Director of Integrated Care,1810.4
01/02/2024,1243508,Lukka Care Homes (2010) Ltd T/A,,Bi-Borough Director of Integrated Care,5985.24
29/02/2024,1243508,Lukka Care Homes (2010) Ltd T/A,,Bi-Borough Director of Integrated Care,5985.24
26/03/2024,1243508,Lukka Care Homes (2010) Ltd T/A,,Bi-Borough Director of Integrated Care,7481.55
22/02/2024,1259132,MMR Home Care LTD,,Bi-Borough Director of Integrated Care,1755.35
22/02/2024,1259132,MMR Home Care LTD,,Bi-Borough Director of Integrated Care,1625.61
05/03/2024,1259132,MMR Home Care LTD,,Bi-Borough Director of Integrated Care,2586.2
05/03/2024,1259132,MMR Home Care LTD,,Bi-Borough Director of Integrated Care,2792.6
29/03/2024,1259132,MMR Home Care LTD,,Bi-Borough Director of Integrated Care,2493.4
29/03/2024,1259132,MMR Home Care LTD,,Bi-Borough Director of Integrated Care,2309.1
01/02/2024,1282320,Marcus and Marcus,,Bi-Borough Director of Integrated Care,7298.4
01/02/2024,1282320,Marcus and Marcus,,Bi-Borough Director of Integrated Care,1321.6
29/02/2024,1282320,Marcus and Marcus,,Bi-Borough Director of Integrated Care,7298.4
29/02/2024,1282320,Marcus and Marcus,,Bi-Borough Director of Integrated Care,1321.6
26/03/2024,1282320,Marcus and Marcus,,Bi-Borough Director of Integrated Care,1652
26/03/2024,1282320,Marcus and Marcus,,Bi-Borough Director of Integrated Care,9123
01/02/2024,1245144,Methodist Homes For The Aged,,Bi-Borough Director of Integrated Care,3233.6
29/02/2024,1245144,Methodist Homes For The Aged,,Bi-Borough Director of Integrated Care,3233.6
26/03/2024,1245144,Methodist Homes For The Aged,,Bi-Borough Director of Integrated Care,4042
16/01/2024,1244905,Nas Services Ltd (Residential),,Bi-Borough Director of Integrated Care,9002.92
16/01/2024,1244905,Nas Services Ltd (Residential),,Bi-Borough Director of Integrated Care,13600
16/01/2024,1244905,Nas Services Ltd (Residential),,Bi-Borough Director of Integrated Care,5480
01/02/2024,1244905,Nas Services Ltd (Residential),,Bi-Borough Director of Integrated Care,9002.92
01/02/2024,1244905,Nas Services Ltd (Residential),,Bi-Borough Director of Integrated Care,5480
01/02/2024,1244905,Nas Services Ltd (Residential),,Bi-Borough Director of Integrated Care,13600
29/02/2024,1244905,Nas Services Ltd (Residential),,Bi-Borough Director of Integrated Care,9002.92
29/02/2024,1244905,Nas Services Ltd (Residential),,Bi-Borough Director of Integrated Care,13600
29/02/2024,1244905,Nas Services Ltd (Residential),,Bi-Borough Director of Integrated Care,5480
26/03/2024,1244905,Nas Services Ltd (Residential),,Bi-Borough Director of Integrated Care,11253.65
26/03/2024,1244905,Nas Services Ltd (Residential),,Bi-Borough Director of Integrated Care,17000
26/03/2024,1244905,Nas Services Ltd (Residential),,Bi-Borough Director of Integrated Care,6850
01/02/2024,1282551,Nisacraftcare Limited,,Bi-Borough Director of Integrated Care,10980.04
01/02/2024,1282551,Nisacraftcare Limited,,Bi-Borough Director of Integrated Care,8065.2
01/02/2024,1282551,Nisacraftcare Limited,,Bi-Borough Director of Integrated Care,7635.24
29/02/2024,1282551,Nisacraftcare Limited,,Bi-Borough Director of Integrated Care,8065.2
29/02/2024,1282551,Nisacraftcare Limited,,Bi-Borough Director of Integrated Care,7635.24
29/02/2024,1282551,Nisacraftcare Limited,,Bi-Borough Director of Integrated Care,10980.04
26/03/2024,1282551,Nisacraftcare Limited,,Bi-Borough Director of Integrated Care,9544.05
26/03/2024,1282551,Nisacraftcare Limited,,Bi-Borough Director of Integrated Care,10081.5
26/03/2024,1282551,Nisacraftcare Limited,,Bi-Borough Director of Integrated Care,13725.05
01/02/2024,1247147,Norwood Schools Ltd,,Bi-Borough Director of Integrated Care,5099.76
01/02/2024,1247147,Norwood Schools Ltd,,Bi-Borough Director of Integrated Care,8800
01/02/2024,1247147,Norwood Schools Ltd,,Bi-Borough Director of Integrated Care,13200
01/02/2024,1247147,Norwood Schools Ltd,,Bi-Borough Director of Integrated Care,12264
29/02/2024,1247147,Norwood Schools Ltd,,Bi-Borough Director of Integrated Care,8800
29/02/2024,1247147,Norwood Schools Ltd,,Bi-Borough Director of Integrated Care,13200
29/02/2024,1247147,Norwood Schools Ltd,,Bi-Borough Director of Integrated Care,12264
29/02/2024,1247147,Norwood Schools Ltd,,Bi-Borough Director of Integrated Care,5099.76
26/03/2024,1247147,Norwood Schools Ltd,,Bi-Borough Director of Integrated Care,15330
26/03/2024,1247147,Norwood Schools Ltd,,Bi-Borough Director of Integrated Care,6374.7
26/03/2024,1247147,Norwood Schools Ltd,,Bi-Borough Director of Integrated Care,11000
26/03/2024,1247147,Norwood Schools Ltd,,Bi-Borough Director of Integrated Care,16500
01/02/2024,1273024,Oakland Support Ltd,,Bi-Borough Director of Integrated Care,2070.88
29/02/2024,1273024,Oakland Support Ltd,,Bi-Borough Director of Integrated Care,6277.42
26/03/2024,1273024,Oakland Support Ltd,,Bi-Borough Director of Integrated Care,4206.5
01/02/2024,1243520,Oakview Care (Berkshire) Ltd,,Bi-Borough Director of Integrated Care,7531.68
29/02/2024,1243520,Oakview Care (Berkshire) Ltd,,Bi-Borough Director of Integrated Care,7531.68
26/03/2024,1243520,Oakview Care (Berkshire) Ltd,,Bi-Borough Director of Integrated Care,9414.6
01/02/2024,1243524,Ormsby Lodge,,Bi-Borough Director of Integrated Care,3481.16
01/02/2024,1243524,Ormsby Lodge,,Bi-Borough Director of Integrated Care,936
29/02/2024,1243524,Ormsby Lodge,,Bi-Borough Director of Integrated Care,3481.16
29/02/2024,1243524,Ormsby Lodge,,Bi-Borough Director of Integrated Care,936
26/03/2024,1243524,Ormsby Lodge,,Bi-Borough Director of Integrated Care,4351.45
26/03/2024,1243524,Ormsby Lodge,,Bi-Borough Director of Integrated Care,1170
01/02/2024,1245005,Outlook Care,,Bi-Borough Director of Integrated Care,1744.8
01/02/2024,1245005,Outlook Care,,Bi-Borough Director of Integrated Care,2146.88
01/02/2024,1245005,Outlook Care,,Bi-Borough Director of Integrated Care,2902.96
01/02/2024,1245005,Outlook Care,,Bi-Borough Director of Integrated Care,3370.88
01/02/2024,1245005,Outlook Care,,Bi-Borough Director of Integrated Care,2146.88
01/02/2024,1245005,Outlook Care,,Bi-Borough Director of Integrated Care,1337.68
29/02/2024,1245005,Outlook Care,,Bi-Borough Director of Integrated Care,2902.96
29/02/2024,1245005,Outlook Care,,Bi-Borough Director of Integrated Care,3370.88
29/02/2024,1245005,Outlook Care,,Bi-Borough Director of Integrated Care,2146.88
29/02/2024,1245005,Outlook Care,,Bi-Borough Director of Integrated Care,1744.8
29/02/2024,1245005,Outlook Care,,Bi-Borough Director of Integrated Care,2146.88
29/02/2024,1245005,Outlook Care,,Bi-Borough Director of Integrated Care,1337.68
26/03/2024,1245005,Outlook Care,,Bi-Borough Director of Integrated Care,2683.6
26/03/2024,1245005,Outlook Care,,Bi-Borough Director of Integrated Care,1672.1
26/03/2024,1245005,Outlook Care,,Bi-Borough Director of Integrated Care,2181
26/03/2024,1245005,Outlook Care,,Bi-Borough Director of Integrated Care,2683.6
26/03/2024,1245005,Outlook Care,,Bi-Borough Director of Integrated Care,3628.7
26/03/2024,1245005,Outlook Care,,Bi-Borough Director of Integrated Care,4213.6
26/03/2024,1245005,Outlook Care,,Bi-Borough Director of Integrated Care,2127.68
11/01/2024,1246066,PERSONAL PAYMENTS,Adult Social Care - Other Transfer Pay,Bi-Borough Director of Integrated Care,843.96
11/01/2024,1246066,PERSONAL PAYMENTS,Adult Social Care - Other Transfer Pay,Bi-Borough Director of Integrated Care,1070.52
11/01/2024,1291747,PERSONAL PAYMENTS,Adult Social Care - Other Transfer Pay,Bi-Borough Director of Integrated Care,1406.48
11/01/2024,1250186,PERSONAL PAYMENTS,Adult Social Care - Other Transfer Pay,Bi-Borough Director of Integrated Care,4307.84
11/01/2024,1272570,PERSONAL PAYMENTS,Adult Social Care - Other Transfer Pay,Bi-Borough Director of Integrated Care,1051.24
11/01/2024,1250674,PERSONAL PAYMENTS,Adult Social Care - Other Transfer Pay,Bi-Borough Director of Integrated Care,3347.84
11/01/2024,1250656,PERSONAL PAYMENTS,Adult Social Care - Other Transfer Pay,Bi-Borough Director of Integrated Care,1118.36
11/01/2024,1246066,PERSONAL PAYMENTS,Adult Social Care - Other Transfer Pay,Bi-Borough Director of Integrated Care,1029.88
11/01/2024,1246066,PERSONAL PAYMENTS,Adult Social Care - Other Transfer Pay,Bi-Borough Director of Integrated Care,2452.2
11/01/2024,1246066,PERSONAL PAYMENTS,Adult Social Care - Other Transfer Pay,Bi-Borough Director of Integrated Care,11674.68
11/01/2024,1246066,PERSONAL PAYMENTS,Adult Social Care - Other Transfer Pay,Bi-Borough Director of Integrated Care,1991
11/01/2024,1246066,PERSONAL PAYMENTS,Adult Social Care - Other Transfer Pay,Bi-Borough Director of Integrated Care,2225.08
11/01/2024,1246066,PERSONAL PAYMENTS,Adult Social Care - Other Transfer Pay,Bi-Borough Director of Integrated Care,3166.36
11/01/2024,1246066,PERSONAL PAYMENTS,Adult Social Care - Other Transfer Pay,Bi-Borough Director of Integrated Care,918.96
11/01/2024,1246066,PERSONAL PAYMENTS,Adult Social Care - Other Transfer Pay,Bi-Borough Director of Integrated Care,6713.94
11/01/2024,1291747,PERSONAL PAYMENTS,Adult Social Care - Other Transfer Pay,Bi-Borough Director of Integrated Care,1295.6
11/01/2024,1292106,PERSONAL PAYMENTS,Adult Social Care - Other Transfer Pay,Bi-Borough Director of Integrated Care,1093.6
11/01/2024,1280973,PERSONAL PAYMENTS,Adult Social Care - Other Transfer Pay,Bi-Borough Director of Integrated Care,6394.48
11/01/2024,1246066,PERSONAL PAYMENTS,Adult Social Care - Other Transfer Pay,Bi-Borough Director of Integrated Care,534.44
11/01/2024,1246066,PERSONAL PAYMENTS,Adult Social Care - Other Transfer Pay,Bi-Borough Director of Integrated Care,2690.16
11/01/2024,1246066,PERSONAL PAYMENTS,Adult Social Care - Other Transfer Pay,Bi-Borough Director of Integrated Care,1688.6
11/01/2024,1246066,PERSONAL PAYMENTS,Adult Social Care - Other Transfer Pay,Bi-Borough Director of Integrated Care,5837.52
11/01/2024,1246066,PERSONAL PAYMENTS,Adult Social Care - Other Transfer Pay,Bi-Borough Director of Integrated Care,733.8
11/01/2024,1248073,PERSONAL PAYMENTS,Adult Social Care - Other Transfer Pay,Bi-Borough Director of Integrated Care,640.32
11/01/2024,1268346,PERSONAL PAYMENTS,Adult Social Care - Other Transfer Pay,Bi-Borough Director of Integrated Care,2234.8
11/01/2024,1248804,PERSONAL PAYMENTS,Adult Social Care - Other Transfer Pay,Bi-Borough Director of Integrated Care,2591.11
11/01/2024,1293435,PERSONAL PAYMENTS,Adult Social Care - Other Transfer Pay,Bi-Borough Director of Integrated Care,560
11/01/2024,1291747,PERSONAL PAYMENTS,Adult Social Care - Other Transfer Pay,Bi-Borough Director of Integrated Care,2041.76
11/01/2024,1291747,PERSONAL PAYMENTS,Adult Social Care - Other Transfer Pay,Bi-Borough Director of Integrated Care,1278.6
11/01/2024,1291747,PERSONAL PAYMENTS,Adult Social Care - Other Transfer Pay,Bi-Borough Director of Integrated Care,2599.32
11/01/2024,1250627,PERSONAL PAYMENTS,Adult Social Care - Other Transfer Pay,Bi-Borough Director of Integrated Care,3577.28
11/01/2024,1246066,PERSONAL PAYMENTS,Adult Social Care - Other Transfer Pay,Bi-Borough Director of Integrated Care,858.2
11/01/2024,1246066,PERSONAL PAYMENTS,Adult Social Care - Other Transfer Pay,Bi-Borough Director of Integrated Care,1066.28
11/01/2024,1246066,PERSONAL PAYMENTS,Adult Social Care - Other Transfer Pay,Bi-Borough Director of Integrated Care,3176
11/01/2024,1291747,PERSONAL PAYMENTS,Adult Social Care - Other Transfer Pay,Bi-Borough Director of Integrated Care,1682.52
11/01/2024,1291747,PERSONAL PAYMENTS,Adult Social Care - Other Transfer Pay,Bi-Borough Director of Integrated Care,816
11/01/2024,1247820,PERSONAL PAYMENTS,Adult Social Care - Other Transfer Pay,Bi-Borough Director of Integrated Care,10055.3
11/01/2024,1249942,PERSONAL PAYMENTS,Adult Social Care - Other Transfer Pay,Bi-Borough Director of Integrated Care,7210.56
11/01/2024,1314455,PERSONAL PAYMENTS,Adult Social Care - Other Transfer Pay,Bi-Borough Director of Integrated Care,1714.16
11/01/2024,1248354,PERSONAL PAYMENTS,Adult Social Care - Other Transfer Pay,Bi-Borough Director of Integrated Care,2899.36
11/01/2024,1269674,PERSONAL PAYMENTS,Adult Social Care - Other Transfer Pay,Bi-Borough Director of Integrated Care,999.28
11/01/2024,1250215,PERSONAL PAYMENTS,Adult Social Care - Other Transfer Pay,Bi-Borough Director of Integrated Care,1486.44
11/01/2024,1246066,PERSONAL PAYMENTS,Adult Social Care - Other Transfer Pay,Bi-Borough Director of Integrated Care,5914.56
11/01/2024,1246066,PERSONAL PAYMENTS,Adult Social Care - Other Transfer Pay,Bi-Borough Director of Integrated Care,5754.04
11/01/2024,1254540,PERSONAL PAYMENTS,Adult Social Care - Other Transfer Pay,Bi-Borough Director of Integrated Care,939.92
11/01/2024,1246066,PERSONAL PAYMENTS,Adult Social Care - Other Transfer Pay,Bi-Borough Director of Integrated Care,8591.09
11/01/2024,1291747,PERSONAL PAYMENTS,Adult Social Care - Other Transfer Pay,Bi-Borough Director of Integrated Care,1480.36
11/01/2024,1250037,PERSONAL PAYMENTS,Adult Social Care - Other Transfer Pay,Bi-Borough Director of Integrated Care,2727.68
11/01/2024,1246066,PERSONAL PAYMENTS,Adult Social Care - Other Transfer Pay,Bi-Borough Director of Integrated Care,590.8
11/01/2024,1291747,PERSONAL PAYMENTS,Adult Social Care - Other Transfer Pay,Bi-Borough Director of Integrated Care,1531.32
11/01/2024,1291747,PERSONAL PAYMENTS,Adult Social Care - Other Transfer Pay,Bi-Borough Director of Integrated Care,4521
11/01/2024,1291747,PERSONAL PAYMENTS,Adult Social Care - Other Transfer Pay,Bi-Borough Director of Integrated Care,4125.92
11/01/2024,1291747,PERSONAL PAYMENTS,Adult Social Care - Other Transfer Pay,Bi-Borough Director of Integrated Care,2043.8
11/01/2024,1248010,PERSONAL PAYMENTS,Adult Social Care - Other Transfer Pay,Bi-Borough Director of Integrated Care,646.16
11/01/2024,1248148,PERSONAL PAYMENTS,Adult Social Care - Other Transfer Pay,Bi-Borough Director of Integrated Care,1638.96
11/01/2024,1248154,PERSONAL PAYMENTS,Adult Social Care - Other Transfer Pay,Bi-Borough Director of Integrated Care,2088.4
11/01/2024,1291747,PERSONAL PAYMENTS,Adult Social Care - Other Transfer Pay,Bi-Borough Director of Integrated Care,10977.51
11/01/2024,1250074,PERSONAL PAYMENTS,Adult Social Care - Other Transfer Pay,Bi-Borough Director of Integrated Care,6904.8
11/01/2024,1249876,PERSONAL PAYMENTS,Adult Social Care - Other Transfer Pay,Bi-Borough Director of Integrated Care,2370.84
11/01/2024,1257487,PERSONAL PAYMENTS,Adult Social Care - Other Transfer Pay,Bi-Borough Director of Integrated Care,550
11/01/2024,1311623,PERSONAL PAYMENTS,Adult Social Care - Other Transfer Pay,Bi-Borough Director of Integrated Care,1033
11/01/2024,1246066,PERSONAL PAYMENTS,Adult Social Care - Other Transfer Pay,Bi-Borough Director of Integrated Care,1289.4
11/01/2024,1246066,PERSONAL PAYMENTS,Adult Social Care - Other Transfer Pay,Bi-Borough Director of Integrated Care,3384.68
11/01/2024,1291747,PERSONAL PAYMENTS,Adult Social Care - Other Transfer Pay,Bi-Borough Director of Integrated Care,3008.2
11/01/2024,1291747,PERSONAL PAYMENTS,Adult Social Care - Other Transfer Pay,Bi-Borough Director of Integrated Care,1252.72
11/01/2024,1291747,PERSONAL PAYMENTS,Adult Social Care - Other Transfer Pay,Bi-Borough Director of Integrated Care,3718.92
11/01/2024,1247804,PERSONAL PAYMENTS,Adult Social Care - Other Transfer Pay,Bi-Borough Director of Integrated Care,1041
11/01/2024,1250670,PERSONAL PAYMENTS,Adult Social Care - Other Transfer Pay,Bi-Borough Director of Integrated Care,1571.52
11/01/2024,1250044,PERSONAL PAYMENTS,Adult Social Care - Other Transfer Pay,Bi-Borough Director of Integrated Care,724.04
11/01/2024,1250012,PERSONAL PAYMENTS,Adult Social Care - Other Transfer Pay,Bi-Borough Director of Integrated Care,838.6
11/01/2024,1250138,PERSONAL PAYMENTS,Adult Social Care - Other Transfer Pay,Bi-Borough Director of Integrated Care,916
13/01/2024,1246066,PERSONAL PAYMENTS,Adult Social Care - Other Transfer Pay,Bi-Borough Director of Integrated Care,2820.35
18/01/2024,1291747,PERSONAL PAYMENTS,Adult Social Care - Other Transfer Pay,Bi-Borough Director of Integrated Care,1674
18/01/2024,1291747,PERSONAL PAYMENTS,Adult Social Care - Other Transfer Pay,Bi-Borough Director of Integrated Care,2364.15
01/02/2024,1319808,PERSONAL PAYMENTS,Adult Social Care - Other Transfer Pay,Bi-Borough Director of Integrated Care,1561.76
01/02/2024,1291747,PERSONAL PAYMENTS,Adult Social Care - Other Transfer Pay,Bi-Borough Director of Integrated Care,1863.1
01/02/2024,1246066,PERSONAL PAYMENTS,Adult Social Care - Other Transfer Pay,Bi-Borough Director of Integrated Care,720.34
08/02/2024,1246066,PERSONAL PAYMENTS,Adult Social Care - Other Transfer Pay,Bi-Borough Director of Integrated Care,668.05
08/02/2024,1246066,PERSONAL PAYMENTS,Adult Social Care - Other Transfer Pay,Bi-Borough Director of Integrated Care,4107
08/02/2024,1246066,PERSONAL PAYMENTS,Adult Social Care - Other Transfer Pay,Bi-Borough Director of Integrated Care,2110.75
08/02/2024,1246066,PERSONAL PAYMENTS,Adult Social Care - Other Transfer Pay,Bi-Borough Director of Integrated Care,917.25
08/02/2024,1246066,PERSONAL PAYMENTS,Adult Social Care - Other Transfer Pay,Bi-Borough Director of Integrated Care,609.6
08/02/2024,1291747,PERSONAL PAYMENTS,Adult Social Care - Other Transfer Pay,Bi-Borough Director of Integrated Care,2103.15
08/02/2024,1291747,PERSONAL PAYMENTS,Adult Social Care - Other Transfer Pay,Bi-Borough Director of Integrated Care,1020
08/02/2024,1291747,PERSONAL PAYMENTS,Adult Social Care - Other Transfer Pay,Bi-Borough Director of Integrated Care,2552.2
08/02/2024,1291747,PERSONAL PAYMENTS,Adult Social Care - Other Transfer Pay,Bi-Borough Director of Integrated Care,1598.25
08/02/2024,1291747,PERSONAL PAYMENTS,Adult Social Care - Other Transfer Pay,Bi-Borough Director of Integrated Care,3249.15
08/02/2024,1250037,PERSONAL PAYMENTS,Adult Social Care - Other Transfer Pay,Bi-Borough Director of Integrated Care,3409.6
08/02/2024,1246066,PERSONAL PAYMENTS,Adult Social Care - Other Transfer Pay,Bi-Borough Director of Integrated Care,576.5
08/02/2024,1246066,PERSONAL PAYMENTS,Adult Social Care - Other Transfer Pay,Bi-Borough Director of Integrated Care,7393.2
08/02/2024,1246066,PERSONAL PAYMENTS,Adult Social Care - Other Transfer Pay,Bi-Borough Director of Integrated Care,7192.55
08/02/2024,1246066,PERSONAL PAYMENTS,Adult Social Care - Other Transfer Pay,Bi-Borough Director of Integrated Care,4357.8
08/02/2024,1291747,PERSONAL PAYMENTS,Adult Social Care - Other Transfer Pay,Bi-Borough Director of Integrated Care,1850.45
08/02/2024,1248010,PERSONAL PAYMENTS,Adult Social Care - Other Transfer Pay,Bi-Borough Director of Integrated Care,807.7
08/02/2024,1248154,PERSONAL PAYMENTS,Adult Social Care - Other Transfer Pay,Bi-Borough Director of Integrated Care,2610.5
08/02/2024,1248148,PERSONAL PAYMENTS,Adult Social Care - Other Transfer Pay,Bi-Borough Director of Integrated Care,2048.7
08/02/2024,1246066,PERSONAL PAYMENTS,Adult Social Care - Other Transfer Pay,Bi-Borough Director of Integrated Care,1153.79
08/02/2024,1246066,PERSONAL PAYMENTS,Adult Social Care - Other Transfer Pay,Bi-Borough Director of Integrated Care,525.25
08/02/2024,1246066,PERSONAL PAYMENTS,Adult Social Care - Other Transfer Pay,Bi-Borough Director of Integrated Care,1451.65
08/02/2024,1291747,PERSONAL PAYMENTS,Adult Social Care - Other Transfer Pay,Bi-Borough Director of Integrated Care,2554.75
08/02/2024,1291747,PERSONAL PAYMENTS,Adult Social Care - Other Transfer Pay,Bi-Borough Director of Integrated Care,5157.4
08/02/2024,1291747,PERSONAL PAYMENTS,Adult Social Care - Other Transfer Pay,Bi-Borough Director of Integrated Care,1914.15
08/02/2024,1291747,PERSONAL PAYMENTS,Adult Social Care - Other Transfer Pay,Bi-Borough Director of Integrated Care,5651.25
08/02/2024,1291747,PERSONAL PAYMENTS,Adult Social Care - Other Transfer Pay,Bi-Borough Director of Integrated Care,500.6
08/02/2024,1257487,PERSONAL PAYMENTS,Adult Social Care - Other Transfer Pay,Bi-Borough Director of Integrated Care,687.5
08/02/2024,1250074,PERSONAL PAYMENTS,Adult Social Care - Other Transfer Pay,Bi-Borough Director of Integrated Care,10138
08/02/2024,1311623,PERSONAL PAYMENTS,Adult Social Care - Other Transfer Pay,Bi-Borough Director of Integrated Care,1291.25
08/02/2024,1249876,PERSONAL PAYMENTS,Adult Social Care - Other Transfer Pay,Bi-Borough Director of Integrated Care,1887.35
08/02/2024,1246066,PERSONAL PAYMENTS,Adult Social Care - Other Transfer Pay,Bi-Borough Director of Integrated Care,3231.65
08/02/2024,1291747,PERSONAL PAYMENTS,Adult Social Care - Other Transfer Pay,Bi-Borough Director of Integrated Care,5568.3
08/02/2024,1250138,PERSONAL PAYMENTS,Adult Social Care - Other Transfer Pay,Bi-Borough Director of Integrated Care,1145
08/02/2024,1250670,PERSONAL PAYMENTS,Adult Social Care - Other Transfer Pay,Bi-Borough Director of Integrated Care,1964.4
08/02/2024,1250044,PERSONAL PAYMENTS,Adult Social Care - Other Transfer Pay,Bi-Borough Director of Integrated Care,905.05
08/02/2024,1247804,PERSONAL PAYMENTS,Adult Social Care - Other Transfer Pay,Bi-Borough Director of Integrated Care,1301.25
08/02/2024,1250012,PERSONAL PAYMENTS,Adult Social Care - Other Transfer Pay,Bi-Borough Director of Integrated Care,1048.25
08/02/2024,1246066,PERSONAL PAYMENTS,Adult Social Care - Other Transfer Pay,Bi-Borough Director of Integrated Care,4230.85
08/02/2024,1246066,PERSONAL PAYMENTS,Adult Social Care - Other Transfer Pay,Bi-Borough Director of Integrated Care,1611.75
08/02/2024,1291747,PERSONAL PAYMENTS,Adult Social Care - Other Transfer Pay,Bi-Borough Director of Integrated Care,3760.25
08/02/2024,1291747,PERSONAL PAYMENTS,Adult Social Care - Other Transfer Pay,Bi-Borough Director of Integrated Care,1565.9
08/02/2024,1291747,PERSONAL PAYMENTS,Adult Social Care - Other Transfer Pay,Bi-Borough Director of Integrated Care,788.05
08/02/2024,1291747,PERSONAL PAYMENTS,Adult Social Care - Other Transfer Pay,Bi-Borough Director of Integrated Care,1914.15
08/02/2024,1250186,PERSONAL PAYMENTS,Adult Social Care - Other Transfer Pay,Bi-Borough Director of Integrated Care,4666.6
08/02/2024,1250656,PERSONAL PAYMENTS,Adult Social Care - Other Transfer Pay,Bi-Borough Director of Integrated Care,1397.95
08/02/2024,1250674,PERSONAL PAYMENTS,Adult Social Care - Other Transfer Pay,Bi-Borough Director of Integrated Care,4184.8
08/02/2024,1272570,PERSONAL PAYMENTS,Adult Social Care - Other Transfer Pay,Bi-Borough Director of Integrated Care,609.6
08/02/2024,1272570,PERSONAL PAYMENTS,Adult Social Care - Other Transfer Pay,Bi-Borough Director of Integrated Care,1314.05
08/02/2024,1246066,PERSONAL PAYMENTS,Adult Social Care - Other Transfer Pay,Bi-Borough Director of Integrated Care,1054.95
08/02/2024,1246066,PERSONAL PAYMENTS,Adult Social Care - Other Transfer Pay,Bi-Borough Director of Integrated Care,1338.15
08/02/2024,1291747,PERSONAL PAYMENTS,Adult Social Care - Other Transfer Pay,Bi-Borough Director of Integrated Care,1758.1
08/02/2024,1280973,PERSONAL PAYMENTS,Adult Social Care - Other Transfer Pay,Bi-Borough Director of Integrated Care,7993.1
08/02/2024,1248073,PERSONAL PAYMENTS,Adult Social Care - Other Transfer Pay,Bi-Borough Director of Integrated Care,652.15
08/02/2024,1293435,PERSONAL PAYMENTS,Adult Social Care - Other Transfer Pay,Bi-Borough Director of Integrated Care,700
08/02/2024,1268346,PERSONAL PAYMENTS,Adult Social Care - Other Transfer Pay,Bi-Borough Director of Integrated Care,2793.5
08/02/2024,1246066,PERSONAL PAYMENTS,Adult Social Care - Other Transfer Pay,Bi-Borough Director of Integrated Care,2488.75
08/02/2024,1246066,PERSONAL PAYMENTS,Adult Social Care - Other Transfer Pay,Bi-Borough Director of Integrated Care,1287.35
08/02/2024,1246066,PERSONAL PAYMENTS,Adult Social Care - Other Transfer Pay,Bi-Borough Director of Integrated Care,2781.35
08/02/2024,1246066,PERSONAL PAYMENTS,Adult Social Care - Other Transfer Pay,Bi-Borough Director of Integrated Care,3957.95
08/02/2024,1246066,PERSONAL PAYMENTS,Adult Social Care - Other Transfer Pay,Bi-Borough Director of Integrated Care,3065.25
08/02/2024,1246066,PERSONAL PAYMENTS,Adult Social Care - Other Transfer Pay,Bi-Borough Director of Integrated Care,15939.02
08/02/2024,1246066,PERSONAL PAYMENTS,Adult Social Care - Other Transfer Pay,Bi-Borough Director of Integrated Care,1148.7
08/02/2024,1246066,PERSONAL PAYMENTS,Adult Social Care - Other Transfer Pay,Bi-Borough Director of Integrated Care,2196.15
08/02/2024,1291747,PERSONAL PAYMENTS,Adult Social Care - Other Transfer Pay,Bi-Borough Director of Integrated Care,1619.5
08/02/2024,1292106,PERSONAL PAYMENTS,Adult Social Care - Other Transfer Pay,Bi-Borough Director of Integrated Care,1367
08/02/2024,1314455,PERSONAL PAYMENTS,Adult Social Care - Other Transfer Pay,Bi-Borough Director of Integrated Care,2142.7
08/02/2024,1249942,PERSONAL PAYMENTS,Adult Social Care - Other Transfer Pay,Bi-Borough Director of Integrated Care,8484
08/02/2024,1250627,PERSONAL PAYMENTS,Adult Social Care - Other Transfer Pay,Bi-Borough Director of Integrated Care,1806
08/02/2024,1250627,PERSONAL PAYMENTS,Adult Social Care - Other Transfer Pay,Bi-Borough Director of Integrated Care,2172.66
08/02/2024,1269674,PERSONAL PAYMENTS,Adult Social Care - Other Transfer Pay,Bi-Borough Director of Integrated Care,1249.1
08/02/2024,1248354,PERSONAL PAYMENTS,Adult Social Care - Other Transfer Pay,Bi-Borough Director of Integrated Care,3624.2
08/02/2024,1250215,PERSONAL PAYMENTS,Adult Social Care - Other Transfer Pay,Bi-Borough Director of Integrated Care,1858.05
08/02/2024,1261992,PERSONAL PAYMENTS,Adult Social Care - Other Transfer Pay,Bi-Borough Director of Integrated Care,592.85
08/02/2024,1254540,PERSONAL PAYMENTS,Adult Social Care - Other Transfer Pay,Bi-Borough Director of Integrated Care,1174.9
08/02/2024,1248804,PERSONAL PAYMENTS,Adult Social Care - Other Transfer Pay,Bi-Borough Director of Integrated Care,788.6
08/02/2024,1247820,PERSONAL PAYMENTS,Adult Social Care - Other Transfer Pay,Bi-Borough Director of Integrated Care,11630.45
08/02/2024,1246066,PERSONAL PAYMENTS,Adult Social Care - Other Transfer Pay,Bi-Borough Director of Integrated Care,1072.75
08/02/2024,1246066,PERSONAL PAYMENTS,Adult Social Care - Other Transfer Pay,Bi-Borough Director of Integrated Care,1332.85
08/02/2024,1246066,PERSONAL PAYMENTS,Adult Social Care - Other Transfer Pay,Bi-Borough Director of Integrated Care,3970
07/03/2024,1246066,PERSONAL PAYMENTS,Adult Social Care - Other Transfer Pay,Bi-Borough Director of Integrated Care,1756.92
07/03/2024,1291747,PERSONAL PAYMENTS,Adult Social Care - Other Transfer Pay,Bi-Borough Director of Integrated Care,1295.6
07/03/2024,1292106,PERSONAL PAYMENTS,Adult Social Care - Other Transfer Pay,Bi-Borough Director of Integrated Care,1093.6
07/03/2024,1250627,PERSONAL PAYMENTS,Adult Social Care - Other Transfer Pay,Bi-Borough Director of Integrated Care,1896.72
07/03/2024,1249942,PERSONAL PAYMENTS,Adult Social Care - Other Transfer Pay,Bi-Borough Director of Integrated Care,6787.2
07/03/2024,1248804,PERSONAL PAYMENTS,Adult Social Care - Other Transfer Pay,Bi-Borough Director of Integrated Care,630.88
07/03/2024,1314455,PERSONAL PAYMENTS,Adult Social Care - Other Transfer Pay,Bi-Borough Director of Integrated Care,1714.16
07/03/2024,1254540,PERSONAL PAYMENTS,Adult Social Care - Other Transfer Pay,Bi-Borough Director of Integrated Care,1840.6
07/03/2024,1247820,PERSONAL PAYMENTS,Adult Social Care - Other Transfer Pay,Bi-Borough Director of Integrated Care,9304.36
07/03/2024,1250215,PERSONAL PAYMENTS,Adult Social Care - Other Transfer Pay,Bi-Borough Director of Integrated Care,1486.44
07/03/2024,1269674,PERSONAL PAYMENTS,Adult Social Care - Other Transfer Pay,Bi-Borough Director of Integrated Care,999.28
07/03/2024,1248354,PERSONAL PAYMENTS,Adult Social Care - Other Transfer Pay,Bi-Borough Director of Integrated Care,2899.36
07/03/2024,1246066,PERSONAL PAYMENTS,Adult Social Care - Other Transfer Pay,Bi-Borough Director of Integrated Care,733.8
07/03/2024,1246066,PERSONAL PAYMENTS,Adult Social Care - Other Transfer Pay,Bi-Borough Director of Integrated Care,1688.6
07/03/2024,1246066,PERSONAL PAYMENTS,Adult Social Care - Other Transfer Pay,Bi-Borough Director of Integrated Care,534.44
07/03/2024,1246066,PERSONAL PAYMENTS,Adult Social Care - Other Transfer Pay,Bi-Borough Director of Integrated Care,2987.88
07/03/2024,1246066,PERSONAL PAYMENTS,Adult Social Care - Other Transfer Pay,Bi-Borough Director of Integrated Care,3176
07/03/2024,1246066,PERSONAL PAYMENTS,Adult Social Care - Other Transfer Pay,Bi-Borough Director of Integrated Care,858.2
07/03/2024,1246066,PERSONAL PAYMENTS,Adult Social Care - Other Transfer Pay,Bi-Borough Director of Integrated Care,1066.28
07/03/2024,1291747,PERSONAL PAYMENTS,Adult Social Care - Other Transfer Pay,Bi-Borough Director of Integrated Care,1682.52
07/03/2024,1291747,PERSONAL PAYMENTS,Adult Social Care - Other Transfer Pay,Bi-Borough Director of Integrated Care,816
07/03/2024,1291747,PERSONAL PAYMENTS,Adult Social Care - Other Transfer Pay,Bi-Borough Director of Integrated Care,2041.76
07/03/2024,1291747,PERSONAL PAYMENTS,Adult Social Care - Other Transfer Pay,Bi-Borough Director of Integrated Care,1278.6
07/03/2024,1291747,PERSONAL PAYMENTS,Adult Social Care - Other Transfer Pay,Bi-Borough Director of Integrated Care,2599.32
07/03/2024,1250037,PERSONAL PAYMENTS,Adult Social Care - Other Transfer Pay,Bi-Borough Director of Integrated Care,2727.68
07/03/2024,1297850,PERSONAL PAYMENTS,Adult Social Care - Other Transfer Pay,Bi-Borough Director of Integrated Care,903.92
07/03/2024,1246066,PERSONAL PAYMENTS,Adult Social Care - Other Transfer Pay,Bi-Borough Director of Integrated Care,4218.64
07/03/2024,1246066,PERSONAL PAYMENTS,Adult Social Care - Other Transfer Pay,Bi-Borough Director of Integrated Care,5914.56
07/03/2024,1246066,PERSONAL PAYMENTS,Adult Social Care - Other Transfer Pay,Bi-Borough Director of Integrated Care,3486.24
07/03/2024,1291747,PERSONAL PAYMENTS,Adult Social Care - Other Transfer Pay,Bi-Borough Director of Integrated Care,1480.36
07/03/2024,1248010,PERSONAL PAYMENTS,Adult Social Care - Other Transfer Pay,Bi-Borough Director of Integrated Care,646.16
07/03/2024,1248154,PERSONAL PAYMENTS,Adult Social Care - Other Transfer Pay,Bi-Borough Director of Integrated Care,2088.4
07/03/2024,1248148,PERSONAL PAYMENTS,Adult Social Care - Other Transfer Pay,Bi-Borough Director of Integrated Care,1638.96
07/03/2024,1246066,PERSONAL PAYMENTS,Adult Social Care - Other Transfer Pay,Bi-Borough Director of Integrated Care,745.84
07/03/2024,1246066,PERSONAL PAYMENTS,Adult Social Care - Other Transfer Pay,Bi-Borough Director of Integrated Care,1161.32
07/03/2024,1291747,PERSONAL PAYMENTS,Adult Social Care - Other Transfer Pay,Bi-Borough Director of Integrated Care,5670.12
07/03/2024,1291747,PERSONAL PAYMENTS,Adult Social Care - Other Transfer Pay,Bi-Borough Director of Integrated Care,1531.32
07/03/2024,1291747,PERSONAL PAYMENTS,Adult Social Care - Other Transfer Pay,Bi-Borough Director of Integrated Care,1880
07/03/2024,1291747,PERSONAL PAYMENTS,Adult Social Care - Other Transfer Pay,Bi-Borough Director of Integrated Care,4125.92
07/03/2024,1291747,PERSONAL PAYMENTS,Adult Social Care - Other Transfer Pay,Bi-Borough Director of Integrated Care,2043.8
07/03/2024,1250074,PERSONAL PAYMENTS,Adult Social Care - Other Transfer Pay,Bi-Borough Director of Integrated Care,12787.52
07/03/2024,1249876,PERSONAL PAYMENTS,Adult Social Care - Other Transfer Pay,Bi-Borough Director of Integrated Care,1509.88
07/03/2024,1257487,PERSONAL PAYMENTS,Adult Social Care - Other Transfer Pay,Bi-Borough Director of Integrated Care,550
07/03/2024,1311623,PERSONAL PAYMENTS,Adult Social Care - Other Transfer Pay,Bi-Borough Director of Integrated Care,1033
07/03/2024,1246066,PERSONAL PAYMENTS,Adult Social Care - Other Transfer Pay,Bi-Borough Director of Integrated Care,2585.32
07/03/2024,1291747,PERSONAL PAYMENTS,Adult Social Care - Other Transfer Pay,Bi-Borough Director of Integrated Care,4454.64
07/03/2024,1250670,PERSONAL PAYMENTS,Adult Social Care - Other Transfer Pay,Bi-Borough Director of Integrated Care,1571.52
07/03/2024,1250044,PERSONAL PAYMENTS,Adult Social Care - Other Transfer Pay,Bi-Borough Director of Integrated Care,724.04
07/03/2024,1247804,PERSONAL PAYMENTS,Adult Social Care - Other Transfer Pay,Bi-Borough Director of Integrated Care,1041
07/03/2024,1250138,PERSONAL PAYMENTS,Adult Social Care - Other Transfer Pay,Bi-Borough Director of Integrated Care,1219.81
07/03/2024,1250012,PERSONAL PAYMENTS,Adult Social Care - Other Transfer Pay,Bi-Borough Director of Integrated Care,838.6
07/03/2024,1246066,PERSONAL PAYMENTS,Adult Social Care - Other Transfer Pay,Bi-Borough Director of Integrated Care,1289.4
07/03/2024,1246066,PERSONAL PAYMENTS,Adult Social Care - Other Transfer Pay,Bi-Borough Director of Integrated Care,3384.68
07/03/2024,1291747,PERSONAL PAYMENTS,Adult Social Care - Other Transfer Pay,Bi-Borough Director of Integrated Care,3008.2
07/03/2024,1291747,PERSONAL PAYMENTS,Adult Social Care - Other Transfer Pay,Bi-Borough Director of Integrated Care,3047.58
07/03/2024,1291747,PERSONAL PAYMENTS,Adult Social Care - Other Transfer Pay,Bi-Borough Director of Integrated Care,1252.72
07/03/2024,1291747,PERSONAL PAYMENTS,Adult Social Care - Other Transfer Pay,Bi-Borough Director of Integrated Care,1531.32
07/03/2024,1250186,PERSONAL PAYMENTS,Adult Social Care - Other Transfer Pay,Bi-Borough Director of Integrated Care,3733.28
07/03/2024,1250656,PERSONAL PAYMENTS,Adult Social Care - Other Transfer Pay,Bi-Borough Director of Integrated Care,1118.36
07/03/2024,1250674,PERSONAL PAYMENTS,Adult Social Care - Other Transfer Pay,Bi-Borough Director of Integrated Care,3347.84
07/03/2024,1272570,PERSONAL PAYMENTS,Adult Social Care - Other Transfer Pay,Bi-Borough Director of Integrated Care,1051.24
07/03/2024,1246066,PERSONAL PAYMENTS,Adult Social Care - Other Transfer Pay,Bi-Borough Director of Integrated Care,1317.37
07/03/2024,1291747,PERSONAL PAYMENTS,Adult Social Care - Other Transfer Pay,Bi-Borough Director of Integrated Care,1945.19
07/03/2024,1246066,PERSONAL PAYMENTS,Adult Social Care - Other Transfer Pay,Bi-Borough Director of Integrated Care,843.96
07/03/2024,1280973,PERSONAL PAYMENTS,Adult Social Care - Other Transfer Pay,Bi-Borough Director of Integrated Care,6394.48
07/03/2024,1248073,PERSONAL PAYMENTS,Adult Social Care - Other Transfer Pay,Bi-Borough Director of Integrated Care,521.72
07/03/2024,1293435,PERSONAL PAYMENTS,Adult Social Care - Other Transfer Pay,Bi-Borough Director of Integrated Care,560
07/03/2024,1268346,PERSONAL PAYMENTS,Adult Social Care - Other Transfer Pay,Bi-Borough Director of Integrated Care,2234.8
07/03/2024,1246066,PERSONAL PAYMENTS,Adult Social Care - Other Transfer Pay,Bi-Borough Director of Integrated Care,3166.36
07/03/2024,1246066,PERSONAL PAYMENTS,Adult Social Care - Other Transfer Pay,Bi-Borough Director of Integrated Care,918.96
07/03/2024,1246066,PERSONAL PAYMENTS,Adult Social Care - Other Transfer Pay,Bi-Borough Director of Integrated Care,1029.88
07/03/2024,1246066,PERSONAL PAYMENTS,Adult Social Care - Other Transfer Pay,Bi-Borough Director of Integrated Care,2225.08
07/03/2024,1246066,PERSONAL PAYMENTS,Adult Social Care - Other Transfer Pay,Bi-Borough Director of Integrated Care,2452.2
07/03/2024,1246066,PERSONAL PAYMENTS,Adult Social Care - Other Transfer Pay,Bi-Borough Director of Integrated Care,1991
07/03/2024,1246066,PERSONAL PAYMENTS,Adult Social Care - Other Transfer Pay,Bi-Borough Director of Integrated Care,12094.44
25/03/2024,1291747,PERSONAL PAYMENTS,Adult Social Care - Other Transfer Pay,Bi-Borough Director of Integrated Care,17070.48
25/03/2024,1291747,PERSONAL PAYMENTS,Adult Social Care - Other Transfer Pay,Bi-Borough Director of Integrated Care,3878.42
25/03/2024,1291747,PERSONAL PAYMENTS,Adult Social Care - Other Transfer Pay,Bi-Borough Director of Integrated Care,3690.22
25/03/2024,1291747,PERSONAL PAYMENTS,Adult Social Care - Other Transfer Pay,Bi-Borough Director of Integrated Care,2297.57
01/02/2024,1258049,PSS (UK),,Bi-Borough Director of Integrated Care,2794
29/02/2024,1258049,PSS (UK),,Bi-Borough Director of Integrated Care,2794
26/03/2024,1258049,PSS (UK),,Bi-Borough Director of Integrated Care,3626.78
01/02/2024,1245021,Paradise Community,,Bi-Borough Director of Integrated Care,11143.72
29/02/2024,1245021,Paradise Community,,Bi-Borough Director of Integrated Care,11143.72
26/03/2024,1245021,Paradise Community,,Bi-Borough Director of Integrated Care,13929.65
01/02/2024,1250448,PERSONAL PAYMENTS,,Bi-Borough Director of Integrated Care,1419.24
29/02/2024,1250448,PERSONAL PAYMENTS,,Bi-Borough Director of Integrated Care,1419.24
26/03/2024,1250448,PERSONAL PAYMENTS,,Bi-Borough Director of Integrated Care,1774.05
25/03/2024,1248491,PERSONAL PAYMENTS,Childrens' Social Care - Personal Budget,Bi-Borough Director of Integrated Care,587.13
01/02/2024,1245163,Poor Servants of the mother of,,Bi-Borough Director of Integrated Care,3800
29/02/2024,1245163,Poor Servants of the mother of,,Bi-Borough Director of Integrated Care,3800
26/03/2024,1245163,Poor Servants of the mother of,,Bi-Borough Director of Integrated Care,4750
26/03/2024,1245163,Poor Servants of the mother of,,Bi-Borough Director of Integrated Care,5827.84
01/02/2024,1245166,Precious Homes Support Ltd,,Bi-Borough Director of Integrated Care,2793
29/02/2024,1245166,Precious Homes Support Ltd,,Bi-Borough Director of Integrated Care,2793
26/03/2024,1245166,Precious Homes Support Ltd,,Bi-Borough Director of Integrated Care,3491.25
10/01/2024,1248563,Pursuing Independent Paths,B*Voluntary-Spot-V Dep-Enhanced - do not u,Bi-Borough Director of Integrated Care,1531.32
10/01/2024,1248563,Pursuing Independent Paths,B*Voluntary-Spot-V Dep-Enhanced - do not u,Bi-Borough Director of Integrated Care,1276.1
10/01/2024,1248563,Pursuing Independent Paths,B*Voluntary-Spot-V Dep-Enhanced - do not u,Bi-Borough Director of Integrated Care,1531.32
10/01/2024,1248563,Pursuing Independent Paths,B*Voluntary-Spot-V Dep-Enhanced - do not u,Bi-Borough Director of Integrated Care,1786.54
10/01/2024,1248563,Pursuing Independent Paths,B*Voluntary-Spot-V Dep-Enhanced - do not u,Bi-Borough Director of Integrated Care,1289.32
10/01/2024,1248563,Pursuing Independent Paths,B*Voluntary-Spot-V Dep-Enhanced - do not u,Bi-Borough Director of Integrated Care,510.44
10/01/2024,1248563,Pursuing Independent Paths,B*Voluntary-Spot-V Dep-Enhanced - do not u,Bi-Borough Director of Integrated Care,1020.88
10/01/2024,1248563,Pursuing Independent Paths,B*Voluntary-Spot-V Dep-Enhanced - do not u,Bi-Borough Director of Integrated Care,1020.88
10/01/2024,1248563,Pursuing Independent Paths,B*Voluntary-Spot-V Dep-Enhanced - do not u,Bi-Borough Director of Integrated Care,1531.32
10/01/2024,1248563,Pursuing Independent Paths,B*Voluntary-Spot-V Dep-Enhanced - do not u,Bi-Borough Director of Integrated Care,1531.32
10/01/2024,1248563,Pursuing Independent Paths,B*Voluntary-Spot-V Dep-Enhanced - do not u,Bi-Borough Director of Integrated Care,1531.32
10/01/2024,1248563,Pursuing Independent Paths,B*Voluntary-Spot-V Dep-Enhanced - do not u,Bi-Borough Director of Integrated Care,1531.32
10/01/2024,1248563,Pursuing Independent Paths,B*Voluntary-Spot-V Dep-Enhanced - do not u,Bi-Borough Director of Integrated Care,1276.1
10/01/2024,1248563,Pursuing Independent Paths,B*Voluntary-Spot-V Dep-Enhanced - do not u,Bi-Borough Director of Integrated Care,2552.2
10/01/2024,1248563,Pursuing Independent Paths,B*Voluntary-Spot-V Dep-Enhanced - do not u,Bi-Borough Director of Integrated Care,1531.32
10/01/2024,1248563,Pursuing Independent Paths,B*Voluntary-Spot-V Dep-Enhanced - do not u,Bi-Borough Director of Integrated Care,1531.32
10/01/2024,1248563,Pursuing Independent Paths,B*Voluntary-Spot-V Dep-Enhanced - do not u,Bi-Borough Director of Integrated Care,1531.32
10/01/2024,1248563,Pursuing Independent Paths,B*Voluntary-Spot-V Dep-Enhanced - do not u,Bi-Borough Director of Integrated Care,1276.1
10/01/2024,1248563,Pursuing Independent Paths,B*Voluntary-Spot-V Dep-Enhanced - do not u,Bi-Borough Director of Integrated Care,1252.72
10/01/2024,1248563,Pursuing Independent Paths,B*Voluntary-Spot-V Dep-Enhanced - do not u,Bi-Borough Director of Integrated Care,510.44
10/01/2024,1248563,Pursuing Independent Paths,B*Voluntary-Spot-V Dep-Enhanced - do not u,Bi-Borough Director of Integrated Care,1879.08
10/01/2024,1248563,Pursuing Independent Paths,B*Voluntary-Spot-V Dep-Enhanced - do not u,Bi-Borough Director of Integrated Care,1531.32
10/01/2024,1248563,Pursuing Independent Paths,B*Voluntary-Spot-V Dep-Enhanced - do not u,Bi-Borough Director of Integrated Care,510.44
10/01/2024,1248563,Pursuing Independent Paths,B*Voluntary-Spot-V Dep-Enhanced - do not u,Bi-Borough Director of Integrated Care,1020.88
10/01/2024,1248563,Pursuing Independent Paths,B*Voluntary-Spot-V Dep-Enhanced - do not u,Bi-Borough Director of Integrated Care,583.36
10/01/2024,1248563,Pursuing Independent Paths,B*Voluntary-Spot-V Dep-Enhanced - do not u,Bi-Borough Director of Integrated Care,510.44
10/01/2024,1248563,Pursuing Independent Paths,B*Voluntary-Spot-V Dep-Enhanced - do not u,Bi-Borough Director of Integrated Care,1531.32
10/01/2024,1248563,Pursuing Independent Paths,B*Voluntary-Spot-V Dep-Enhanced - do not u,Bi-Borough Director of Integrated Care,1020.88
10/01/2024,1248563,Pursuing Independent Paths,B*Voluntary-Spot-V Dep-Enhanced - do not u,Bi-Borough Director of Integrated Care,1020.88
10/01/2024,1248563,Pursuing Independent Paths,B*Voluntary-Spot-V Dep-Enhanced - do not u,Bi-Borough Director of Integrated Care,1531.32
10/01/2024,1248563,Pursuing Independent Paths,B*Voluntary-Spot-V Dep-Enhanced - do not u,Bi-Borough Director of Integrated Care,510.44
10/01/2024,1248563,Pursuing Independent Paths,B*Voluntary-Spot-V Dep-Enhanced - do not u,Bi-Borough Director of Integrated Care,1531.32
10/01/2024,1248563,Pursuing Independent Paths,B*Voluntary-Spot-V Dep-Enhanced - do not u,Bi-Borough Director of Integrated Care,510.44
10/01/2024,1248563,Pursuing Independent Paths,B*Voluntary-Spot-V Dep-Enhanced - do not u,Bi-Borough Director of Integrated Care,1020.88
10/01/2024,1248563,Pursuing Independent Paths,B*Voluntary-Spot-V Dep-Enhanced - do not u,Bi-Borough Director of Integrated Care,510.44
10/01/2024,1248563,Pursuing Independent Paths,B*Voluntary-Spot-V Dep-Enhanced - do not u,Bi-Borough Director of Integrated Care,510.44
10/01/2024,1248563,Pursuing Independent Paths,B*Voluntary-Spot-V Dep-Enhanced - do not u,Bi-Borough Director of Integrated Care,1020.88
10/01/2024,1248563,Pursuing Independent Paths,B*Voluntary-Spot-V Dep-Enhanced - do not u,Bi-Borough Director of Integrated Care,2041.76
10/01/2024,1248563,Pursuing Independent Paths,B*Voluntary-Spot-V Dep-Enhanced - do not u,Bi-Borough Director of Integrated Care,1531.32
10/01/2024,1248563,Pursuing Independent Paths,B*Voluntary-Spot-V Dep-Enhanced - do not u,Bi-Borough Director of Integrated Care,1531.32
10/01/2024,1248563,Pursuing Independent Paths,B*Voluntary-Spot-V Dep-Enhanced - do not u,Bi-Borough Director of Integrated Care,1531.32
10/01/2024,1248563,Pursuing Independent Paths,B*Voluntary-Spot-V Dep-Enhanced - do not u,Bi-Borough Director of Integrated Care,1531.32
10/01/2024,1248563,Pursuing Independent Paths,B*Voluntary-Spot-V Dep-Enhanced - do not u,Bi-Borough Director of Integrated Care,1276.1
10/01/2024,1248563,Pursuing Independent Paths,B*Voluntary-Spot-V Dep-Enhanced - do not u,Bi-Borough Director of Integrated Care,1531.32
10/01/2024,1248563,Pursuing Independent Paths,B*Voluntary-Spot-V Dep-Enhanced - do not u,Bi-Borough Director of Integrated Care,1786.54
10/01/2024,1248563,Pursuing Independent Paths,B*Voluntary-Spot-V Dep-Enhanced - do not u,Bi-Borough Director of Integrated Care,1289.32
10/01/2024,1248563,Pursuing Independent Paths,B*Voluntary-Spot-V Dep-Enhanced - do not u,Bi-Borough Director of Integrated Care,510.44
10/01/2024,1248563,Pursuing Independent Paths,B*Voluntary-Spot-V Dep-Enhanced - do not u,Bi-Borough Director of Integrated Care,1020.88
10/01/2024,1248563,Pursuing Independent Paths,B*Voluntary-Spot-V Dep-Enhanced - do not u,Bi-Borough Director of Integrated Care,1020.88
10/01/2024,1248563,Pursuing Independent Paths,B*Voluntary-Spot-V Dep-Enhanced - do not u,Bi-Borough Director of Integrated Care,1531.32
10/01/2024,1248563,Pursuing Independent Paths,B*Voluntary-Spot-V Dep-Enhanced - do not u,Bi-Borough Director of Integrated Care,1531.32
10/01/2024,1248563,Pursuing Independent Paths,B*Voluntary-Spot-V Dep-Enhanced - do not u,Bi-Borough Director of Integrated Care,1531.32
10/01/2024,1248563,Pursuing Independent Paths,B*Voluntary-Spot-V Dep-Enhanced - do not u,Bi-Borough Director of Integrated Care,1531.32
10/01/2024,1248563,Pursuing Independent Paths,B*Voluntary-Spot-V Dep-Enhanced - do not u,Bi-Borough Director of Integrated Care,1276.1
10/01/2024,1248563,Pursuing Independent Paths,B*Voluntary-Spot-V Dep-Enhanced - do not u,Bi-Borough Director of Integrated Care,2552.2
10/01/2024,1248563,Pursuing Independent Paths,B*Voluntary-Spot-V Dep-Enhanced - do not u,Bi-Borough Director of Integrated Care,1531.32
10/01/2024,1248563,Pursuing Independent Paths,B*Voluntary-Spot-V Dep-Enhanced - do not u,Bi-Borough Director of Integrated Care,1531.32
10/01/2024,1248563,Pursuing Independent Paths,B*Voluntary-Spot-V Dep-Enhanced - do not u,Bi-Borough Director of Integrated Care,1531.32
10/01/2024,1248563,Pursuing Independent Paths,B*Voluntary-Spot-V Dep-Enhanced - do not u,Bi-Borough Director of Integrated Care,1276.1
10/01/2024,1248563,Pursuing Independent Paths,B*Voluntary-Spot-V Dep-Enhanced - do not u,Bi-Borough Director of Integrated Care,1252.72
10/01/2024,1248563,Pursuing Independent Paths,B*Voluntary-Spot-V Dep-Enhanced - do not u,Bi-Borough Director of Integrated Care,510.44
10/01/2024,1248563,Pursuing Independent Paths,B*Voluntary-Spot-V Dep-Enhanced - do not u,Bi-Borough Director of Integrated Care,1879.08
10/01/2024,1248563,Pursuing Independent Paths,B*Voluntary-Spot-V Dep-Enhanced - do not u,Bi-Borough Director of Integrated Care,1531.32
10/01/2024,1248563,Pursuing Independent Paths,B*Voluntary-Spot-V Dep-Enhanced - do not u,Bi-Borough Director of Integrated Care,510.44
10/01/2024,1248563,Pursuing Independent Paths,B*Voluntary-Spot-V Dep-Enhanced - do not u,Bi-Borough Director of Integrated Care,1020.88
10/01/2024,1248563,Pursuing Independent Paths,B*Voluntary-Spot-V Dep-Enhanced - do not u,Bi-Borough Director of Integrated Care,583.36
10/01/2024,1248563,Pursuing Independent Paths,B*Voluntary-Spot-V Dep-Enhanced - do not u,Bi-Borough Director of Integrated Care,510.44
10/01/2024,1248563,Pursuing Independent Paths,B*Voluntary-Spot-V Dep-Enhanced - do not u,Bi-Borough Director of Integrated Care,1531.32
10/01/2024,1248563,Pursuing Independent Paths,B*Voluntary-Spot-V Dep-Enhanced - do not u,Bi-Borough Director of Integrated Care,1020.88
10/01/2024,1248563,Pursuing Independent Paths,B*Voluntary-Spot-V Dep-Enhanced - do not u,Bi-Borough Director of Integrated Care,1020.88
10/01/2024,1248563,Pursuing Independent Paths,B*Voluntary-Spot-V Dep-Enhanced - do not u,Bi-Borough Director of Integrated Care,1531.32
10/01/2024,1248563,Pursuing Independent Paths,B*Voluntary-Spot-V Dep-Enhanced - do not u,Bi-Borough Director of Integrated Care,510.44
10/01/2024,1248563,Pursuing Independent Paths,B*Voluntary-Spot-V Dep-Enhanced - do not u,Bi-Borough Director of Integrated Care,1531.32
10/01/2024,1248563,Pursuing Independent Paths,B*Voluntary-Spot-V Dep-Enhanced - do not u,Bi-Borough Director of Integrated Care,510.44
10/01/2024,1248563,Pursuing Independent Paths,B*Voluntary-Spot-V Dep-Enhanced - do not u,Bi-Borough Director of Integrated Care,1020.88
10/01/2024,1248563,Pursuing Independent Paths,B*Voluntary-Spot-V Dep-Enhanced - do not u,Bi-Borough Director of Integrated Care,638.05
10/01/2024,1248563,Pursuing Independent Paths,B*Voluntary-Spot-V Dep-Enhanced - do not u,Bi-Borough Director of Integrated Care,2041.76
10/01/2024,1248563,Pursuing Independent Paths,B*Voluntary-Spot-V Dep-Enhanced - do not u,Bi-Borough Director of Integrated Care,1531.32
10/01/2024,1248563,Pursuing Independent Paths,B*Voluntary-Spot-V Dep-Enhanced - do not u,Bi-Borough Director of Integrated Care,1531.32
10/01/2024,1248563,Pursuing Independent Paths,B*Voluntary-Spot-V Dep-Enhanced - do not u,Bi-Borough Director of Integrated Care,1531.32
02/02/2024,1248563,Pursuing Independent Paths,B*Voluntary-Spot-V Dep-Enhanced - do not u,Bi-Borough Director of Integrated Care,1276.1
02/02/2024,1248563,Pursuing Independent Paths,B*Voluntary-Spot-V Dep-Enhanced - do not u,Bi-Borough Director of Integrated Care,2552.2
02/02/2024,1248563,Pursuing Independent Paths,B*Voluntary-Spot-V Dep-Enhanced - do not u,Bi-Borough Director of Integrated Care,1276.1
02/02/2024,1248563,Pursuing Independent Paths,B*Voluntary-Spot-V Dep-Enhanced - do not u,Bi-Borough Director of Integrated Care,1531.32
02/02/2024,1248563,Pursuing Independent Paths,B*Voluntary-Spot-V Dep-Enhanced - do not u,Bi-Borough Director of Integrated Care,1531.32
02/02/2024,1248563,Pursuing Independent Paths,B*Voluntary-Spot-V Dep-Enhanced - do not u,Bi-Borough Director of Integrated Care,1786.54
02/02/2024,1248563,Pursuing Independent Paths,B*Voluntary-Spot-V Dep-Enhanced - do not u,Bi-Borough Director of Integrated Care,1289.32
02/02/2024,1248563,Pursuing Independent Paths,B*Voluntary-Spot-V Dep-Enhanced - do not u,Bi-Borough Director of Integrated Care,510.44
02/02/2024,1248563,Pursuing Independent Paths,B*Voluntary-Spot-V Dep-Enhanced - do not u,Bi-Borough Director of Integrated Care,1020.88
02/02/2024,1248563,Pursuing Independent Paths,B*Voluntary-Spot-V Dep-Enhanced - do not u,Bi-Borough Director of Integrated Care,1531.32
02/02/2024,1248563,Pursuing Independent Paths,B*Voluntary-Spot-V Dep-Enhanced - do not u,Bi-Borough Director of Integrated Care,1531.32
02/02/2024,1248563,Pursuing Independent Paths,B*Voluntary-Spot-V Dep-Enhanced - do not u,Bi-Borough Director of Integrated Care,1020.88
02/02/2024,1248563,Pursuing Independent Paths,B*Voluntary-Spot-V Dep-Enhanced - do not u,Bi-Borough Director of Integrated Care,1252.72
02/02/2024,1248563,Pursuing Independent Paths,B*Voluntary-Spot-V Dep-Enhanced - do not u,Bi-Borough Director of Integrated Care,510.44
02/02/2024,1248563,Pursuing Independent Paths,B*Voluntary-Spot-V Dep-Enhanced - do not u,Bi-Borough Director of Integrated Care,1531.32
02/02/2024,1248563,Pursuing Independent Paths,B*Voluntary-Spot-V Dep-Enhanced - do not u,Bi-Borough Director of Integrated Care,1879.08
02/02/2024,1248563,Pursuing Independent Paths,B*Voluntary-Spot-V Dep-Enhanced - do not u,Bi-Borough Director of Integrated Care,1531.32
02/02/2024,1248563,Pursuing Independent Paths,B*Voluntary-Spot-V Dep-Enhanced - do not u,Bi-Borough Director of Integrated Care,1020.88
02/02/2024,1248563,Pursuing Independent Paths,B*Voluntary-Spot-V Dep-Enhanced - do not u,Bi-Borough Director of Integrated Care,583.36
02/02/2024,1248563,Pursuing Independent Paths,B*Voluntary-Spot-V Dep-Enhanced - do not u,Bi-Borough Director of Integrated Care,510.44
02/02/2024,1248563,Pursuing Independent Paths,B*Voluntary-Spot-V Dep-Enhanced - do not u,Bi-Borough Director of Integrated Care,1531.32
02/02/2024,1248563,Pursuing Independent Paths,B*Voluntary-Spot-V Dep-Enhanced - do not u,Bi-Borough Director of Integrated Care,1020.88
02/02/2024,1248563,Pursuing Independent Paths,B*Voluntary-Spot-V Dep-Enhanced - do not u,Bi-Borough Director of Integrated Care,1531.32
02/02/2024,1248563,Pursuing Independent Paths,B*Voluntary-Spot-V Dep-Enhanced - do not u,Bi-Borough Director of Integrated Care,510.44
02/02/2024,1248563,Pursuing Independent Paths,B*Voluntary-Spot-V Dep-Enhanced - do not u,Bi-Borough Director of Integrated Care,510.44
02/02/2024,1248563,Pursuing Independent Paths,B*Voluntary-Spot-V Dep-Enhanced - do not u,Bi-Borough Director of Integrated Care,1020.88
02/02/2024,1248563,Pursuing Independent Paths,B*Voluntary-Spot-V Dep-Enhanced - do not u,Bi-Borough Director of Integrated Care,510.44
02/02/2024,1248563,Pursuing Independent Paths,B*Voluntary-Spot-V Dep-Enhanced - do not u,Bi-Borough Director of Integrated Care,510.44
02/02/2024,1248563,Pursuing Independent Paths,B*Voluntary-Spot-V Dep-Enhanced - do not u,Bi-Borough Director of Integrated Care,1020.88
02/02/2024,1248563,Pursuing Independent Paths,B*Voluntary-Spot-V Dep-Enhanced - do not u,Bi-Borough Director of Integrated Care,2041.76
02/02/2024,1248563,Pursuing Independent Paths,B*Voluntary-Spot-V Dep-Enhanced - do not u,Bi-Borough Director of Integrated Care,1531.32
02/02/2024,1248563,Pursuing Independent Paths,B*Voluntary-Spot-V Dep-Enhanced - do not u,Bi-Borough Director of Integrated Care,1531.32
02/02/2024,1248563,Pursuing Independent Paths,B*Voluntary-Spot-V Dep-Enhanced - do not u,Bi-Borough Director of Integrated Care,875.04
02/02/2024,1248563,Pursuing Independent Paths,B*Voluntary-Spot-V Dep-Enhanced - do not u,Bi-Borough Director of Integrated Care,1531.32
02/02/2024,1248563,Pursuing Independent Paths,B*Voluntary-Spot-V Dep-Enhanced - do not u,Bi-Borough Director of Integrated Care,1531.32
02/02/2024,1248563,Pursuing Independent Paths,B*Voluntary-Spot-V Dep-Enhanced - do not u,Bi-Borough Director of Integrated Care,1531.32
02/02/2024,1248563,Pursuing Independent Paths,B*Voluntary-Spot-V Dep-Enhanced - do not u,Bi-Borough Director of Integrated Care,1531.32
02/02/2024,1248563,Pursuing Independent Paths,B*Voluntary-Spot-V Dep-Enhanced - do not u,Bi-Borough Director of Integrated Care,1276.1
02/02/2024,1248563,Pursuing Independent Paths,B*Voluntary-Spot-V Dep-Enhanced - do not u,Bi-Borough Director of Integrated Care,1020.88
02/02/2024,1248563,Pursuing Independent Paths,B*Voluntary-Spot-V Dep-Enhanced - do not u,Bi-Borough Director of Integrated Care,1531.32
13/03/2024,1248563,Pursuing Independent Paths,B*Voluntary-Spot-V Dep-Enhanced - do not u,Bi-Borough Director of Integrated Care,1531.32
13/03/2024,1248563,Pursuing Independent Paths,B*Voluntary-Spot-V Dep-Enhanced - do not u,Bi-Borough Director of Integrated Care,1276.1
13/03/2024,1248563,Pursuing Independent Paths,B*Voluntary-Spot-V Dep-Enhanced - do not u,Bi-Borough Director of Integrated Care,1531.32
13/03/2024,1248563,Pursuing Independent Paths,B*Voluntary-Spot-V Dep-Enhanced - do not u,Bi-Borough Director of Integrated Care,1786.54
13/03/2024,1248563,Pursuing Independent Paths,B*Voluntary-Spot-V Dep-Enhanced - do not u,Bi-Borough Director of Integrated Care,1289.32
13/03/2024,1248563,Pursuing Independent Paths,B*Voluntary-Spot-V Dep-Enhanced - do not u,Bi-Borough Director of Integrated Care,510.44
13/03/2024,1248563,Pursuing Independent Paths,B*Voluntary-Spot-V Dep-Enhanced - do not u,Bi-Borough Director of Integrated Care,1020.88
13/03/2024,1248563,Pursuing Independent Paths,B*Voluntary-Spot-V Dep-Enhanced - do not u,Bi-Borough Director of Integrated Care,1020.88
13/03/2024,1248563,Pursuing Independent Paths,B*Voluntary-Spot-V Dep-Enhanced - do not u,Bi-Borough Director of Integrated Care,1531.32
13/03/2024,1248563,Pursuing Independent Paths,B*Voluntary-Spot-V Dep-Enhanced - do not u,Bi-Borough Director of Integrated Care,1531.32
13/03/2024,1248563,Pursuing Independent Paths,B*Voluntary-Spot-V Dep-Enhanced - do not u,Bi-Borough Director of Integrated Care,1531.32
13/03/2024,1248563,Pursuing Independent Paths,B*Voluntary-Spot-V Dep-Enhanced - do not u,Bi-Borough Director of Integrated Care,1531.32
13/03/2024,1248563,Pursuing Independent Paths,B*Voluntary-Spot-V Dep-Enhanced - do not u,Bi-Borough Director of Integrated Care,1276.1
13/03/2024,1248563,Pursuing Independent Paths,B*Voluntary-Spot-V Dep-Enhanced - do not u,Bi-Borough Director of Integrated Care,2552.2
13/03/2024,1248563,Pursuing Independent Paths,B*Voluntary-Spot-V Dep-Enhanced - do not u,Bi-Borough Director of Integrated Care,1531.32
13/03/2024,1248563,Pursuing Independent Paths,B*Voluntary-Spot-V Dep-Enhanced - do not u,Bi-Borough Director of Integrated Care,1020.88
13/03/2024,1248563,Pursuing Independent Paths,B*Voluntary-Spot-V Dep-Enhanced - do not u,Bi-Borough Director of Integrated Care,1531.32
13/03/2024,1248563,Pursuing Independent Paths,B*Voluntary-Spot-V Dep-Enhanced - do not u,Bi-Borough Director of Integrated Care,1276.1
13/03/2024,1248563,Pursuing Independent Paths,B*Voluntary-Spot-V Dep-Enhanced - do not u,Bi-Borough Director of Integrated Care,1252.72
13/03/2024,1248563,Pursuing Independent Paths,B*Voluntary-Spot-V Dep-Enhanced - do not u,Bi-Borough Director of Integrated Care,510.44
13/03/2024,1248563,Pursuing Independent Paths,B*Voluntary-Spot-V Dep-Enhanced - do not u,Bi-Borough Director of Integrated Care,1879.08
13/03/2024,1248563,Pursuing Independent Paths,B*Voluntary-Spot-V Dep-Enhanced - do not u,Bi-Borough Director of Integrated Care,1531.32
13/03/2024,1248563,Pursuing Independent Paths,B*Voluntary-Spot-V Dep-Enhanced - do not u,Bi-Borough Director of Integrated Care,1020.88
13/03/2024,1248563,Pursuing Independent Paths,B*Voluntary-Spot-V Dep-Enhanced - do not u,Bi-Borough Director of Integrated Care,583.36
13/03/2024,1248563,Pursuing Independent Paths,B*Voluntary-Spot-V Dep-Enhanced - do not u,Bi-Borough Director of Integrated Care,510.44
13/03/2024,1248563,Pursuing Independent Paths,B*Voluntary-Spot-V Dep-Enhanced - do not u,Bi-Borough Director of Integrated Care,765.66
13/03/2024,1248563,Pursuing Independent Paths,B*Voluntary-Spot-V Dep-Enhanced - do not u,Bi-Borough Director of Integrated Care,1020.88
13/03/2024,1248563,Pursuing Independent Paths,B*Voluntary-Spot-V Dep-Enhanced - do not u,Bi-Borough Director of Integrated Care,1020.88
13/03/2024,1248563,Pursuing Independent Paths,B*Voluntary-Spot-V Dep-Enhanced - do not u,Bi-Borough Director of Integrated Care,1531.32
13/03/2024,1248563,Pursuing Independent Paths,B*Voluntary-Spot-V Dep-Enhanced - do not u,Bi-Borough Director of Integrated Care,510.44
13/03/2024,1248563,Pursuing Independent Paths,B*Voluntary-Spot-V Dep-Enhanced - do not u,Bi-Borough Director of Integrated Care,510.44
13/03/2024,1248563,Pursuing Independent Paths,B*Voluntary-Spot-V Dep-Enhanced - do not u,Bi-Borough Director of Integrated Care,1020.88
13/03/2024,1248563,Pursuing Independent Paths,B*Voluntary-Spot-V Dep-Enhanced - do not u,Bi-Borough Director of Integrated Care,510.44
13/03/2024,1248563,Pursuing Independent Paths,B*Voluntary-Spot-V Dep-Enhanced - do not u,Bi-Borough Director of Integrated Care,510.44
13/03/2024,1248563,Pursuing Independent Paths,B*Voluntary-Spot-V Dep-Enhanced - do not u,Bi-Borough Director of Integrated Care,1020.88
13/03/2024,1248563,Pursuing Independent Paths,B*Voluntary-Spot-V Dep-Enhanced - do not u,Bi-Borough Director of Integrated Care,1020.88
13/03/2024,1248563,Pursuing Independent Paths,B*Voluntary-Spot-V Dep-Enhanced - do not u,Bi-Borough Director of Integrated Care,2041.76
13/03/2024,1248563,Pursuing Independent Paths,B*Voluntary-Spot-V Dep-Enhanced - do not u,Bi-Borough Director of Integrated Care,1531.32
13/03/2024,1248563,Pursuing Independent Paths,B*Voluntary-Spot-V Dep-Enhanced - do not u,Bi-Borough Director of Integrated Care,1531.32
13/03/2024,1248563,Pursuing Independent Paths,B*Voluntary-Spot-V Dep-Enhanced - do not u,Bi-Borough Director of Integrated Care,1531.32
26/03/2024,1248563,Pursuing Independent Paths,B*Voluntary-Spot-V Dep-Enhanced - do not u,Bi-Borough Director of Integrated Care,1531.32
26/03/2024,1248563,Pursuing Independent Paths,B*Voluntary-Spot-V Dep-Enhanced - do not u,Bi-Borough Director of Integrated Care,1276.1
26/03/2024,1248563,Pursuing Independent Paths,B*Voluntary-Spot-V Dep-Enhanced - do not u,Bi-Borough Director of Integrated Care,1531.32
26/03/2024,1248563,Pursuing Independent Paths,B*Voluntary-Spot-V Dep-Enhanced - do not u,Bi-Borough Director of Integrated Care,1786.54
26/03/2024,1248563,Pursuing Independent Paths,B*Voluntary-Spot-V Dep-Enhanced - do not u,Bi-Borough Director of Integrated Care,1289.32
26/03/2024,1248563,Pursuing Independent Paths,B*Voluntary-Spot-V Dep-Enhanced - do not u,Bi-Borough Director of Integrated Care,510.44
26/03/2024,1248563,Pursuing Independent Paths,B*Voluntary-Spot-V Dep-Enhanced - do not u,Bi-Borough Director of Integrated Care,1020.88
26/03/2024,1248563,Pursuing Independent Paths,B*Voluntary-Spot-V Dep-Enhanced - do not u,Bi-Borough Director of Integrated Care,1020.88
26/03/2024,1248563,Pursuing Independent Paths,B*Voluntary-Spot-V Dep-Enhanced - do not u,Bi-Borough Director of Integrated Care,1531.32
26/03/2024,1248563,Pursuing Independent Paths,B*Voluntary-Spot-V Dep-Enhanced - do not u,Bi-Borough Director of Integrated Care,1531.32
26/03/2024,1248563,Pursuing Independent Paths,B*Voluntary-Spot-V Dep-Enhanced - do not u,Bi-Borough Director of Integrated Care,1531.32
26/03/2024,1248563,Pursuing Independent Paths,B*Voluntary-Spot-V Dep-Enhanced - do not u,Bi-Borough Director of Integrated Care,1531.32
26/03/2024,1248563,Pursuing Independent Paths,B*Voluntary-Spot-V Dep-Enhanced - do not u,Bi-Borough Director of Integrated Care,1276.1
26/03/2024,1248563,Pursuing Independent Paths,B*Voluntary-Spot-V Dep-Enhanced - do not u,Bi-Borough Director of Integrated Care,2552.2
26/03/2024,1248563,Pursuing Independent Paths,B*Voluntary-Spot-V Dep-Enhanced - do not u,Bi-Borough Director of Integrated Care,1531.32
26/03/2024,1248563,Pursuing Independent Paths,B*Voluntary-Spot-V Dep-Enhanced - do not u,Bi-Borough Director of Integrated Care,1531.32
26/03/2024,1248563,Pursuing Independent Paths,B*Voluntary-Spot-V Dep-Enhanced - do not u,Bi-Borough Director of Integrated Care,1276.1
26/03/2024,1248563,Pursuing Independent Paths,B*Voluntary-Spot-V Dep-Enhanced - do not u,Bi-Borough Director of Integrated Care,1252.72
26/03/2024,1248563,Pursuing Independent Paths,B*Voluntary-Spot-V Dep-Enhanced - do not u,Bi-Borough Director of Integrated Care,510.44
26/03/2024,1248563,Pursuing Independent Paths,B*Voluntary-Spot-V Dep-Enhanced - do not u,Bi-Borough Director of Integrated Care,1879.08
26/03/2024,1248563,Pursuing Independent Paths,B*Voluntary-Spot-V Dep-Enhanced - do not u,Bi-Borough Director of Integrated Care,1531.32
26/03/2024,1248563,Pursuing Independent Paths,B*Voluntary-Spot-V Dep-Enhanced - do not u,Bi-Borough Director of Integrated Care,1020.88
26/03/2024,1248563,Pursuing Independent Paths,B*Voluntary-Spot-V Dep-Enhanced - do not u,Bi-Borough Director of Integrated Care,583.36
26/03/2024,1248563,Pursuing Independent Paths,B*Voluntary-Spot-V Dep-Enhanced - do not u,Bi-Borough Director of Integrated Care,510.44
26/03/2024,1248563,Pursuing Independent Paths,B*Voluntary-Spot-V Dep-Enhanced - do not u,Bi-Borough Director of Integrated Care,765.66
26/03/2024,1248563,Pursuing Independent Paths,B*Voluntary-Spot-V Dep-Enhanced - do not u,Bi-Borough Director of Integrated Care,1020.88
26/03/2024,1248563,Pursuing Independent Paths,B*Voluntary-Spot-V Dep-Enhanced - do not u,Bi-Borough Director of Integrated Care,1020.88
26/03/2024,1248563,Pursuing Independent Paths,B*Voluntary-Spot-V Dep-Enhanced - do not u,Bi-Borough Director of Integrated Care,1531.32
26/03/2024,1248563,Pursuing Independent Paths,B*Voluntary-Spot-V Dep-Enhanced - do not u,Bi-Borough Director of Integrated Care,510.44
26/03/2024,1248563,Pursuing Independent Paths,B*Voluntary-Spot-V Dep-Enhanced - do not u,Bi-Borough Director of Integrated Care,510.44
26/03/2024,1248563,Pursuing Independent Paths,B*Voluntary-Spot-V Dep-Enhanced - do not u,Bi-Borough Director of Integrated Care,1020.88
26/03/2024,1248563,Pursuing Independent Paths,B*Voluntary-Spot-V Dep-Enhanced - do not u,Bi-Borough Director of Integrated Care,510.44
26/03/2024,1248563,Pursuing Independent Paths,B*Voluntary-Spot-V Dep-Enhanced - do not u,Bi-Borough Director of Integrated Care,510.44
26/03/2024,1248563,Pursuing Independent Paths,B*Voluntary-Spot-V Dep-Enhanced - do not u,Bi-Borough Director of Integrated Care,1020.88
26/03/2024,1248563,Pursuing Independent Paths,B*Voluntary-Spot-V Dep-Enhanced - do not u,Bi-Borough Director of Integrated Care,1020.88
26/03/2024,1248563,Pursuing Independent Paths,B*Voluntary-Spot-V Dep-Enhanced - do not u,Bi-Borough Director of Integrated Care,510.44
26/03/2024,1248563,Pursuing Independent Paths,B*Voluntary-Spot-V Dep-Enhanced - do not u,Bi-Borough Director of Integrated Care,510.44
26/03/2024,1248563,Pursuing Independent Paths,B*Voluntary-Spot-V Dep-Enhanced - do not u,Bi-Borough Director of Integrated Care,2041.76
26/03/2024,1248563,Pursuing Independent Paths,B*Voluntary-Spot-V Dep-Enhanced - do not u,Bi-Borough Director of Integrated Care,1531.32
26/03/2024,1248563,Pursuing Independent Paths,B*Voluntary-Spot-V Dep-Enhanced - do not u,Bi-Borough Director of Integrated Care,1531.32
26/03/2024,1248563,Pursuing Independent Paths,B*Voluntary-Spot-V Dep-Enhanced - do not u,Bi-Borough Director of Integrated Care,1531.32
01/02/2024,1245169,Rcp Residential Care Providers Ltd,,Bi-Borough Director of Integrated Care,8092.44
29/02/2024,1245169,Rcp Residential Care Providers Ltd,,Bi-Borough Director of Integrated Care,8092.44
26/03/2024,1245169,Rcp Residential Care Providers Ltd,,Bi-Borough Director of Integrated Care,10115.55
01/02/2024,1269718,Reliant Care Limited,,Bi-Borough Director of Integrated Care,2100
01/02/2024,1269718,Reliant Care Limited,,Bi-Borough Director of Integrated Care,3712
01/02/2024,1269718,Reliant Care Limited,,Bi-Borough Director of Integrated Care,8764
29/02/2024,1269718,Reliant Care Limited,,Bi-Borough Director of Integrated Care,8764
29/02/2024,1269718,Reliant Care Limited,,Bi-Borough Director of Integrated Care,3712
29/02/2024,1269718,Reliant Care Limited,,Bi-Borough Director of Integrated Care,2800
26/03/2024,1269718,Reliant Care Limited,,Bi-Borough Director of Integrated Care,4640
26/03/2024,1269718,Reliant Care Limited,,Bi-Borough Director of Integrated Care,10955
26/03/2024,1269718,Reliant Care Limited,,Bi-Borough Director of Integrated Care,3500
02/01/2024,1298287,Residential Care Services Ltd,B*Voluntary-Spot-V Dep-Enhanced - do not u,Bi-Borough Director of Integrated Care,1653.84
27/03/2024,1298287,Residential Care Services Ltd,B*Voluntary-Spot-V Dep-Enhanced - do not u,Bi-Borough Director of Integrated Care,1653.84
16/01/2024,1248843,Sage Care Ltd,,Bi-Borough Director of Integrated Care,634.27
16/01/2024,1248843,Sage Care Ltd,,Bi-Borough Director of Integrated Care,509.04
16/02/2024,1248843,Sage Care Ltd,,Bi-Borough Director of Integrated Care,604.58
16/02/2024,1248843,Sage Care Ltd,,Bi-Borough Director of Integrated Care,2295.29
16/02/2024,1248843,Sage Care Ltd,,Bi-Borough Director of Integrated Care,1022.44
16/02/2024,1248843,Sage Care Ltd,,Bi-Borough Director of Integrated Care,2370.92
14/03/2024,1248843,Sage Care Ltd,,Bi-Borough Director of Integrated Care,604.58
14/03/2024,1248843,Sage Care Ltd,,Bi-Borough Director of Integrated Care,1434.64
14/03/2024,1248843,Sage Care Ltd,,Bi-Borough Director of Integrated Care,2374.81
26/03/2024,1321804,PERSONAL PAYMENTS,,Bi-Borough Director of Integrated Care,33714.25
01/02/2024,1262057,Sense - The National Deafbllind,,Bi-Borough Director of Integrated Care,4868.52
29/02/2024,1262057,Sense - The National Deafbllind,,Bi-Borough Director of Integrated Care,4868.52
26/03/2024,1262057,Sense - The National Deafbllind,,Bi-Borough Director of Integrated Care,6085.65
01/02/2024,1245566,Shaw Care Uk Ltd,,Bi-Borough Director of Integrated Care,5191.64
29/02/2024,1245566,Shaw Care Uk Ltd,,Bi-Borough Director of Integrated Care,5191.64
26/03/2024,1245566,Shaw Care Uk Ltd,,Bi-Borough Director of Integrated Care,6489.55
01/02/2024,1286751,Shine Partnerships Limited,,Bi-Borough Director of Integrated Care,2400
29/02/2024,1286751,Shine Partnerships Limited,,Bi-Borough Director of Integrated Care,4513.34
26/03/2024,1286751,Shine Partnerships Limited,,Bi-Borough Director of Integrated Care,3852.85
09/01/2024,1302889,Solitions Social Care,B*Voluntary-Spot-V Dep-Enhanced - do not u,Bi-Borough Director of Integrated Care,5628
07/02/2024,1302889,Solitions Social Care,B*Voluntary-Spot-V Dep-Enhanced - do not u,Bi-Borough Director of Integrated Care,6187
05/03/2024,1302889,Solitions Social Care,B*Voluntary-Spot-V Dep-Enhanced - do not u,Bi-Borough Director of Integrated Care,7733.75
11/01/2024,1294228,Solutions Logistics Ltd,B*Voluntary-Spot-V Dep-Enhanced - do not u,Bi-Borough Director of Integrated Care,1575
07/02/2024,1294228,Solutions Logistics Ltd,B*Voluntary-Spot-V Dep-Enhanced - do not u,Bi-Borough Director of Integrated Care,1725
12/03/2024,1294228,Solutions Logistics Ltd,B*Voluntary-Spot-V Dep-Enhanced - do not u,Bi-Borough Director of Integrated Care,1575
01/02/2024,1248935,Southside Partnership,,Bi-Borough Director of Integrated Care,800
01/02/2024,1248935,Southside Partnership,,Bi-Borough Director of Integrated Care,3592.8
01/02/2024,1248935,Southside Partnership,,Bi-Borough Director of Integrated Care,2546.68
01/02/2024,1248935,Southside Partnership,,Bi-Borough Director of Integrated Care,800
29/02/2024,1248935,Southside Partnership,,Bi-Borough Director of Integrated Care,800
29/02/2024,1248935,Southside Partnership,,Bi-Borough Director of Integrated Care,2546.68
29/02/2024,1248935,Southside Partnership,,Bi-Borough Director of Integrated Care,3592.8
29/02/2024,1248935,Southside Partnership,,Bi-Borough Director of Integrated Care,800
26/03/2024,1248935,Southside Partnership,,Bi-Borough Director of Integrated Care,1000
26/03/2024,1248935,Southside Partnership,,Bi-Borough Director of Integrated Care,4491
26/03/2024,1248935,Southside Partnership,,Bi-Borough Director of Integrated Care,3183.35
26/03/2024,1248935,Southside Partnership,,Bi-Borough Director of Integrated Care,1000
09/01/2024,1248940,Special People,B*Voluntary-Spot-V Dep-Enhanced - do not u,Bi-Borough Director of Integrated Care,1452
09/01/2024,1248940,Special People,B*Voluntary-Spot-V Dep-Enhanced - do not u,Bi-Borough Director of Integrated Care,1596
09/01/2024,1248940,Special People,B*Voluntary-Spot-V Dep-Enhanced - do not u,Bi-Borough Director of Integrated Care,1248
01/02/2024,1245620,Spencer & Arlington,,Bi-Borough Director of Integrated Care,9700.64
29/02/2024,1245620,Spencer & Arlington,,Bi-Borough Director of Integrated Care,9700.64
26/03/2024,1245620,Spencer & Arlington,,Bi-Borough Director of Integrated Care,12125.8
16/01/2024,1243543,Springlake Care Home Ltd,,Bi-Borough Director of Integrated Care,2401
16/01/2024,1243543,Springlake Care Home Ltd,,Bi-Borough Director of Integrated Care,1575
01/02/2024,1243543,Springlake Care Home Ltd,,Bi-Borough Director of Integrated Care,6900
01/02/2024,1243543,Springlake Care Home Ltd,,Bi-Borough Director of Integrated Care,6772
01/02/2024,1243543,Springlake Care Home Ltd,,Bi-Borough Director of Integrated Care,6800
29/02/2024,1243543,Springlake Care Home Ltd,,Bi-Borough Director of Integrated Care,6900
29/02/2024,1243543,Springlake Care Home Ltd,,Bi-Borough Director of Integrated Care,6772
29/02/2024,1243543,Springlake Care Home Ltd,,Bi-Borough Director of Integrated Care,31767.5
26/03/2024,1243543,Springlake Care Home Ltd,,Bi-Borough Director of Integrated Care,8625
26/03/2024,1243543,Springlake Care Home Ltd,,Bi-Borough Director of Integrated Care,8465
26/03/2024,1243543,Springlake Care Home Ltd,,Bi-Borough Director of Integrated Care,16822.5
01/02/2024,1248948,St Davids Care In The Community,,Bi-Borough Director of Integrated Care,4252.36
01/02/2024,1248948,St Davids Care In The Community,,Bi-Borough Director of Integrated Care,4252.36
29/02/2024,1248948,St Davids Care In The Community,,Bi-Borough Director of Integrated Care,4252.36
29/02/2024,1248948,St Davids Care In The Community,,Bi-Borough Director of Integrated Care,4252.36
26/03/2024,1248948,St Davids Care In The Community,,Bi-Borough Director of Integrated Care,5315.45
26/03/2024,1248948,St Davids Care In The Community,,Bi-Borough Director of Integrated Care,5315.45
26/01/2024,1245182,Supporting Care Ltd,,Bi-Borough Director of Integrated Care,941.29
30/01/2024,1245182,Supporting Care Ltd,,Bi-Borough Director of Integrated Care,998.92
18/03/2024,1245182,Supporting Care Ltd,,Bi-Borough Director of Integrated Care,998.92
07/02/2024,1260994,SureCare Chelsea & Fulham,B*Voluntary-Spot-V Dep-Enhanced - do not u,Bi-Borough Director of Integrated Care,1440
09/02/2024,1260994,SureCare Chelsea & Fulham,B*Voluntary-Spot-V Dep-Enhanced - do not u,Bi-Borough Director of Integrated Care,933.75
09/01/2024,1307154,Surrey Choices Ltd,B*Voluntary-Spot-V Dep-Enhanced - do not u,Bi-Borough Director of Integrated Care,567
09/01/2024,1307154,Surrey Choices Ltd,B*Voluntary-Spot-V Dep-Enhanced - do not u,Bi-Borough Director of Integrated Care,1030.68
09/02/2024,1307154,Surrey Choices Ltd,B*Voluntary-Spot-V Dep-Enhanced - do not u,Bi-Borough Director of Integrated Care,1701
21/02/2024,1307154,Surrey Choices Ltd,B*Voluntary-Spot-V Dep-Enhanced - do not u,Bi-Borough Director of Integrated Care,1564.27
12/03/2024,1307154,Surrey Choices Ltd,B*Voluntary-Spot-V Dep-Enhanced - do not u,Bi-Borough Director of Integrated Care,1323
03/01/2024,1245825,Sweet Tree Home Care Services,,Bi-Borough Director of Integrated Care,5497.27
03/01/2024,1245825,Sweet Tree Home Care Services,,Bi-Borough Director of Integrated Care,4752.94
02/02/2024,1245825,Sweet Tree Home Care Services,,Bi-Borough Director of Integrated Care,1216.17
05/03/2024,1245825,Sweet Tree Home Care Services,,Bi-Borough Director of Integrated Care,5545.1
01/02/2024,1305461,The Frances Taylor Foundation,,Bi-Borough Director of Integrated Care,3901.6
01/02/2024,1245900,The Grace Eyre Foundation,,Bi-Borough Director of Integrated Care,3290.16
01/02/2024,1245900,The Grace Eyre Foundation,,Bi-Borough Director of Integrated Care,4235.96
29/02/2024,1245900,The Grace Eyre Foundation,,Bi-Borough Director of Integrated Care,3290.16
29/02/2024,1245900,The Grace Eyre Foundation,,Bi-Borough Director of Integrated Care,4235.96
26/03/2024,1245900,The Grace Eyre Foundation,,Bi-Borough Director of Integrated Care,4112.7
26/03/2024,1245900,The Grace Eyre Foundation,,Bi-Borough Director of Integrated Care,5294.95
01/02/2024,1249156,The Wirral Autistic Society,,Bi-Borough Director of Integrated Care,6392.96
29/02/2024,1249156,The Wirral Autistic Society,,Bi-Borough Director of Integrated Care,6392.96
26/03/2024,1249156,The Wirral Autistic Society,,Bi-Borough Director of Integrated Care,7991.2
01/02/2024,1246095,Theana Ltd T/a Enlighten Homes,,Bi-Borough Director of Integrated Care,2946
29/02/2024,1246095,Theana Ltd T/a Enlighten Homes,,Bi-Borough Director of Integrated Care,2946
26/03/2024,1246095,Theana Ltd T/a Enlighten Homes,,Bi-Borough Director of Integrated Care,3682.5
02/02/2024,1318666,PERSONAL PAYMENTS,,Bi-Borough Director of Integrated Care,10954.64
29/02/2024,1318666,PERSONAL PAYMENTS,,Bi-Borough Director of Integrated Care,10954.64
26/03/2024,1318666,PERSONAL PAYMENTS,,Bi-Borough Director of Integrated Care,13693.3
01/02/2024,1287640,VIVID COMMUNITY CARE LTD,,Bi-Borough Director of Integrated Care,15311.52
29/02/2024,1287640,VIVID COMMUNITY CARE LTD,,Bi-Borough Director of Integrated Care,15311.52
26/03/2024,1287640,VIVID COMMUNITY CARE LTD,,Bi-Borough Director of Integrated Care,19139.4
06/01/2024,1249232,Vincentian Care Plus,,Bi-Borough Director of Integrated Care,827.19
26/01/2024,1249232,Vincentian Care Plus,,Bi-Borough Director of Integrated Care,827.19
26/02/2024,1249232,Vincentian Care Plus,,Bi-Borough Director of Integrated Care,827.19
26/02/2024,1249232,Vincentian Care Plus,,Bi-Borough Director of Integrated Care,572.67
19/03/2024,1249232,Vincentian Care Plus,,Bi-Borough Director of Integrated Care,805.98
19/03/2024,1249232,Vincentian Care Plus,,Bi-Borough Director of Integrated Care,636.3
01/02/2024,1243552,Vision Homes Association,,Bi-Borough Director of Integrated Care,9600
29/02/2024,1243552,Vision Homes Association,,Bi-Borough Director of Integrated Care,9600
26/03/2024,1243552,Vision Homes Association,,Bi-Borough Director of Integrated Care,12000
16/01/2024,1243553,Voyage Care (Bridge House),,Bi-Borough Director of Integrated Care,7772.28
01/02/2024,1243553,Voyage Care (Bridge House),,Bi-Borough Director of Integrated Care,8136.08
01/02/2024,1243553,Voyage Care (Bridge House),,Bi-Borough Director of Integrated Care,5433.48
01/02/2024,1243553,Voyage Care (Bridge House),,Bi-Borough Director of Integrated Care,7385.32
01/02/2024,1243553,Voyage Care (Bridge House),,Bi-Borough Director of Integrated Care,10363.04
29/02/2024,1243553,Voyage Care (Bridge House),,Bi-Borough Director of Integrated Care,8136.08
29/02/2024,1243553,Voyage Care (Bridge House),,Bi-Borough Director of Integrated Care,34255.87
29/02/2024,1243553,Voyage Care (Bridge House),,Bi-Borough Director of Integrated Care,7385.32
29/02/2024,1243553,Voyage Care (Bridge House),,Bi-Borough Director of Integrated Care,10363.04
07/03/2024,1243553,Voyage Care (Bridge House),,Bi-Borough Director of Integrated Care,1536.38
07/03/2024,1243553,Voyage Care (Bridge House),,Bi-Borough Director of Integrated Care,20925.92
26/03/2024,1243553,Voyage Care (Bridge House),,Bi-Borough Director of Integrated Care,12953.8
26/03/2024,1243553,Voyage Care (Bridge House),,Bi-Borough Director of Integrated Care,12000
26/03/2024,1243553,Voyage Care (Bridge House),,Bi-Borough Director of Integrated Care,10170.1
26/03/2024,1243553,Voyage Care (Bridge House),,Bi-Borough Director of Integrated Care,10186.6
01/02/2024,1243554,Voyage Care (Kenton House),,Bi-Borough Director of Integrated Care,6912.24
29/02/2024,1243554,Voyage Care (Kenton House),,Bi-Borough Director of Integrated Care,31960.42
26/03/2024,1243554,Voyage Care (Kenton House),,Bi-Borough Director of Integrated Care,11305
31/01/2024,1249291,Westminster Society,,Bi-Borough Director of Integrated Care,3238.24
31/01/2024,1249291,Westminster Society,,Bi-Borough Director of Integrated Care,3982.16
31/01/2024,1249291,Westminster Society,,Bi-Borough Director of Integrated Care,1024
31/01/2024,1249291,Westminster Society,,Bi-Borough Director of Integrated Care,3194.48
31/01/2024,1249291,Westminster Society,,Bi-Borough Director of Integrated Care,6935.96
31/01/2024,1249291,Westminster Society,,Bi-Borough Director of Integrated Care,1225.28
31/01/2024,1249291,Westminster Society,,Bi-Borough Director of Integrated Care,700.16
31/01/2024,1249291,Westminster Society,,Bi-Borough Director of Integrated Care,4901.12
31/01/2024,1249291,Westminster Society,,Bi-Borough Director of Integrated Care,1225.28
31/01/2024,1249291,Westminster Society,,Bi-Borough Director of Integrated Care,9539.68
31/01/2024,1249291,Westminster Society,,Bi-Borough Director of Integrated Care,1799.84
31/01/2024,1249291,Westminster Society,,Bi-Borough Director of Integrated Care,612.64
31/01/2024,1249291,Westminster Society,,Bi-Borough Director of Integrated Care,1024
31/01/2024,1249291,Westminster Society,,Bi-Borough Director of Integrated Care,2450.56
31/01/2024,1249291,Westminster Society,,Bi-Borough Director of Integrated Care,2713.12
31/01/2024,1249291,Westminster Society,,Bi-Borough Director of Integrated Care,2975.68
31/01/2024,1249291,Westminster Society,,Bi-Borough Director of Integrated Care,798.8
31/01/2024,1249291,Westminster Society,,Bi-Borough Director of Integrated Care,7089.12
31/01/2024,1249291,Westminster Society,,Bi-Borough Director of Integrated Care,2450.56
31/01/2024,1249291,Westminster Society,,Bi-Borough Director of Integrated Care,962.72
31/01/2024,1249291,Westminster Society,,Bi-Borough Director of Integrated Care,2363.04
31/01/2024,1249291,Westminster Society,,Bi-Borough Director of Integrated Care,3588.32
31/01/2024,1249291,Westminster Society,,Bi-Borough Director of Integrated Care,3982.16
31/01/2024,1249291,Westminster Society,,Bi-Borough Director of Integrated Care,1225.28
31/01/2024,1249291,Westminster Society,,Bi-Borough Director of Integrated Care,4988.64
31/01/2024,1249291,Westminster Society,,Bi-Borough Director of Integrated Care,3063.2
31/01/2024,1249291,Westminster Society,,Bi-Borough Director of Integrated Care,3150.72
31/01/2024,1249291,Westminster Society,,Bi-Borough Director of Integrated Care,7859.28
31/01/2024,1249291,Westminster Society,,Bi-Borough Director of Integrated Care,2450.56
31/01/2024,1249291,Westminster Society,,Bi-Borough Director of Integrated Care,514.24
31/01/2024,1249291,Westminster Society,,Bi-Borough Director of Integrated Care,3325.76
31/01/2024,1249291,Westminster Society,,Bi-Borough Director of Integrated Care,3728.36
31/01/2024,1249291,Westminster Society,,Bi-Borough Director of Integrated Care,899.92
31/01/2024,1249291,Westminster Society,,Bi-Borough Director of Integrated Care,9373.4
31/01/2024,1249291,Westminster Society,,Bi-Borough Director of Integrated Care,798.8
31/01/2024,1249291,Westminster Society,,Bi-Borough Director of Integrated Care,1531.6
31/01/2024,1249291,Westminster Society,,Bi-Borough Director of Integrated Care,5601.28
31/01/2024,1249291,Westminster Society,,Bi-Borough Director of Integrated Care,3063.2
31/01/2024,1249291,Westminster Society,,Bi-Borough Director of Integrated Care,7351.68
31/01/2024,1249291,Westminster Society,,Bi-Borough Director of Integrated Care,10572.4
31/01/2024,1249291,Westminster Society,,Bi-Borough Director of Integrated Care,798.8
31/01/2024,1249291,Westminster Society,,Bi-Borough Director of Integrated Care,2450.56
31/01/2024,1249291,Westminster Society,,Bi-Borough Director of Integrated Care,5426.24
31/01/2024,1249291,Westminster Society,,Bi-Borough Director of Integrated Care,2450.56
31/01/2024,1249291,Westminster Society,,Bi-Borough Director of Integrated Care,798.8
31/01/2024,1249291,Westminster Society,,Bi-Borough Director of Integrated Care,10047.28
31/01/2024,1249291,Westminster Society,,Bi-Borough Director of Integrated Care,1269.04
31/01/2024,1249291,Westminster Society,,Bi-Borough Director of Integrated Care,4200.96
31/01/2024,1249291,Westminster Society,,Bi-Borough Director of Integrated Care,1925.44
31/01/2024,1249291,Westminster Society,,Bi-Borough Director of Integrated Care,599.08
31/01/2024,1249291,Westminster Society,,Bi-Borough Director of Integrated Care,7407.84
31/01/2024,1249291,Westminster Society,,Bi-Borough Director of Integrated Care,1024
31/01/2024,1249291,Westminster Society,,Bi-Borough Director of Integrated Care,4909.88
31/01/2024,1249291,Westminster Society,,Bi-Borough Director of Integrated Care,2188
31/01/2024,1249291,Westminster Society,,Bi-Borough Director of Integrated Care,599.08
31/01/2024,1249291,Westminster Society,,Bi-Borough Director of Integrated Care,4463.52
31/01/2024,1249291,Westminster Society,,Bi-Borough Director of Integrated Care,1225.28
31/01/2024,1249291,Westminster Society,,Bi-Borough Director of Integrated Care,2800.64
31/01/2024,1249291,Westminster Society,,Bi-Borough Director of Integrated Care,787.68
31/01/2024,1249291,Westminster Society,,Bi-Borough Director of Integrated Care,7132.88
31/01/2024,1249291,Westminster Society,,Bi-Borough Director of Integrated Care,1024
31/01/2024,1249291,Westminster Society,,Bi-Borough Director of Integrated Care,3369.52
31/01/2024,1249291,Westminster Society,,Bi-Borough Director of Integrated Care,599.08
31/01/2024,1249291,Westminster Society,,Bi-Borough Director of Integrated Care,612.64
31/01/2024,1249291,Westminster Society,,Bi-Borough Director of Integrated Care,3369.52
31/01/2024,1249291,Westminster Society,,Bi-Borough Director of Integrated Care,1601.6
31/01/2024,1249291,Westminster Society,,Bi-Borough Director of Integrated Care,2869.41
31/01/2024,1249291,Westminster Society,,Bi-Borough Director of Integrated Care,1487.84
31/01/2024,1249291,Westminster Society,,Bi-Borough Director of Integrated Care,3325.76
31/01/2024,1249291,Westminster Society,,Bi-Borough Director of Integrated Care,514.24
31/01/2024,1249291,Westminster Society,,Bi-Borough Director of Integrated Care,2822.52
31/01/2024,1249291,Westminster Society,,Bi-Borough Director of Integrated Care,3500.8
31/01/2024,1249291,Westminster Society,,Bi-Borough Director of Integrated Care,1024
31/01/2024,1249291,Westminster Society,,Bi-Borough Director of Integrated Care,5496.24
31/01/2024,1249291,Westminster Society,,Bi-Borough Director of Integrated Care,5540
31/01/2024,1249291,Westminster Society,,Bi-Borough Director of Integrated Care,4463.52
31/01/2024,1249291,Westminster Society,,Bi-Borough Director of Integrated Care,2713.12
31/01/2024,1249291,Westminster Society,,Bi-Borough Director of Integrated Care,599.08
31/01/2024,1249291,Westminster Society,,Bi-Borough Director of Integrated Care,10852.48
31/01/2024,1249291,Westminster Society,,Bi-Borough Director of Integrated Care,1799.84
31/01/2024,1249291,Westminster Society,,Bi-Borough Director of Integrated Care,2450.56
31/01/2024,1249291,Westminster Society,,Bi-Borough Director of Integrated Care,1024
31/01/2024,1249291,Westminster Society,,Bi-Borough Director of Integrated Care,7447.96
31/01/2024,1249291,Westminster Society,,Bi-Borough Director of Integrated Care,1006.48
31/01/2024,1249291,Westminster Society,,Bi-Borough Director of Integrated Care,700.16
31/01/2024,1249291,Westminster Society,,Bi-Borough Director of Integrated Care,3369.52
31/01/2024,1249291,Westminster Society,,Bi-Borough Director of Integrated Care,2888.16
31/01/2024,1249291,Westminster Society,,Bi-Borough Director of Integrated Care,4747.96
31/01/2024,1249291,Westminster Society,,Bi-Borough Director of Integrated Care,2888.16
31/01/2024,1249291,Westminster Society,,Bi-Borough Director of Integrated Care,1531.6
31/01/2024,1249291,Westminster Society,,Bi-Borough Director of Integrated Care,2538.08
31/01/2024,1249291,Westminster Society,,Bi-Borough Director of Integrated Care,9246.48
31/01/2024,1249291,Westminster Society,,Bi-Borough Director of Integrated Care,798.8
31/01/2024,1249291,Westminster Society,,Bi-Borough Director of Integrated Care,1531.6
31/01/2024,1249291,Westminster Society,,Bi-Borough Director of Integrated Care,599.08
31/01/2024,1249291,Westminster Society,,Bi-Borough Director of Integrated Care,6126.4
31/01/2024,1249291,Westminster Society,,Bi-Borough Director of Integrated Care,7045.36
31/01/2024,1249291,Westminster Society,,Bi-Borough Director of Integrated Care,1225.28
31/01/2024,1249291,Westminster Society,,Bi-Borough Director of Integrated Care,1024
31/01/2024,1249291,Westminster Society,,Bi-Borough Director of Integrated Care,5513.76
31/01/2024,1249291,Westminster Society,,Bi-Borough Director of Integrated Care,1024
31/01/2024,1249291,Westminster Society,,Bi-Borough Director of Integrated Care,4839.84
31/01/2024,1249291,Westminster Society,,Bi-Borough Director of Integrated Care,599.08
31/01/2024,1249291,Westminster Society,,Bi-Borough Director of Integrated Care,3325.76
31/01/2024,1249291,Westminster Society,,Bi-Borough Director of Integrated Care,7421.68
31/01/2024,1249291,Westminster Society,,Bi-Borough Director of Integrated Care,1024
31/01/2024,1249291,Westminster Society,,Bi-Borough Director of Integrated Care,10414.88
31/01/2024,1249291,Westminster Society,,Bi-Borough Director of Integrated Care,1024
31/01/2024,1249291,Westminster Society,,Bi-Borough Director of Integrated Care,7229.16
31/01/2024,1249291,Westminster Society,,Bi-Borough Director of Integrated Care,1024
31/01/2024,1249291,Westminster Society,,Bi-Borough Director of Integrated Care,700.16
31/01/2024,1249291,Westminster Society,,Bi-Borough Director of Integrated Care,3413.28
31/01/2024,1249291,Westminster Society,,Bi-Borough Director of Integrated Care,2188
06/02/2024,1249291,Westminster Society,B*Voluntary-Spot-V Dep-Enhanced - do not u,Bi-Borough Director of Integrated Care,525.12
06/02/2024,1249291,Westminster Society,B*Voluntary-Spot-V Dep-Enhanced - do not u,Bi-Borough Director of Integrated Care,700.16
06/02/2024,1249291,Westminster Society,B*Voluntary-Spot-V Dep-Enhanced - do not u,Bi-Borough Director of Integrated Care,700.16
06/02/2024,1249291,Westminster Society,B*Voluntary-Spot-V Dep-Enhanced - do not u,Bi-Borough Director of Integrated Care,787.68
06/02/2024,1249291,Westminster Society,B*Voluntary-Spot-V Dep-Enhanced - do not u,Bi-Borough Director of Integrated Care,700.16
06/02/2024,1249291,Westminster Society,B*Voluntary-Spot-V Dep-Enhanced - do not u,Bi-Borough Director of Integrated Care,612.64
06/02/2024,1249291,Westminster Society,B*Voluntary-Spot-V Dep-Enhanced - do not u,Bi-Borough Director of Integrated Care,1225.28
06/02/2024,1249291,Westminster Society,B*Voluntary-Spot-V Dep-Enhanced - do not u,Bi-Borough Director of Integrated Care,1225.28
06/02/2024,1249291,Westminster Society,B*Voluntary-Spot-V Dep-Enhanced - do not u,Bi-Borough Director of Integrated Care,612.64
06/02/2024,1249291,Westminster Society,B*Voluntary-Spot-V Dep-Enhanced - do not u,Bi-Borough Director of Integrated Care,2297.4
06/02/2024,1249291,Westminster Society,B*Voluntary-Spot-V Dep-Enhanced - do not u,Bi-Borough Director of Integrated Care,787.68
06/02/2024,1249291,Westminster Society,B*Voluntary-Spot-V Dep-Enhanced - do not u,Bi-Borough Director of Integrated Care,1750.4
06/02/2024,1249291,Westminster Society,B*Voluntary-Spot-V Dep-Enhanced - do not u,Bi-Borough Director of Integrated Care,1137.76
06/02/2024,1249291,Westminster Society,B*Voluntary-Spot-V Dep-Enhanced - do not u,Bi-Borough Director of Integrated Care,875.2
06/02/2024,1249291,Westminster Society,B*Voluntary-Spot-V Dep-Enhanced - do not u,Bi-Borough Director of Integrated Care,557.94
06/02/2024,1249291,Westminster Society,B*Voluntary-Spot-V Dep-Enhanced - do not u,Bi-Borough Director of Integrated Care,1050.24
29/02/2024,1249291,Westminster Society,,Bi-Borough Director of Integrated Care,3325.76
29/02/2024,1249291,Westminster Society,,Bi-Borough Director of Integrated Care,514.24
29/02/2024,1249291,Westminster Society,,Bi-Borough Director of Integrated Care,3763.36
29/02/2024,1249291,Westminster Society,,Bi-Borough Director of Integrated Care,3500.8
29/02/2024,1249291,Westminster Society,,Bi-Borough Director of Integrated Care,5496.24
29/02/2024,1249291,Westminster Society,,Bi-Borough Director of Integrated Care,1024
29/02/2024,1249291,Westminster Society,,Bi-Borough Director of Integrated Care,5540
29/02/2024,1249291,Westminster Society,,Bi-Borough Director of Integrated Care,4463.52
29/02/2024,1249291,Westminster Society,,Bi-Borough Director of Integrated Care,2713.12
29/02/2024,1249291,Westminster Society,,Bi-Borough Director of Integrated Care,599.08
29/02/2024,1249291,Westminster Society,,Bi-Borough Director of Integrated Care,10852.48
29/02/2024,1249291,Westminster Society,,Bi-Borough Director of Integrated Care,1799.84
29/02/2024,1249291,Westminster Society,,Bi-Borough Director of Integrated Care,2450.56
29/02/2024,1249291,Westminster Society,,Bi-Borough Director of Integrated Care,1006.48
29/02/2024,1249291,Westminster Society,,Bi-Borough Director of Integrated Care,700.16
29/02/2024,1249291,Westminster Society,,Bi-Borough Director of Integrated Care,3369.52
29/02/2024,1249291,Westminster Society,,Bi-Borough Director of Integrated Care,2888.16
29/02/2024,1249291,Westminster Society,,Bi-Borough Director of Integrated Care,3238.24
29/02/2024,1249291,Westminster Society,,Bi-Borough Director of Integrated Care,1024
29/02/2024,1249291,Westminster Society,,Bi-Borough Director of Integrated Care,3982.16
29/02/2024,1249291,Westminster Society,,Bi-Borough Director of Integrated Care,3194.48
29/02/2024,1249291,Westminster Society,,Bi-Borough Director of Integrated Care,1225.28
29/02/2024,1249291,Westminster Society,,Bi-Borough Director of Integrated Care,6935.96
29/02/2024,1249291,Westminster Society,,Bi-Borough Director of Integrated Care,700.16
29/02/2024,1249291,Westminster Society,,Bi-Borough Director of Integrated Care,4901.12
29/02/2024,1249291,Westminster Society,,Bi-Borough Director of Integrated Care,4747.96
29/02/2024,1249291,Westminster Society,,Bi-Borough Director of Integrated Care,2888.16
29/02/2024,1249291,Westminster Society,,Bi-Borough Director of Integrated Care,1531.6
29/02/2024,1249291,Westminster Society,,Bi-Borough Director of Integrated Care,2538.08
29/02/2024,1249291,Westminster Society,,Bi-Borough Director of Integrated Care,1531.6
29/02/2024,1249291,Westminster Society,,Bi-Borough Director of Integrated Care,798.8
29/02/2024,1249291,Westminster Society,,Bi-Borough Director of Integrated Care,9246.48
29/02/2024,1249291,Westminster Society,,Bi-Borough Director of Integrated Care,6848.44
29/02/2024,1249291,Westminster Society,,Bi-Borough Director of Integrated Care,599.08
29/02/2024,1249291,Westminster Society,,Bi-Borough Director of Integrated Care,7045.36
29/02/2024,1249291,Westminster Society,,Bi-Borough Director of Integrated Care,1225.28
29/02/2024,1249291,Westminster Society,,Bi-Borough Director of Integrated Care,1024
29/02/2024,1249291,Westminster Society,,Bi-Borough Director of Integrated Care,5513.76
29/02/2024,1249291,Westminster Society,,Bi-Borough Director of Integrated Care,1225.28
29/02/2024,1249291,Westminster Society,,Bi-Borough Director of Integrated Care,9539.68
29/02/2024,1249291,Westminster Society,,Bi-Borough Director of Integrated Care,1799.84
29/02/2024,1249291,Westminster Society,,Bi-Borough Director of Integrated Care,2450.56
29/02/2024,1249291,Westminster Society,,Bi-Borough Director of Integrated Care,1024
29/02/2024,1249291,Westminster Society,,Bi-Borough Director of Integrated Care,2713.12
29/02/2024,1249291,Westminster Society,,Bi-Borough Director of Integrated Care,2975.68
29/02/2024,1249291,Westminster Society,,Bi-Borough Director of Integrated Care,2450.56
29/02/2024,1249291,Westminster Society,,Bi-Borough Director of Integrated Care,798.8
29/02/2024,1249291,Westminster Society,,Bi-Borough Director of Integrated Care,7089.12
29/02/2024,1249291,Westminster Society,,Bi-Borough Director of Integrated Care,962.72
29/02/2024,1249291,Westminster Society,,Bi-Borough Director of Integrated Care,1024
29/02/2024,1249291,Westminster Society,,Bi-Borough Director of Integrated Care,4839.84
29/02/2024,1249291,Westminster Society,,Bi-Borough Director of Integrated Care,1137.76
29/02/2024,1249291,Westminster Society,,Bi-Borough Director of Integrated Care,2714.36
29/02/2024,1249291,Westminster Society,,Bi-Borough Director of Integrated Care,599.08
29/02/2024,1249291,Westminster Society,,Bi-Borough Director of Integrated Care,3325.76
29/02/2024,1249291,Westminster Society,,Bi-Borough Director of Integrated Care,1024
29/02/2024,1249291,Westminster Society,,Bi-Borough Director of Integrated Care,7421.68
29/02/2024,1249291,Westminster Society,,Bi-Borough Director of Integrated Care,10414.88
29/02/2024,1249291,Westminster Society,,Bi-Borough Director of Integrated Care,1024
29/02/2024,1249291,Westminster Society,,Bi-Borough Director of Integrated Care,7229.16
29/02/2024,1249291,Westminster Society,,Bi-Borough Director of Integrated Care,1024
29/02/2024,1249291,Westminster Society,,Bi-Borough Director of Integrated Care,962.72
29/02/2024,1249291,Westminster Society,,Bi-Borough Director of Integrated Care,2363.04
29/02/2024,1249291,Westminster Society,,Bi-Borough Director of Integrated Care,3588.32
29/02/2024,1249291,Westminster Society,,Bi-Borough Director of Integrated Care,3982.16
29/02/2024,1249291,Westminster Society,,Bi-Borough Director of Integrated Care,1225.28
29/02/2024,1249291,Westminster Society,,Bi-Borough Director of Integrated Care,4988.64
29/02/2024,1249291,Westminster Society,,Bi-Borough Director of Integrated Care,3063.2
29/02/2024,1249291,Westminster Society,,Bi-Borough Director of Integrated Care,3150.72
29/02/2024,1249291,Westminster Society,,Bi-Borough Director of Integrated Care,7859.28
29/02/2024,1249291,Westminster Society,,Bi-Borough Director of Integrated Care,2450.56
29/02/2024,1249291,Westminster Society,,Bi-Borough Director of Integrated Care,700.16
29/02/2024,1249291,Westminster Society,,Bi-Borough Director of Integrated Care,514.24
29/02/2024,1249291,Westminster Society,,Bi-Borough Director of Integrated Care,3325.76
29/02/2024,1249291,Westminster Society,,Bi-Borough Director of Integrated Care,3413.28
29/02/2024,1249291,Westminster Society,,Bi-Borough Director of Integrated Care,2188
29/02/2024,1249291,Westminster Society,,Bi-Borough Director of Integrated Care,899.92
29/02/2024,1249291,Westminster Society,,Bi-Borough Director of Integrated Care,3728.36
29/02/2024,1249291,Westminster Society,,Bi-Borough Director of Integrated Care,798.8
29/02/2024,1249291,Westminster Society,,Bi-Borough Director of Integrated Care,9373.4
29/02/2024,1249291,Westminster Society,,Bi-Borough Director of Integrated Care,1531.6
29/02/2024,1249291,Westminster Society,,Bi-Borough Director of Integrated Care,5601.28
29/02/2024,1249291,Westminster Society,,Bi-Borough Director of Integrated Care,3063.2
29/02/2024,1249291,Westminster Society,,Bi-Borough Director of Integrated Care,7351.68
29/02/2024,1249291,Westminster Society,,Bi-Borough Director of Integrated Care,2450.56
29/02/2024,1249291,Westminster Society,,Bi-Borough Director of Integrated Care,798.8
29/02/2024,1249291,Westminster Society,,Bi-Borough Director of Integrated Care,10572.4
29/02/2024,1249291,Westminster Society,,Bi-Borough Director of Integrated Care,5426.24
29/02/2024,1249291,Westminster Society,,Bi-Borough Director of Integrated Care,2450.56
29/02/2024,1249291,Westminster Society,,Bi-Borough Director of Integrated Care,798.8
29/02/2024,1249291,Westminster Society,,Bi-Borough Director of Integrated Care,10047.28
29/02/2024,1249291,Westminster Society,,Bi-Borough Director of Integrated Care,1269.04
29/02/2024,1249291,Westminster Society,,Bi-Borough Director of Integrated Care,4200.96
29/02/2024,1249291,Westminster Society,,Bi-Borough Director of Integrated Care,1925.44
29/02/2024,1249291,Westminster Society,,Bi-Borough Director of Integrated Care,1225.28
29/02/2024,1249291,Westminster Society,,Bi-Borough Director of Integrated Care,599.08
29/02/2024,1249291,Westminster Society,,Bi-Borough Director of Integrated Care,1024
29/02/2024,1249291,Westminster Society,,Bi-Borough Director of Integrated Care,4909.88
29/02/2024,1249291,Westminster Society,,Bi-Borough Director of Integrated Care,2188
29/02/2024,1249291,Westminster Society,,Bi-Borough Director of Integrated Care,599.08
29/02/2024,1249291,Westminster Society,,Bi-Borough Director of Integrated Care,4463.52
29/02/2024,1249291,Westminster Society,,Bi-Borough Director of Integrated Care,1225.28
29/02/2024,1249291,Westminster Society,,Bi-Borough Director of Integrated Care,2800.64
29/02/2024,1249291,Westminster Society,,Bi-Borough Director of Integrated Care,787.68
29/02/2024,1249291,Westminster Society,,Bi-Borough Director of Integrated Care,1024
29/02/2024,1249291,Westminster Society,,Bi-Borough Director of Integrated Care,7132.88
29/02/2024,1249291,Westminster Society,,Bi-Borough Director of Integrated Care,3369.52
29/02/2024,1249291,Westminster Society,,Bi-Borough Director of Integrated Care,599.08
29/02/2024,1249291,Westminster Society,,Bi-Borough Director of Integrated Care,612.64
29/02/2024,1249291,Westminster Society,,Bi-Borough Director of Integrated Care,3369.52
29/02/2024,1249291,Westminster Society,,Bi-Borough Director of Integrated Care,1601.6
29/02/2024,1249291,Westminster Society,,Bi-Borough Director of Integrated Care,24666.39
29/02/2024,1249291,Westminster Society,,Bi-Borough Director of Integrated Care,23561.56
29/02/2024,1249291,Westminster Society,,Bi-Borough Director of Integrated Care,23920.47
29/02/2024,1249291,Westminster Society,,Bi-Borough Director of Integrated Care,15028.43
12/03/2024,1249291,Westminster Society,B*Voluntary-Spot-V Dep-Enhanced - do not u,Bi-Borough Director of Integrated Care,656.4
12/03/2024,1249291,Westminster Society,B*Voluntary-Spot-V Dep-Enhanced - do not u,Bi-Borough Director of Integrated Care,1225.28
12/03/2024,1249291,Westminster Society,B*Voluntary-Spot-V Dep-Enhanced - do not u,Bi-Borough Director of Integrated Care,700.16
12/03/2024,1249291,Westminster Society,B*Voluntary-Spot-V Dep-Enhanced - do not u,Bi-Borough Director of Integrated Care,1662.88
12/03/2024,1249291,Westminster Society,B*Voluntary-Spot-V Dep-Enhanced - do not u,Bi-Borough Director of Integrated Care,525.12
12/03/2024,1249291,Westminster Society,B*Voluntary-Spot-V Dep-Enhanced - do not u,Bi-Borough Director of Integrated Care,787.68
12/03/2024,1249291,Westminster Society,B*Voluntary-Spot-V Dep-Enhanced - do not u,Bi-Borough Director of Integrated Care,1137.76
12/03/2024,1249291,Westminster Society,B*Voluntary-Spot-V Dep-Enhanced - do not u,Bi-Borough Director of Integrated Care,984.6
12/03/2024,1249291,Westminster Society,B*Voluntary-Spot-V Dep-Enhanced - do not u,Bi-Borough Director of Integrated Care,2286.46
12/03/2024,1249291,Westminster Society,B*Voluntary-Spot-V Dep-Enhanced - do not u,Bi-Borough Director of Integrated Care,2625.6
12/03/2024,1249291,Westminster Society,B*Voluntary-Spot-V Dep-Enhanced - do not u,Bi-Borough Director of Integrated Care,1531.6
12/03/2024,1249291,Westminster Society,B*Voluntary-Spot-V Dep-Enhanced - do not u,Bi-Borough Director of Integrated Care,765.8
12/03/2024,1249291,Westminster Society,B*Voluntary-Spot-V Dep-Enhanced - do not u,Bi-Borough Director of Integrated Care,1750.4
12/03/2024,1249291,Westminster Society,B*Voluntary-Spot-V Dep-Enhanced - do not u,Bi-Borough Director of Integrated Care,962.72
12/03/2024,1249291,Westminster Society,B*Voluntary-Spot-V Dep-Enhanced - do not u,Bi-Borough Director of Integrated Care,875.2
12/03/2024,1249291,Westminster Society,B*Voluntary-Spot-V Dep-Enhanced - do not u,Bi-Borough Director of Integrated Care,1137.76
12/03/2024,1249291,Westminster Society,B*Voluntary-Spot-V Dep-Enhanced - do not u,Bi-Borough Director of Integrated Care,1094
12/03/2024,1249291,Westminster Society,B*Voluntary-Spot-V Dep-Enhanced - do not u,Bi-Borough Director of Integrated Care,2953.8
12/03/2024,1249291,Westminster Society,B*Voluntary-Spot-V Dep-Enhanced - do not u,Bi-Borough Director of Integrated Care,3282
12/03/2024,1249291,Westminster Society,B*Voluntary-Spot-V Dep-Enhanced - do not u,Bi-Borough Director of Integrated Care,875.2
12/03/2024,1249291,Westminster Society,B*Voluntary-Spot-V Dep-Enhanced - do not u,Bi-Borough Director of Integrated Care,875.2
12/03/2024,1249291,Westminster Society,B*Voluntary-Spot-V Dep-Enhanced - do not u,Bi-Borough Director of Integrated Care,2188
12/03/2024,1249291,Westminster Society,B*Voluntary-Spot-V Dep-Enhanced - do not u,Bi-Borough Director of Integrated Care,700.16
12/03/2024,1249291,Westminster Society,B*Voluntary-Spot-V Dep-Enhanced - do not u,Bi-Borough Director of Integrated Care,700.16
12/03/2024,1249291,Westminster Society,B*Voluntary-Spot-V Dep-Enhanced - do not u,Bi-Borough Director of Integrated Care,2078.6
12/03/2024,1249291,Westminster Society,B*Voluntary-Spot-V Dep-Enhanced - do not u,Bi-Borough Director of Integrated Care,1312.8
12/03/2024,1249291,Westminster Society,B*Voluntary-Spot-V Dep-Enhanced - do not u,Bi-Borough Director of Integrated Care,875.2
12/03/2024,1249291,Westminster Society,B*Voluntary-Spot-V Dep-Enhanced - do not u,Bi-Borough Director of Integrated Care,984.6
12/03/2024,1249291,Westminster Society,B*Voluntary-Spot-V Dep-Enhanced - do not u,Bi-Borough Director of Integrated Care,875.2
12/03/2024,1249291,Westminster Society,B*Voluntary-Spot-V Dep-Enhanced - do not u,Bi-Borough Director of Integrated Care,700.16
12/03/2024,1249291,Westminster Society,B*Voluntary-Spot-V Dep-Enhanced - do not u,Bi-Borough Director of Integrated Care,1050.24
12/03/2024,1249291,Westminster Society,B*Voluntary-Spot-V Dep-Enhanced - do not u,Bi-Borough Director of Integrated Care,1017.42
12/03/2024,1249291,Westminster Society,B*Voluntary-Spot-V Dep-Enhanced - do not u,Bi-Borough Director of Integrated Care,1422.2
12/03/2024,1249291,Westminster Society,B*Voluntary-Spot-V Dep-Enhanced - do not u,Bi-Borough Director of Integrated Care,612.64
22/03/2024,1249291,Westminster Society,B*Voluntary-Spot-V Dep-Enhanced - do not u,Bi-Borough Director of Integrated Care,12952.96
27/03/2024,1249291,Westminster Society,,Bi-Borough Director of Integrated Care,562.45
27/03/2024,1249291,Westminster Society,,Bi-Borough Director of Integrated Care,6126.4
27/03/2024,1249291,Westminster Society,,Bi-Borough Director of Integrated Care,11924.6
27/03/2024,1249291,Westminster Society,,Bi-Borough Director of Integrated Care,2249.8
27/03/2024,1249291,Westminster Society,,Bi-Borough Director of Integrated Care,4047.8
27/03/2024,1249291,Westminster Society,,Bi-Borough Director of Integrated Care,562.45
27/03/2024,1249291,Westminster Society,,Bi-Borough Director of Integrated Care,3391.4
27/03/2024,1249291,Westminster Society,,Bi-Borough Director of Integrated Care,562.45
27/03/2024,1249291,Westminster Society,,Bi-Borough Director of Integrated Care,3719.6
27/03/2024,1249291,Westminster Society,,Bi-Borough Director of Integrated Care,1203.4
27/03/2024,1249291,Westminster Society,,Bi-Borough Director of Integrated Care,1531.6
27/03/2024,1249291,Westminster Society,,Bi-Borough Director of Integrated Care,8669.95
27/03/2024,1249291,Westminster Society,,Bi-Borough Director of Integrated Care,1531.6
27/03/2024,1249291,Westminster Society,,Bi-Borough Director of Integrated Care,875.2
27/03/2024,1249291,Westminster Society,,Bi-Borough Director of Integrated Care,1203.4
27/03/2024,1249291,Westminster Society,,Bi-Borough Director of Integrated Care,1280
27/03/2024,1249291,Westminster Society,,Bi-Borough Director of Integrated Care,3063.2
27/03/2024,1249291,Westminster Society,,Bi-Borough Director of Integrated Care,3993.1
27/03/2024,1249291,Westminster Society,,Bi-Borough Director of Integrated Care,562.45
27/03/2024,1249291,Westminster Society,,Bi-Borough Director of Integrated Care,998.5
27/03/2024,1249291,Westminster Society,,Bi-Borough Director of Integrated Care,8861.4
27/03/2024,1249291,Westminster Society,,Bi-Borough Director of Integrated Care,3063.2
27/03/2024,1249291,Westminster Society,,Bi-Borough Director of Integrated Care,4977.7
27/03/2024,1249291,Westminster Society,,Bi-Borough Director of Integrated Care,1280
27/03/2024,1249291,Westminster Society,,Bi-Borough Director of Integrated Care,2953.8
27/03/2024,1249291,Westminster Society,,Bi-Borough Director of Integrated Care,1124.9
27/03/2024,1249291,Westminster Society,,Bi-Borough Director of Integrated Care,4660.45
27/03/2024,1249291,Westminster Society,,Bi-Borough Director of Integrated Care,1531.6
27/03/2024,1249291,Westminster Society,,Bi-Borough Director of Integrated Care,3938.4
27/03/2024,1249291,Westminster Society,,Bi-Borough Director of Integrated Care,4485.4
27/03/2024,1249291,Westminster Society,,Bi-Borough Director of Integrated Care,4977.7
27/03/2024,1249291,Westminster Society,,Bi-Borough Director of Integrated Care,6235.8
27/03/2024,1249291,Westminster Society,,Bi-Borough Director of Integrated Care,562.45
27/03/2024,1249291,Westminster Society,,Bi-Borough Director of Integrated Care,9824.1
27/03/2024,1249291,Westminster Society,,Bi-Borough Director of Integrated Care,3063.2
27/03/2024,1249291,Westminster Society,,Bi-Borough Director of Integrated Care,562.45
27/03/2024,1249291,Westminster Society,,Bi-Borough Director of Integrated Care,3829
27/03/2024,1249291,Westminster Society,,Bi-Borough Director of Integrated Care,4157.2
27/03/2024,1249291,Westminster Society,,Bi-Borough Director of Integrated Care,642.8
27/03/2024,1249291,Westminster Society,,Bi-Borough Director of Integrated Care,562.45
27/03/2024,1249291,Westminster Society,,Bi-Borough Director of Integrated Care,6782.8
27/03/2024,1249291,Westminster Society,,Bi-Borough Director of Integrated Care,5251.2
27/03/2024,1249291,Westminster Society,,Bi-Borough Director of Integrated Care,562.45
27/03/2024,1249291,Westminster Society,,Bi-Borough Director of Integrated Care,7001.6
27/03/2024,1249291,Westminster Society,,Bi-Borough Director of Integrated Care,1586.3
27/03/2024,1249291,Westminster Society,,Bi-Borough Director of Integrated Care,3829
27/03/2024,1249291,Westminster Society,,Bi-Borough Director of Integrated Care,562.45
27/03/2024,1249291,Westminster Society,,Bi-Borough Director of Integrated Care,9189.6
27/03/2024,1249291,Westminster Society,,Bi-Borough Director of Integrated Care,10300.24
27/03/2024,1249291,Westminster Society,,Bi-Borough Director of Integrated Care,3063.2
27/03/2024,1249291,Westminster Society,,Bi-Borough Director of Integrated Care,12559.1
27/03/2024,1249291,Westminster Society,,Bi-Borough Director of Integrated Care,998.5
27/03/2024,1249291,Westminster Society,,Bi-Borough Director of Integrated Care,3063.2
27/03/2024,1249291,Westminster Society,,Bi-Borough Director of Integrated Care,998.5
27/03/2024,1249291,Westminster Society,,Bi-Borough Director of Integrated Care,13215.5
27/03/2024,1249291,Westminster Society,,Bi-Borough Director of Integrated Care,11716.75
27/03/2024,1249291,Westminster Society,,Bi-Borough Director of Integrated Care,998.5
27/03/2024,1249291,Westminster Society,,Bi-Borough Director of Integrated Care,1914.5
27/03/2024,1249291,Westminster Society,,Bi-Borough Director of Integrated Care,562.45
27/03/2024,1249291,Westminster Society,,Bi-Borough Director of Integrated Care,1531.6
27/03/2024,1249291,Westminster Society,,Bi-Borough Director of Integrated Care,984.6
27/03/2024,1249291,Westminster Society,,Bi-Borough Director of Integrated Care,2406.8
27/03/2024,1249291,Westminster Society,,Bi-Borough Director of Integrated Care,3500.8
27/03/2024,1249291,Westminster Society,,Bi-Borough Director of Integrated Care,6137.35
27/03/2024,1249291,Westminster Society,,Bi-Borough Director of Integrated Care,1280
27/03/2024,1249291,Westminster Society,,Bi-Borough Director of Integrated Care,748.85
27/03/2024,1249291,Westminster Society,,Bi-Borough Director of Integrated Care,2735
27/03/2024,1249291,Westminster Society,,Bi-Borough Director of Integrated Care,748.85
27/03/2024,1249291,Westminster Society,,Bi-Borough Director of Integrated Care,1531.6
27/03/2024,1249291,Westminster Society,,Bi-Borough Director of Integrated Care,4211.9
27/03/2024,1249291,Westminster Society,,Bi-Borough Director of Integrated Care,4211.9
27/03/2024,1249291,Westminster Society,,Bi-Borough Director of Integrated Care,748.85
27/03/2024,1249291,Westminster Society,,Bi-Borough Director of Integrated Care,2002
27/03/2024,1249291,Westminster Society,,Bi-Borough Director of Integrated Care,765.8
27/03/2024,1249291,Westminster Society,,Bi-Borough Director of Integrated Care,562.45
27/03/2024,1249291,Westminster Society,,Bi-Borough Director of Integrated Care,4704.2
27/03/2024,1249291,Westminster Society,,Bi-Borough Director of Integrated Care,8916.1
27/03/2024,1249291,Westminster Society,,Bi-Borough Director of Integrated Care,1280
27/03/2024,1249291,Westminster Society,,Bi-Borough Director of Integrated Care,642.8
27/03/2024,1249291,Westminster Society,,Bi-Borough Director of Integrated Care,4157.2
27/03/2024,1249291,Westminster Society,,Bi-Borough Director of Integrated Care,5579.4
27/03/2024,1249291,Westminster Society,,Bi-Borough Director of Integrated Care,562.45
27/03/2024,1249291,Westminster Society,,Bi-Borough Director of Integrated Care,4376
27/03/2024,1249291,Westminster Society,,Bi-Borough Director of Integrated Care,562.45
27/03/2024,1249291,Westminster Society,,Bi-Borough Director of Integrated Care,4211.9
27/03/2024,1249291,Westminster Society,,Bi-Borough Director of Integrated Care,2249.8
27/03/2024,1249291,Westminster Society,,Bi-Borough Director of Integrated Care,13565.6
27/03/2024,1249291,Westminster Society,,Bi-Borough Director of Integrated Care,748.85
27/03/2024,1249291,Westminster Society,,Bi-Borough Director of Integrated Care,3063.2
27/03/2024,1249291,Westminster Society,,Bi-Borough Director of Integrated Care,875.2
27/03/2024,1249291,Westminster Society,,Bi-Borough Director of Integrated Care,3391.4
27/03/2024,1249291,Westminster Society,,Bi-Borough Director of Integrated Care,1258.1
27/03/2024,1249291,Westminster Society,,Bi-Borough Director of Integrated Care,6925
27/03/2024,1249291,Westminster Society,,Bi-Borough Director of Integrated Care,562.45
27/03/2024,1249291,Westminster Society,,Bi-Borough Director of Integrated Care,1280
27/03/2024,1249291,Westminster Society,,Bi-Borough Director of Integrated Care,6870.3
27/03/2024,1249291,Westminster Society,,Bi-Borough Director of Integrated Care,562.45
27/03/2024,1249291,Westminster Society,,Bi-Borough Director of Integrated Care,3610.2
27/03/2024,1249291,Westminster Society,,Bi-Borough Director of Integrated Care,3610.2
27/03/2024,1249291,Westminster Society,,Bi-Borough Director of Integrated Care,3172.6
27/03/2024,1249291,Westminster Society,,Bi-Borough Director of Integrated Care,1531.6
27/03/2024,1249291,Westminster Society,,Bi-Borough Director of Integrated Care,8806.7
27/03/2024,1249291,Westminster Society,,Bi-Borough Director of Integrated Care,1914.5
27/03/2024,1249291,Westminster Society,,Bi-Borough Director of Integrated Care,1280
27/03/2024,1249291,Westminster Society,,Bi-Borough Director of Integrated Care,6892.2
27/03/2024,1249291,Westminster Society,,Bi-Borough Director of Integrated Care,3063.2
27/03/2024,1249291,Westminster Society,,Bi-Borough Director of Integrated Care,7964.3
27/03/2024,1249291,Westminster Society,,Bi-Borough Director of Integrated Care,5934.95
27/03/2024,1249291,Westminster Society,,Bi-Borough Director of Integrated Care,562.45
27/03/2024,1249291,Westminster Society,,Bi-Borough Director of Integrated Care,562.45
27/03/2024,1249291,Westminster Society,,Bi-Borough Director of Integrated Care,11558.1
27/03/2024,1249291,Westminster Society,,Bi-Borough Director of Integrated Care,998.5
27/03/2024,1249291,Westminster Society,,Bi-Borough Director of Integrated Care,1914.5
27/03/2024,1249291,Westminster Society,,Bi-Borough Director of Integrated Care,1280
27/03/2024,1249291,Westminster Society,,Bi-Borough Director of Integrated Care,6049.8
27/03/2024,1249291,Westminster Society,,Bi-Borough Director of Integrated Care,8423.8
27/03/2024,1249291,Westminster Society,,Bi-Borough Director of Integrated Care,748.85
27/03/2024,1249291,Westminster Society,,Bi-Borough Director of Integrated Care,3282
27/03/2024,1249291,Westminster Society,,Bi-Borough Director of Integrated Care,748.85
27/03/2024,1249291,Westminster Society,,Bi-Borough Director of Integrated Care,562.45
27/03/2024,1249291,Westminster Society,,Bi-Borough Director of Integrated Care,2735
27/03/2024,1249291,Westminster Society,,Bi-Borough Director of Integrated Care,875.2
27/03/2024,1249291,Westminster Society,,Bi-Borough Director of Integrated Care,4266.6
27/03/2024,1249291,Westminster Society,,Bi-Borough Director of Integrated Care,877.71
27/03/2024,1249291,Westminster Society,,Bi-Borough Director of Integrated Care,8927.04
27/03/2024,1249291,Westminster Society,,Bi-Borough Director of Integrated Care,1280
27/03/2024,1249291,Westminster Society,,Bi-Borough Director of Integrated Care,9036.45
27/03/2024,1249291,Westminster Society,,Bi-Borough Director of Integrated Care,1280
27/03/2024,1249291,Westminster Society,,Bi-Borough Director of Integrated Care,9277.1
01/02/2024,1246224,Whitmore Vale Housing Association,,Bi-Borough Director of Integrated Care,3688.8
29/02/2024,1246224,Whitmore Vale Housing Association,,Bi-Borough Director of Integrated Care,3688.8
26/03/2024,1246224,Whitmore Vale Housing Association,,Bi-Borough Director of Integrated Care,4611
16/01/2024,1243566,Yarrow Housing Ltd,,Bi-Borough Director of Integrated Care,7921.77
01/02/2024,1243566,Yarrow Housing Ltd,,Bi-Borough Director of Integrated Care,3889.16
01/02/2024,1243566,Yarrow Housing Ltd,,Bi-Borough Director of Integrated Care,12631.32
01/02/2024,1243566,Yarrow Housing Ltd,,Bi-Borough Director of Integrated Care,1814.88
01/02/2024,1243566,Yarrow Housing Ltd,,Bi-Borough Director of Integrated Care,7851.2
01/02/2024,1243566,Yarrow Housing Ltd,,Bi-Borough Director of Integrated Care,12032.68
01/02/2024,1243566,Yarrow Housing Ltd,,Bi-Borough Director of Integrated Care,8856.89
01/02/2024,1243566,Yarrow Housing Ltd,,Bi-Borough Director of Integrated Care,7297.56
14/02/2024,1243566,Yarrow Housing Ltd,,Bi-Borough Director of Integrated Care,7921.77
29/02/2024,1243566,Yarrow Housing Ltd,,Bi-Borough Director of Integrated Care,7851.2
29/02/2024,1243566,Yarrow Housing Ltd,,Bi-Borough Director of Integrated Care,12032.68
29/02/2024,1243566,Yarrow Housing Ltd,,Bi-Borough Director of Integrated Care,3889.16
29/02/2024,1243566,Yarrow Housing Ltd,,Bi-Borough Director of Integrated Care,7297.56
29/02/2024,1243566,Yarrow Housing Ltd,,Bi-Borough Director of Integrated Care,6342
29/02/2024,1243566,Yarrow Housing Ltd,,Bi-Borough Director of Integrated Care,12631.32
29/02/2024,1243566,Yarrow Housing Ltd,,Bi-Borough Director of Integrated Care,1814.88
07/03/2024,1243566,Yarrow Housing Ltd,,Bi-Borough Director of Integrated Care,2195.84
14/03/2024,1243566,Yarrow Housing Ltd,,Bi-Borough Director of Integrated Care,7921.77
26/03/2024,1243566,Yarrow Housing Ltd,,Bi-Borough Director of Integrated Care,15789.15
26/03/2024,1243566,Yarrow Housing Ltd,,Bi-Borough Director of Integrated Care,2268.6
26/03/2024,1243566,Yarrow Housing Ltd,,Bi-Borough Director of Integrated Care,9814
26/03/2024,1243566,Yarrow Housing Ltd,,Bi-Borough Director of Integrated Care,15040.85
26/03/2024,1243566,Yarrow Housing Ltd,,Bi-Borough Director of Integrated Care,6233.85
26/03/2024,1243566,Yarrow Housing Ltd,,Bi-Borough Director of Integrated Care,7927.5
26/03/2024,1243566,Yarrow Housing Ltd,,Bi-Borough Director of Integrated Care,9121.95
09/01/2024,1249318,Zodiac Arts Ltd,B*Voluntary-Spot-V Dep-Enhanced - do not u,Bi-Borough Director of Integrated Care,715.5
07/02/2024,1249318,Zodiac Arts Ltd,B*Voluntary-Spot-V Dep-Enhanced - do not u,Bi-Borough Director of Integrated Care,715.5
05/03/2024,1249318,Zodiac Arts Ltd,B*Voluntary-Spot-V Dep-Enhanced - do not u,Bi-Borough Director of Integrated Care,715.5
05/01/2024,D000000016,GENERAL,,Bi-Borough Director of Integrated Care,5000
01/02/2024,1247852,Look Ahead Care and Support Ltd,,Bi-Borough Director of Integrated Care,1256.64
01/02/2024,1247852,Look Ahead Care and Support Ltd,,Bi-Borough Director of Integrated Care,1256.64
01/02/2024,1247852,Look Ahead Care and Support Ltd,,Bi-Borough Director of Integrated Care,911.76
01/02/2024,1247852,Look Ahead Care and Support Ltd,,Bi-Borough Director of Integrated Care,1597.68
01/02/2024,1247852,Look Ahead Care and Support Ltd,,Bi-Borough Director of Integrated Care,897.92
29/02/2024,1247852,Look Ahead Care and Support Ltd,,Bi-Borough Director of Integrated Care,1597.68
29/02/2024,1247852,Look Ahead Care and Support Ltd,,Bi-Borough Director of Integrated Care,911.76
29/02/2024,1247852,Look Ahead Care and Support Ltd,,Bi-Borough Director of Integrated Care,897.92
29/02/2024,1247852,Look Ahead Care and Support Ltd,,Bi-Borough Director of Integrated Care,1256.64
26/03/2024,1247852,Look Ahead Care and Support Ltd,,Bi-Borough Director of Integrated Care,1997.1
26/03/2024,1247852,Look Ahead Care and Support Ltd,,Bi-Borough Director of Integrated Care,1139.7
26/03/2024,1247852,Look Ahead Care and Support Ltd,,Bi-Borough Director of Integrated Care,1122.4
26/03/2024,1247852,Look Ahead Care and Support Ltd,,Bi-Borough Director of Integrated Care,1570.8
01/02/2024,1248618,Riverside Echg,,Bi-Borough Director of Integrated Care,2888.49
01/02/2024,1248618,Riverside Echg,,Bi-Borough Director of Integrated Care,1569.12
01/02/2024,1248618,Riverside Echg,,Bi-Borough Director of Integrated Care,2368.48
01/02/2024,1248618,Riverside Echg,,Bi-Borough Director of Integrated Care,931.77
01/02/2024,1248618,Riverside Echg,,Bi-Borough Director of Integrated Care,971.04
01/02/2024,1248618,Riverside Echg,,Bi-Borough Director of Integrated Care,1304.48
01/02/2024,1248618,Riverside Echg,,Bi-Borough Director of Integrated Care,1473.72
29/02/2024,1248618,Riverside Echg,,Bi-Borough Director of Integrated Care,1569.12
29/02/2024,1248618,Riverside Echg,,Bi-Borough Director of Integrated Care,971.04
29/02/2024,1248618,Riverside Echg,,Bi-Borough Director of Integrated Care,1473.72
29/02/2024,1248618,Riverside Echg,,Bi-Borough Director of Integrated Care,1304.48
29/02/2024,1248618,Riverside Echg,,Bi-Borough Director of Integrated Care,1304.48
29/02/2024,1248618,Riverside Echg,,Bi-Borough Director of Integrated Care,1473.72
07/03/2024,1248618,Riverside Echg,,Bi-Borough Director of Integrated Care,916.86
26/03/2024,1248618,Riverside Echg,,Bi-Borough Director of Integrated Care,1213.8
26/03/2024,1248618,Riverside Echg,,Bi-Borough Director of Integrated Care,1842.15
26/03/2024,1248618,Riverside Echg,,Bi-Borough Director of Integrated Care,1630.6
26/03/2024,1248618,Riverside Echg,,Bi-Borough Director of Integrated Care,1528.1
26/03/2024,1248618,Riverside Echg,,Bi-Borough Director of Integrated Care,896.64
26/03/2024,1248618,Riverside Echg,,Bi-Borough Director of Integrated Care,1630.6
26/03/2024,1248618,Riverside Echg,,Bi-Borough Director of Integrated Care,1842.15
01/02/2024,1245584,Single Homeless Project,,Bi-Borough Director of Integrated Care,1883.48
01/02/2024,1245584,Single Homeless Project,,Bi-Borough Director of Integrated Care,1880.28
29/02/2024,1245584,Single Homeless Project,,Bi-Borough Director of Integrated Care,1883.48
29/02/2024,1245584,Single Homeless Project,,Bi-Borough Director of Integrated Care,1880.28
26/03/2024,1245584,Single Homeless Project,,Bi-Borough Director of Integrated Care,2350.35
26/03/2024,1245584,Single Homeless Project,,Bi-Borough Director of Integrated Care,2354.35
26/01/2024,1245728,Cnwl Nhs Foundation Trust (Use,Agency Staff,Bi-Borough Director of Integrated Care,2509.43
27/03/2024,1243775,Royal Borough of Kensington &,B*Payments to OLAs - Southampton City Co,Bi-Borough Director of Integrated Care,14171.77
22/03/2024,1243776,Royal Borough of Kensington &,B*Payments to OLAs - Southampton City Co,Bi-Borough Director of Integrated Care,17272
12/01/2024,1255843,A.I. Care Services Ltd,,Bi-Borough Director of Integrated Care,1075.76
06/02/2024,1255843,A.I. Care Services Ltd,,Bi-Borough Director of Integrated Care,1075.76
07/03/2024,1255843,A.I. Care Services Ltd,,Bi-Borough Director of Integrated Care,1075.76
29/03/2024,1255843,A.I. Care Services Ltd,,Bi-Borough Director of Integrated Care,1075.76
09/01/2024,1245929,ACHIEVE TOGETHER LIMITED,B*Voluntary-Spot-V Dep-Enhanced - do not u,Bi-Borough Director of Integrated Care,1505
09/01/2024,1245929,ACHIEVE TOGETHER LIMITED,B*Voluntary-Spot-V Dep-Enhanced - do not u,Bi-Borough Director of Integrated Care,1643
07/02/2024,1245929,ACHIEVE TOGETHER LIMITED,B*Voluntary-Spot-V Dep-Enhanced - do not u,Bi-Borough Director of Integrated Care,1537
01/02/2024,1307987,ALAND HEALTHCARE CONSULTING LIMITED,,Bi-Borough Director of Integrated Care,1800
01/02/2024,1307987,ALAND HEALTHCARE CONSULTING LIMITED,,Bi-Borough Director of Integrated Care,1800
02/01/2024,1246011,Art4Space,B*Voluntary-Spot-V Dep-Enhanced - do not u,Bi-Borough Director of Integrated Care,1500
02/01/2024,1246011,Art4Space,B*Voluntary-Spot-V Dep-Enhanced - do not u,Bi-Borough Director of Integrated Care,1500
09/01/2024,1246011,Art4Space,B*Voluntary-Spot-V Dep-Enhanced - do not u,Bi-Borough Director of Integrated Care,1250
09/01/2024,1246011,Art4Space,B*Voluntary-Spot-V Dep-Enhanced - do not u,Bi-Borough Director of Integrated Care,1250
09/01/2024,1246011,Art4Space,B*Voluntary-Spot-V Dep-Enhanced - do not u,Bi-Borough Director of Integrated Care,1250
09/01/2024,1246011,Art4Space,B*Voluntary-Spot-V Dep-Enhanced - do not u,Bi-Borough Director of Integrated Care,1250
08/01/2024,1243931,Ashbourne Healthcare Services,,Bi-Borough Director of Integrated Care,1536.8
24/01/2024,1243931,Ashbourne Healthcare Services,,Bi-Borough Director of Integrated Care,4360.67
09/02/2024,1243931,Ashbourne Healthcare Services,,Bi-Borough Director of Integrated Care,6454.56
20/02/2024,1243931,Ashbourne Healthcare Services,,Bi-Borough Director of Integrated Care,6454.56
05/03/2024,1243931,Ashbourne Healthcare Services,,Bi-Borough Director of Integrated Care,4130.15
18/03/2024,1243931,Ashbourne Healthcare Services,,Bi-Borough Director of Integrated Care,2218.76
01/02/2024,1271022,BONZA CARE LTD,,Bi-Borough Director of Integrated Care,2180
01/02/2024,1271022,BONZA CARE LTD,,Bi-Borough Director of Integrated Care,2180
29/02/2024,1271022,BONZA CARE LTD,,Bi-Borough Director of Integrated Care,2180
29/02/2024,1271022,BONZA CARE LTD,,Bi-Borough Director of Integrated Care,2180
26/03/2024,1271022,BONZA CARE LTD,,Bi-Borough Director of Integrated Care,2725
26/03/2024,1271022,BONZA CARE LTD,,Bi-Borough Director of Integrated Care,2725
26/03/2024,1271022,BONZA CARE LTD,Rent,Bi-Borough Director of Integrated Care,519.25
01/02/2024,1302222,Bespoke Care Support Ltd,,Bi-Borough Director of Integrated Care,5380
02/01/2024,1246247,Blitz Home Environmental Cleaning,,Bi-Borough Director of Integrated Care,3000
02/01/2024,1246247,Blitz Home Environmental Cleaning,,Bi-Borough Director of Integrated Care,500
02/01/2024,1246247,Blitz Home Environmental Cleaning,,Bi-Borough Director of Integrated Care,700
27/03/2024,1246247,Blitz Home Environmental Cleaning,,Bi-Borough Director of Integrated Care,1500
27/03/2024,1246247,Blitz Home Environmental Cleaning,,Bi-Borough Director of Integrated Care,1666.67
11/01/2024,1246262,Brent Wandsworth & Westminster,B*Voluntary-Spot-V Dep-Enhanced - do not u,Bi-Borough Director of Integrated Care,720
11/01/2024,1246262,Brent Wandsworth & Westminster,B*Voluntary-Spot-V Dep-Enhanced - do not u,Bi-Borough Director of Integrated Care,720
07/02/2024,1246261,Brent Wandsworth & Westminster,B*Voluntary-Spot-V Dep-Enhanced - do not u,Bi-Borough Director of Integrated Care,1108.93
07/02/2024,1246261,Brent Wandsworth & Westminster,B*Voluntary-Spot-V Dep-Enhanced - do not u,Bi-Borough Director of Integrated Care,1020.53
07/02/2024,1246261,Brent Wandsworth & Westminster,B*Voluntary-Spot-V Dep-Enhanced - do not u,Bi-Borough Director of Integrated Care,595.77
07/02/2024,1246261,Brent Wandsworth & Westminster,B*Voluntary-Spot-V Dep-Enhanced - do not u,Bi-Borough Director of Integrated Care,1091.2
07/02/2024,1246261,Brent Wandsworth & Westminster,,Bi-Borough Director of Integrated Care,588.67
07/02/2024,1246261,Brent Wandsworth & Westminster,,Bi-Borough Director of Integrated Care,588.67
12/02/2024,1246261,Brent Wandsworth & Westminster,,Bi-Borough Director of Integrated Care,1264.01
12/02/2024,1246261,Brent Wandsworth & Westminster,,Bi-Borough Director of Integrated Care,1282.46
13/02/2024,1246261,Brent Wandsworth & Westminster,B*Voluntary-Spot-V Dep-Enhanced - do not u,Bi-Borough Director of Integrated Care,1034.25
13/02/2024,1246261,Brent Wandsworth & Westminster,,Bi-Borough Director of Integrated Care,1495.95
21/02/2024,1246261,Brent Wandsworth & Westminster,,Bi-Borough Director of Integrated Care,608.67
11/03/2024,1246262,Brent Wandsworth & Westminster,B*Voluntary-Spot-V Dep-Enhanced - do not u,Bi-Borough Director of Integrated Care,720
11/03/2024,1246262,Brent Wandsworth & Westminster,B*Voluntary-Spot-V Dep-Enhanced - do not u,Bi-Borough Director of Integrated Care,720
11/03/2024,1246262,Brent Wandsworth & Westminster,B*Voluntary-Spot-V Dep-Enhanced - do not u,Bi-Borough Director of Integrated Care,720
01/02/2024,1247482,PERSONAL PAYMENTS,,Bi-Borough Director of Integrated Care,833.28
29/02/2024,1247482,PERSONAL PAYMENTS,,Bi-Borough Director of Integrated Care,833.28
26/03/2024,1247482,PERSONAL PAYMENTS,,Bi-Borough Director of Integrated Care,1041.6
01/02/2024,1246321,Camphill Village Trust,,Bi-Borough Director of Integrated Care,1159.4
29/02/2024,1246321,Camphill Village Trust,,Bi-Borough Director of Integrated Care,1159.4
26/03/2024,1246321,Camphill Village Trust,,Bi-Borough Director of Integrated Care,1449.25
09/02/2024,1319137,Care Plus More Ltd,,Bi-Borough Director of Integrated Care,3100.5
29/02/2024,1319137,Care Plus More Ltd,,Bi-Borough Director of Integrated Care,1638
26/03/2024,1319137,Care Plus More Ltd,,Bi-Borough Director of Integrated Care,2047.5
01/02/2024,1306723,Carefield Support Services Ltd,,Bi-Borough Director of Integrated Care,1960
01/02/2024,1306723,Carefield Support Services Ltd,,Bi-Borough Director of Integrated Care,1960
29/02/2024,1306723,Carefield Support Services Ltd,,Bi-Borough Director of Integrated Care,1960
29/02/2024,1306723,Carefield Support Services Ltd,,Bi-Borough Director of Integrated Care,1960
26/03/2024,1306723,Carefield Support Services Ltd,,Bi-Borough Director of Integrated Care,2450
26/03/2024,1306723,Carefield Support Services Ltd,,Bi-Borough Director of Integrated Care,2450
19/01/2024,1286484,City Winners Limited,,Bi-Borough Director of Integrated Care,1385
01/02/2024,1299671,Clear Sight Care Ltd,,Bi-Borough Director of Integrated Care,1724
01/02/2024,1299671,Clear Sight Care Ltd,,Bi-Borough Director of Integrated Care,1724
29/02/2024,1299671,Clear Sight Care Ltd,,Bi-Borough Director of Integrated Care,1724
29/02/2024,1299671,Clear Sight Care Ltd,,Bi-Borough Director of Integrated Care,1724
26/03/2024,1299671,Clear Sight Care Ltd,,Bi-Borough Director of Integrated Care,2155
26/03/2024,1299671,Clear Sight Care Ltd,,Bi-Borough Director of Integrated Care,2155
06/01/2024,1244190,Clouds End Services Ltd,,Bi-Borough Director of Integrated Care,1100
05/02/2024,1244190,Clouds End Services Ltd,,Bi-Borough Director of Integrated Care,825
05/03/2024,1244190,Clouds End Services Ltd,,Bi-Borough Director of Integrated Care,1280
27/03/2024,1244190,Clouds End Services Ltd,,Bi-Borough Director of Integrated Care,1280
01/02/2024,1246602,Community Housing Therapy,,Bi-Borough Director of Integrated Care,1940
01/02/2024,1246602,Community Housing Therapy,,Bi-Borough Director of Integrated Care,1719.52
01/02/2024,1246602,Community Housing Therapy,,Bi-Borough Director of Integrated Care,1719.56
29/02/2024,1246602,Community Housing Therapy,,Bi-Borough Director of Integrated Care,1940
29/02/2024,1246602,Community Housing Therapy,,Bi-Borough Director of Integrated Care,1719.52
29/02/2024,1246602,Community Housing Therapy,,Bi-Borough Director of Integrated Care,1719.56
26/03/2024,1246602,Community Housing Therapy,,Bi-Borough Director of Integrated Care,2149.4
26/03/2024,1246602,Community Housing Therapy,,Bi-Borough Director of Integrated Care,2149.45
26/03/2024,1246602,Community Housing Therapy,,Bi-Borough Director of Integrated Care,2425
03/01/2024,1268176,Conquest Care and Support,,Bi-Borough Director of Integrated Care,1322.56
29/01/2024,1268176,Conquest Care and Support,,Bi-Borough Director of Integrated Care,1339.96
27/02/2024,1268176,Conquest Care and Support,,Bi-Borough Director of Integrated Care,1307.81
26/03/2024,1268176,Conquest Care and Support,,Bi-Borough Director of Integrated Care,1479.17
19/01/2024,1244225,Core Arts,B*Voluntary-Spot-V Dep-Enhanced - do not u,Bi-Borough Director of Integrated Care,650
01/02/2024,1251199,Cornerstone Barristers,Legal Costs,Bi-Borough Director of Integrated Care,1750
09/02/2024,1251199,Cornerstone Barristers,Legal Costs,Bi-Borough Director of Integrated Care,1750
26/02/2024,1251199,Cornerstone Barristers,Legal Costs,Bi-Borough Director of Integrated Care,1750
01/02/2024,1301212,Diverse Services Ltd,,Bi-Borough Director of Integrated Care,980
01/02/2024,1301212,Diverse Services Ltd,,Bi-Borough Director of Integrated Care,1700
29/02/2024,1301212,Diverse Services Ltd,,Bi-Borough Director of Integrated Care,1700
29/02/2024,1301212,Diverse Services Ltd,,Bi-Borough Director of Integrated Care,980
26/03/2024,1301212,Diverse Services Ltd,,Bi-Borough Director of Integrated Care,2125
26/03/2024,1301212,Diverse Services Ltd,,Bi-Borough Director of Integrated Care,1225
23/01/2024,1292085,Doughty Street Chambers,Legal Costs,Bi-Borough Director of Integrated Care,1260
15/02/2024,1264137,PERSONAL PAYMENTS,Legal Costs,Bi-Borough Director of Integrated Care,1579
01/02/2024,1243473,Drs Care Homes Ltd,,Bi-Borough Director of Integrated Care,4401.15
01/02/2024,1243473,Drs Care Homes Ltd,,Bi-Borough Director of Integrated Care,4401.15
29/02/2024,1243473,Drs Care Homes Ltd,,Bi-Borough Director of Integrated Care,3044
29/02/2024,1243473,Drs Care Homes Ltd,,Bi-Borough Director of Integrated Care,3044
26/03/2024,1243473,Drs Care Homes Ltd,,Bi-Borough Director of Integrated Care,3805
26/03/2024,1243473,Drs Care Homes Ltd,,Bi-Borough Director of Integrated Care,3805
16/01/2024,1259597,Ethica Services LTD,,Bi-Borough Director of Integrated Care,1479.17
06/02/2024,1259597,Ethica Services LTD,,Bi-Borough Director of Integrated Care,1228.08
05/03/2024,1259597,Ethica Services LTD,,Bi-Borough Director of Integrated Care,2382.04
16/01/2024,1244479,Glenholme Mental Health,,Bi-Borough Director of Integrated Care,3825.6
01/02/2024,1244479,Glenholme Mental Health,,Bi-Borough Director of Integrated Care,2550.4
29/02/2024,1244479,Glenholme Mental Health,,Bi-Borough Director of Integrated Care,2550.4
26/03/2024,1244479,Glenholme Mental Health,,Bi-Borough Director of Integrated Care,3188
19/01/2024,1247257,Health Vision Uk,,Bi-Borough Director of Integrated Care,729.98
19/01/2024,1247257,Health Vision Uk,,Bi-Borough Director of Integrated Care,2375.52
19/01/2024,1247257,Health Vision Uk,,Bi-Borough Director of Integrated Care,958.34
19/01/2024,1247257,Health Vision Uk,,Bi-Borough Director of Integrated Care,1081.71
19/01/2024,1247257,Health Vision Uk,,Bi-Borough Director of Integrated Care,706.07
19/01/2024,1247257,Health Vision Uk,,Bi-Borough Director of Integrated Care,671.89
19/01/2024,1247257,Health Vision Uk,,Bi-Borough Director of Integrated Care,636.44
19/01/2024,1247257,Health Vision Uk,,Bi-Borough Director of Integrated Care,1868.53
19/01/2024,1247257,Health Vision Uk,,Bi-Borough Director of Integrated Care,1137.21
19/01/2024,1247257,Health Vision Uk,,Bi-Borough Director of Integrated Care,1107.52
19/01/2024,1247257,Health Vision Uk,,Bi-Borough Director of Integrated Care,524.73
19/01/2024,1247257,Health Vision Uk,,Bi-Borough Director of Integrated Care,593.88
19/01/2024,1247257,Health Vision Uk,,Bi-Borough Director of Integrated Care,1187.76
19/01/2024,1247257,Health Vision Uk,,Bi-Borough Director of Integrated Care,1773.87
19/01/2024,1247257,Health Vision Uk,,Bi-Borough Director of Integrated Care,1187.61
19/01/2024,1247257,Health Vision Uk,,Bi-Borough Director of Integrated Care,890.96
02/02/2024,1247257,Health Vision Uk,,Bi-Borough Director of Integrated Care,1106.86
02/02/2024,1247257,Health Vision Uk,,Bi-Borough Director of Integrated Care,586.46
02/02/2024,1247257,Health Vision Uk,,Bi-Borough Director of Integrated Care,1170.79
02/02/2024,1247257,Health Vision Uk,,Bi-Borough Director of Integrated Care,1759.06
02/02/2024,1247257,Health Vision Uk,,Bi-Borough Director of Integrated Care,1157.17
02/02/2024,1247257,Health Vision Uk,,Bi-Borough Director of Integrated Care,874.18
02/02/2024,1247257,Health Vision Uk,,Bi-Borough Director of Integrated Care,2366.25
02/02/2024,1247257,Health Vision Uk,,Bi-Borough Director of Integrated Care,1078.18
02/02/2024,1247257,Health Vision Uk,,Bi-Borough Director of Integrated Care,624.08
02/02/2024,1247257,Health Vision Uk,,Bi-Borough Director of Integrated Care,690.96
02/02/2024,1247257,Health Vision Uk,,Bi-Borough Director of Integrated Care,636.44
02/02/2024,1247257,Health Vision Uk,,Bi-Borough Director of Integrated Care,1777.32
02/02/2024,1247257,Health Vision Uk,,Bi-Borough Director of Integrated Care,1070.72
01/03/2024,1247257,Health Vision Uk,,Bi-Borough Director of Integrated Care,509.04
01/03/2024,1247257,Health Vision Uk,,Bi-Borough Director of Integrated Care,552.17
01/03/2024,1247257,Health Vision Uk,,Bi-Borough Director of Integrated Care,1108.52
01/03/2024,1247257,Health Vision Uk,,Bi-Borough Director of Integrated Care,593.88
01/03/2024,1247257,Health Vision Uk,,Bi-Borough Director of Integrated Care,1175.03
01/03/2024,1247257,Health Vision Uk,,Bi-Borough Director of Integrated Care,1775.63
01/03/2024,1247257,Health Vision Uk,,Bi-Borough Director of Integrated Care,1181.94
01/03/2024,1247257,Health Vision Uk,,Bi-Borough Director of Integrated Care,886.72
01/03/2024,1247257,Health Vision Uk,,Bi-Borough Director of Integrated Care,724.4
01/03/2024,1247257,Health Vision Uk,,Bi-Borough Director of Integrated Care,1102.92
01/03/2024,1247257,Health Vision Uk,,Bi-Borough Director of Integrated Care,1176.9
01/03/2024,1247257,Health Vision Uk,,Bi-Borough Director of Integrated Care,543.84
01/03/2024,1247257,Health Vision Uk,,Bi-Borough Director of Integrated Care,636.44
01/03/2024,1247257,Health Vision Uk,,Bi-Borough Director of Integrated Care,1779.43
01/03/2024,1247257,Health Vision Uk,,Bi-Borough Director of Integrated Care,1186.88
01/02/2024,1300210,Instant Care Solutions Ltd,,Bi-Borough Director of Integrated Care,2500
01/02/2024,1300210,Instant Care Solutions Ltd,,Bi-Borough Director of Integrated Care,2500
29/02/2024,1300210,Instant Care Solutions Ltd,,Bi-Borough Director of Integrated Care,2500
29/02/2024,1300210,Instant Care Solutions Ltd,,Bi-Borough Director of Integrated Care,2500
26/03/2024,1300210,Instant Care Solutions Ltd,,Bi-Borough Director of Integrated Care,3125
26/03/2024,1300210,Instant Care Solutions Ltd,,Bi-Borough Director of Integrated Care,3125
02/02/2024,1247526,Integrity Care and Support Ltd,,Bi-Borough Director of Integrated Care,677.4
02/02/2024,1247526,Integrity Care and Support Ltd,,Bi-Borough Director of Integrated Care,1174.16
21/02/2024,1247526,Integrity Care and Support Ltd,,Bi-Borough Director of Integrated Care,1241.9
21/02/2024,1247526,Integrity Care and Support Ltd,,Bi-Borough Director of Integrated Care,1716.08
19/03/2024,1247526,Integrity Care and Support Ltd,,Bi-Borough Director of Integrated Care,1591.89
19/03/2024,1247526,Integrity Care and Support Ltd,,Bi-Borough Director of Integrated Care,1354.8
03/01/2024,1255762,J P Healthwise Limited,Legal Costs,Bi-Borough Director of Integrated Care,1321
08/01/2024,1256893,Kapital Care WCC,,Bi-Borough Director of Integrated Care,1114.2
31/01/2024,1256893,Kapital Care WCC,,Bi-Borough Director of Integrated Care,1075.76
07/03/2024,1256893,Kapital Care WCC,,Bi-Borough Director of Integrated Care,1075.76
11/01/2024,1247650,London Care Ltd,,Bi-Borough Director of Integrated Care,791.84
11/01/2024,1247650,London Care Ltd,,Bi-Borough Director of Integrated Care,925.46
11/01/2024,1247650,London Care Ltd,,Bi-Borough Director of Integrated Care,565.84
11/01/2024,1247650,London Care Ltd,,Bi-Borough Director of Integrated Care,1935.41
11/01/2024,1247650,London Care Ltd,,Bi-Borough Director of Integrated Care,509.04
11/01/2024,1247650,London Care Ltd,,Bi-Borough Director of Integrated Care,678.72
11/01/2024,1247650,London Care Ltd,,Bi-Borough Director of Integrated Care,819.38
11/01/2024,1247650,London Care Ltd,,Bi-Borough Director of Integrated Care,1610.35
11/01/2024,1247650,London Care Ltd,,Bi-Borough Director of Integrated Care,1452.78
11/01/2024,1247650,London Care Ltd,,Bi-Borough Director of Integrated Care,1224.88
11/01/2024,1247650,London Care Ltd,,Bi-Borough Director of Integrated Care,1166.06
11/01/2024,1247650,London Care Ltd,,Bi-Borough Director of Integrated Care,869.27
11/01/2024,1247650,London Care Ltd,,Bi-Borough Director of Integrated Care,509.04
11/01/2024,1247650,London Care Ltd,,Bi-Borough Director of Integrated Care,561.17
02/02/2024,1247650,London Care Ltd,,Bi-Borough Director of Integrated Care,789.71
02/02/2024,1247650,London Care Ltd,,Bi-Borough Director of Integrated Care,1386.07
02/02/2024,1247650,London Care Ltd,,Bi-Borough Director of Integrated Care,584.26
02/02/2024,1247650,London Care Ltd,,Bi-Borough Director of Integrated Care,1924.1
02/02/2024,1247650,London Care Ltd,,Bi-Borough Director of Integrated Care,678.72
02/02/2024,1247650,London Care Ltd,,Bi-Borough Director of Integrated Care,587.87
02/02/2024,1247650,London Care Ltd,,Bi-Borough Director of Integrated Care,1584.64
02/02/2024,1247650,London Care Ltd,,Bi-Borough Director of Integrated Care,1421.39
02/02/2024,1247650,London Care Ltd,,Bi-Borough Director of Integrated Care,1150.64
02/02/2024,1247650,London Care Ltd,,Bi-Borough Director of Integrated Care,1145.34
02/02/2024,1247650,London Care Ltd,,Bi-Borough Director of Integrated Care,890.52
02/02/2024,1247650,London Care Ltd,,Bi-Borough Director of Integrated Care,509.04
02/02/2024,1247650,London Care Ltd,,Bi-Borough Director of Integrated Care,584.69
01/02/2024,1247852,Look Ahead Care and Support Ltd,Rent,Bi-Borough Director of Integrated Care,1303.28
29/02/2024,1247852,Look Ahead Care and Support Ltd,Rent,Bi-Borough Director of Integrated Care,1303.28
26/03/2024,1247852,Look Ahead Care and Support Ltd,Rent,Bi-Borough Director of Integrated Care,1629.1
01/02/2024,1262948,Lotus House,,Bi-Borough Director of Integrated Care,2928
29/02/2024,1262948,Lotus House,,Bi-Borough Director of Integrated Care,2928
26/03/2024,1262948,Lotus House,,Bi-Borough Director of Integrated Care,3660
08/01/2024,1259132,MMR Home Care LTD,,Bi-Borough Director of Integrated Care,768.4
08/01/2024,1259132,MMR Home Care LTD,,Bi-Borough Director of Integrated Care,12909.12
22/02/2024,1259132,MMR Home Care LTD,,Bi-Borough Director of Integrated Care,768.4
22/02/2024,1259132,MMR Home Care LTD,,Bi-Borough Director of Integrated Care,12909.12
05/03/2024,1259132,MMR Home Care LTD,,Bi-Borough Director of Integrated Care,768.4
05/03/2024,1259132,MMR Home Care LTD,,Bi-Borough Director of Integrated Care,12909.12
29/03/2024,1259132,MMR Home Care LTD,,Bi-Borough Director of Integrated Care,768.4
29/03/2024,1259132,MMR Home Care LTD,,Bi-Borough Director of Integrated Care,12909.12
01/02/2024,1244866,Micado Community Living Services,,Bi-Borough Director of Integrated Care,2880
29/02/2024,1244866,Micado Community Living Services,,Bi-Borough Director of Integrated Care,2880
26/03/2024,1244866,Micado Community Living Services,,Bi-Borough Director of Integrated Care,3600
01/02/2024,1270326,New Directions Flexible Social Care,,Bi-Borough Director of Integrated Care,1400
29/02/2024,1270326,New Directions Flexible Social Care,,Bi-Borough Director of Integrated Care,1400
26/03/2024,1270326,New Directions Flexible Social Care,,Bi-Borough Director of Integrated Care,1750
16/01/2024,1282551,Nisacraftcare Limited,,Bi-Borough Director of Integrated Care,17280
01/02/2024,1269489,Optimum Support Ltd,,Bi-Borough Director of Integrated Care,1900
01/02/2024,1269489,Optimum Support Ltd,,Bi-Borough Director of Integrated Care,1900
29/02/2024,1269489,Optimum Support Ltd,,Bi-Borough Director of Integrated Care,1900
29/02/2024,1269489,Optimum Support Ltd,,Bi-Borough Director of Integrated Care,1900
26/03/2024,1269489,Optimum Support Ltd,,Bi-Borough Director of Integrated Care,2375
26/03/2024,1269489,Optimum Support Ltd,,Bi-Borough Director of Integrated Care,2375
11/01/2024,1259940,PERSONAL PAYMENTS,Adult Social Care - Other Transfer Pay,Bi-Borough Director of Integrated Care,2076.2
11/01/2024,1246066,PERSONAL PAYMENTS,Adult Social Care - Other Transfer Pay,Bi-Borough Director of Integrated Care,1130.2
11/01/2024,1284661,PERSONAL PAYMENTS,Social Care - Direct Payments,Bi-Borough Director of Integrated Care,528
11/01/2024,1254334,PERSONAL PAYMENTS,Adult Social Care - Other Transfer Pay,Bi-Borough Director of Integrated Care,1500
11/01/2024,1266895,PERSONAL PAYMENTS,Social Care - Direct Payments,Bi-Borough Director of Integrated Care,728
11/01/2024,1246066,PERSONAL PAYMENTS,Adult Social Care - Other Transfer Pay,Bi-Borough Director of Integrated Care,937.88
11/01/2024,1246066,PERSONAL PAYMENTS,Adult Social Care - Other Transfer Pay,Bi-Borough Director of Integrated Care,2104.24
11/01/2024,1247479,PERSONAL PAYMENTS,Social Care - Direct Payments,Bi-Borough Director of Integrated Care,1639.08
11/01/2024,1247409,PERSONAL PAYMENTS,Social Care - Direct Payments,Bi-Borough Director of Integrated Care,508.84
11/01/2024,1314223,PERSONAL PAYMENTS,Social Care - Direct Payments,Bi-Borough Director of Integrated Care,832
18/01/2024,1286294,PERSONAL PAYMENTS,Social Care - Direct Payments,Bi-Borough Director of Integrated Care,1460
08/02/2024,1300457,PERSONAL PAYMENTS,Adult Social Care - Other Transfer Pay,Bi-Borough Director of Integrated Care,550.4
08/02/2024,1246066,PERSONAL PAYMENTS,Adult Social Care - Other Transfer Pay,Bi-Borough Director of Integrated Care,1172.35
08/02/2024,1247446,PERSONAL PAYMENTS,Social Care - Direct Payments,Bi-Borough Director of Integrated Care,500
08/02/2024,1314223,PERSONAL PAYMENTS,Social Care - Direct Payments,Bi-Borough Director of Integrated Care,1040
08/02/2024,1247409,PERSONAL PAYMENTS,Social Care - Direct Payments,Bi-Borough Director of Integrated Care,636.05
08/02/2024,1247479,PERSONAL PAYMENTS,Social Care - Direct Payments,Bi-Borough Director of Integrated Care,2048.85
08/02/2024,1249900,PERSONAL PAYMENTS,Adult Social Care - Other Transfer Pay,Bi-Borough Director of Integrated Care,600
08/02/2024,1246066,PERSONAL PAYMENTS,Adult Social Care - Other Transfer Pay,Bi-Borough Director of Integrated Care,2630.3
08/02/2024,1259940,PERSONAL PAYMENTS,Adult Social Care - Other Transfer Pay,Bi-Borough Director of Integrated Care,2595.25
08/02/2024,1250649,PERSONAL PAYMENTS,Social Care - Direct Payments,Bi-Borough Director of Integrated Care,564
08/02/2024,1247815,PERSONAL PAYMENTS,Social Care - Direct Payments,Bi-Borough Director of Integrated Care,560.75
08/02/2024,1246066,PERSONAL PAYMENTS,Adult Social Care - Other Transfer Pay,Bi-Borough Director of Integrated Care,1991.82
08/02/2024,1246066,PERSONAL PAYMENTS,Adult Social Care - Other Transfer Pay,Bi-Borough Director of Integrated Care,1412.75
08/02/2024,1266895,PERSONAL PAYMENTS,Social Care - Direct Payments,Bi-Borough Director of Integrated Care,910
08/02/2024,1254334,PERSONAL PAYMENTS,Adult Social Care - Other Transfer Pay,Bi-Borough Director of Integrated Care,1875
08/02/2024,1280903,PERSONAL PAYMENTS,Social Care - Direct Payments,Bi-Borough Director of Integrated Care,622.5
07/03/2024,1246066,PERSONAL PAYMENTS,Adult Social Care - Other Transfer Pay,Bi-Borough Director of Integrated Care,1130.2
07/03/2024,1266895,PERSONAL PAYMENTS,Social Care - Direct Payments,Bi-Borough Director of Integrated Care,728
07/03/2024,1254334,PERSONAL PAYMENTS,Adult Social Care - Other Transfer Pay,Bi-Borough Director of Integrated Care,1500
07/03/2024,1246066,PERSONAL PAYMENTS,Adult Social Care - Other Transfer Pay,Bi-Borough Director of Integrated Care,937.88
07/03/2024,1247479,PERSONAL PAYMENTS,Social Care - Direct Payments,Bi-Borough Director of Integrated Care,1639.08
07/03/2024,1314223,PERSONAL PAYMENTS,Social Care - Direct Payments,Bi-Borough Director of Integrated Care,832
07/03/2024,1247409,PERSONAL PAYMENTS,Social Care - Direct Payments,Bi-Borough Director of Integrated Care,508.84
07/03/2024,1246066,PERSONAL PAYMENTS,Adult Social Care - Other Transfer Pay,Bi-Borough Director of Integrated Care,2104.24
07/03/2024,1259940,PERSONAL PAYMENTS,Adult Social Care - Other Transfer Pay,Bi-Borough Director of Integrated Care,2076.2
07/03/2024,1246066,PERSONAL PAYMENTS,Adult Social Care - Other Transfer Pay,Bi-Borough Director of Integrated Care,914.28
19/01/2024,1245316,Respect Care Services Ltd,,Bi-Borough Director of Integrated Care,634.73
19/01/2024,1245316,Respect Care Services Ltd,,Bi-Borough Director of Integrated Care,691.56
12/02/2024,1245316,Respect Care Services Ltd,,Bi-Borough Director of Integrated Care,634.73
12/02/2024,1245316,Respect Care Services Ltd,,Bi-Borough Director of Integrated Care,691.56
15/02/2024,1245316,Respect Care Services Ltd,,Bi-Borough Director of Integrated Care,634.73
15/02/2024,1245316,Respect Care Services Ltd,,Bi-Borough Director of Integrated Care,691.56
20/02/2024,1245316,Respect Care Services Ltd,,Bi-Borough Director of Integrated Care,634.73
20/02/2024,1245316,Respect Care Services Ltd,,Bi-Borough Director of Integrated Care,691.56
02/03/2024,1245316,Respect Care Services Ltd,,Bi-Borough Director of Integrated Care,634.73
02/03/2024,1245316,Respect Care Services Ltd,,Bi-Borough Director of Integrated Care,691.56
18/03/2024,1245316,Respect Care Services Ltd,,Bi-Borough Director of Integrated Care,634.73
18/03/2024,1245316,Respect Care Services Ltd,,Bi-Borough Director of Integrated Care,691.56
01/02/2024,1248618,Riverside Echg,,Bi-Borough Director of Integrated Care,661.84
01/02/2024,1248618,Riverside Echg,Rent,Bi-Borough Director of Integrated Care,1451.12
01/02/2024,1248618,Riverside Echg,Rent,Bi-Borough Director of Integrated Care,836.64
01/02/2024,1248618,Riverside Echg,Rent,Bi-Borough Director of Integrated Care,1491.12
29/02/2024,1248618,Riverside Echg,Rent,Bi-Borough Director of Integrated Care,836.64
29/02/2024,1248618,Riverside Echg,Rent,Bi-Borough Director of Integrated Care,1491.12
29/02/2024,1248618,Riverside Echg,,Bi-Borough Director of Integrated Care,661.84
29/02/2024,1248618,Riverside Echg,Rent,Bi-Borough Director of Integrated Care,1451.12
07/03/2024,1248618,Riverside Echg,Rent,Bi-Borough Director of Integrated Care,6530.04
07/03/2024,1248618,Riverside Echg,,Bi-Borough Director of Integrated Care,1800
26/03/2024,1248618,Riverside Echg,Rent,Bi-Borough Director of Integrated Care,1863.9
26/03/2024,1248618,Riverside Echg,,Bi-Borough Director of Integrated Care,827.3
26/03/2024,1248618,Riverside Echg,Rent,Bi-Borough Director of Integrated Care,1813.9
26/03/2024,1248618,Riverside Echg,Rent,Bi-Borough Director of Integrated Care,1813.9
26/03/2024,1248618,Riverside Echg,,Bi-Borough Director of Integrated Care,500
09/02/2024,1274076,Royal Association for Deaf People,,Bi-Borough Director of Integrated Care,840
07/03/2024,1274076,Royal Association for Deaf People,,Bi-Borough Director of Integrated Care,735
01/02/2024,1272438,ST GEORGES SUPPORTED LIVING LTD,,Bi-Borough Director of Integrated Care,1700
29/02/2024,1272438,ST GEORGES SUPPORTED LIVING LTD,,Bi-Borough Director of Integrated Care,1700
26/03/2024,1272438,ST GEORGES SUPPORTED LIVING LTD,,Bi-Borough Director of Integrated Care,2125
16/01/2024,1248843,Sage Care Ltd,,Bi-Borough Director of Integrated Care,1856
16/01/2024,1248843,Sage Care Ltd,,Bi-Borough Director of Integrated Care,585.64
16/02/2024,1248843,Sage Care Ltd,,Bi-Borough Director of Integrated Care,1907.25
16/02/2024,1248843,Sage Care Ltd,,Bi-Borough Director of Integrated Care,576.01
16/02/2024,1248843,Sage Care Ltd,,Bi-Borough Director of Integrated Care,2078.72
16/02/2024,1248843,Sage Care Ltd,,Bi-Borough Director of Integrated Care,509.04
16/02/2024,1248843,Sage Care Ltd,,Bi-Borough Director of Integrated Care,577.39
16/02/2024,1248843,Sage Care Ltd,,Bi-Borough Director of Integrated Care,570.14
14/03/2024,1248843,Sage Care Ltd,,Bi-Borough Director of Integrated Care,2067.4
14/03/2024,1248843,Sage Care Ltd,,Bi-Borough Director of Integrated Care,575.19
14/03/2024,1248843,Sage Care Ltd,,Bi-Borough Director of Integrated Care,509.04
01/02/2024,1278139,Serenity Point  Limited,,Bi-Borough Director of Integrated Care,3408
01/02/2024,1278139,Serenity Point  Limited,,Bi-Borough Director of Integrated Care,3408
29/02/2024,1278139,Serenity Point  Limited,,Bi-Borough Director of Integrated Care,3408
29/02/2024,1278139,Serenity Point  Limited,,Bi-Borough Director of Integrated Care,3408
26/03/2024,1278139,Serenity Point  Limited,,Bi-Borough Director of Integrated Care,4260
26/03/2024,1278139,Serenity Point  Limited,,Bi-Borough Director of Integrated Care,4260
19/01/2024,1248878,Sevacare (Uk) Ltd,,Bi-Borough Director of Integrated Care,1320.16
14/02/2024,1248878,Sevacare (Uk) Ltd,,Bi-Borough Director of Integrated Care,1186.16
